Workbook

Sheet AVISO LEGAL
H2: Fecha de actualización: | J2: 2017-03-10
J23: www.ree.es

Sheet Indisp.Peninsular P mes
O1: 1
O2: 17
L4: Concepto
L5: Horizonte temporal
L6: Periodo
C8: Ene. | D8: Feb. | E8: Mar. | F8: Abr. | G8: May. | H8: Jun. | I8: Jul. | J8: Ago. | K8: Sep. | L8: Oct. | M8: Nov. | N8: Dic. | O8: =OFFSET(Año!B13,($O$2-1),0) -> 2017
B10: Nuclear | C10: =OFFSET(Datos!C3,0,($O$2-1)*13) -> 6.01234982 | D10: =OFFSET(Datos!D3,0,($O$2-1)*13) -> 6.01234982 | E10: =OFFSET(Datos!E3,0,($O$2-1)*13) -> - | F10: =OFFSET(Datos!F3,0,($O$2-1)*13) -> - | G10: =OFFSET(Datos!G3,0,($O$2-1)*13) -> - | H10: =OFFSET(Datos!H3,0,($O$2-1)*13) -> - | I10: =OFFSET(Datos!I3,0,($O$2-1)*13) -> - | J10: =OFFSET(Datos!J3,0,($O$2-1)*13) -> - | K10: =OFFSET(Datos!K3,0,($O$2-1)*13) -> - | L10: =OFFSET(Datos!L3,0,($O$2-1)*13) -> - | M10: =OFFSET(Datos!M3,0,($O$2-1)*13) -> - | N10: =OFFSET(Datos!N3,0,($O$2-1)*13) -> - | O10: =OFFSET(Datos!O3,0,($O$2-1)*13) -> 6.01234982
B11: Carbón | C11: =OFFSET(Datos!C4,0,($O$2-1)*13) -> 0 | D11: =OFFSET(Datos!D4,0,($O$2-1)*13) -> 0 | E11: =OFFSET(Datos!E4,0,($O$2-1)*13) -> - | F11: =OFFSET(Datos!F4,0,($O$2-1)*13) -> - | G11: =OFFSET(Datos!G4,0,($O$2-1)*13) -> - | H11: =OFFSET(Datos!H4,0,($O$2-1)*13) -> - | I11: =OFFSET(Datos!I4,0,($O$2-1)*13) -> - | J11: =OFFSET(Datos!J4,0,($O$2-1)*13) -> - | K11: =OFFSET(Datos!K4,0,($O$2-1)*13) -> - | L11: =OFFSET(Datos!L4,0,($O$2-1)*13) -> - | M11: =OFFSET(Datos!M4,0,($O$2-1)*13) -> - | N11: =OFFSET(Datos!N4,0,($O$2-1)*13) -> - | O11: =OFFSET(Datos!O4,0,($O$2-1)*13) -> 0
B12: Fuel + Gas | C12: =OFFSET(Datos!C5,0,($O$2-1)*13) -> - | D12: =OFFSET(Datos!D5,0,($O$2-1)*13) -> - | E12: =OFFSET(Datos!E5,0,($O$2-1)*13) -> - | F12: =OFFSET(Datos!F5,0,($O$2-1)*13) -> - | G12: =OFFSET(Datos!G5,0,($O$2-1)*13) -> - | H12: =OFFSET(Datos!H5,0,($O$2-1)*13) -> - | I12: =OFFSET(Datos!I5,0,($O$2-1)*13) -> - | J12: =OFFSET(Datos!J5,0,($O$2-1)*13) -> - | K12: =OFFSET(Datos!K5,0,($O$2-1)*13) -> - | L12: =OFFSET(Datos!L5,0,($O$2-1)*13) -> - | M12: =OFFSET(Datos!M5,0,($O$2-1)*13) -> - | N12: =OFFSET(Datos!N5,0,($O$2-1)*13) -> - | O12: =OFFSET(Datos!O5,0,($O$2-1)*13) -> -
B13: Ciclo combinado | C13: =OFFSET(Datos!C6,0,($O$2-1)*13) -> 0 | D13: =OFFSET(Datos!D6,0,($O$2-1)*13) -> 0 | E13: =OFFSET(Datos!E6,0,($O$2-1)*13) -> - | F13: =OFFSET(Datos!F6,0,($O$2-1)*13) -> - | G13: =OFFSET(Datos!G6,0,($O$2-1)*13) -> - | H13: =OFFSET(Datos!H6,0,($O$2-1)*13) -> - | I13: =OFFSET(Datos!I6,0,($O$2-1)*13) -> - | J13: =OFFSET(Datos!J6,0,($O$2-1)*13) -> - | K13: =OFFSET(Datos!K6,0,($O$2-1)*13) -> - | L13: =OFFSET(Datos!L6,0,($O$2-1)*13) -> - | M13: =OFFSET(Datos!M6,0,($O$2-1)*13) -> - | N13: =OFFSET(Datos!N6,0,($O$2-1)*13) -> - | O13: =OFFSET(Datos!O6,0,($O$2-1)*13) -> 0
B14: Indisponibilidad permanente | C14: =OFFSET(Datos!C7,0,($O$2-1)*13) -> 1.08257625 | D14: =OFFSET(Datos!D7,0,($O$2-1)*13) -> 1.08257625 | E14: =OFFSET(Datos!E7,0,($O$2-1)*13) -> - | F14: =OFFSET(Datos!F7,0,($O$2-1)*13) -> - | G14: =OFFSET(Datos!G7,0,($O$2-1)*13) -> - | H14: =OFFSET(Datos!H7,0,($O$2-1)*13) -> - | I14: =OFFSET(Datos!I7,0,($O$2-1)*13) -> - | J14: =OFFSET(Datos!J7,0,($O$2-1)*13) -> - | K14: =OFFSET(Datos!K7,0,($O$2-1)*13) -> - | L14: =OFFSET(Datos!L7,0,($O$2-1)*13) -> - | M14: =OFFSET(Datos!M7,0,($O$2-1)*13) -> - | N14: =OFFSET(Datos!N7,0,($O$2-1)*13) -> - | O14: =OFFSET(Datos!O7,0,($O$2-1)*13) -> 1.08257625
B16: Datos a último día de cada mes.

Sheet Indisp.Peninsular P año
J1: 1
J2: 3
H4: Concepto
H5: Horizonte temporal
H6: Periodo
C8: =OFFSET(Datos!C37,0,($J$2-1)*8) -> 2017 | D8: =OFFSET(Datos!D37,0,($J$2-1)*8) -> 2018 | E8: =OFFSET(Datos!E37,0,($J$2-1)*8) -> 2019 | F8: =OFFSET(Datos!F37,0,($J$2-1)*8) -> 2020 | G8: =OFFSET(Datos!G37,0,($J$2-1)*8) -> 2021 | H8: =OFFSET(Datos!H37,0,($J$2-1)*8) -> 2022 | I8: =OFFSET(Datos!I37,0,($J$2-1)*8) -> 2023 | J8: =OFFSET(Datos!J37,0,($J$2-1)*8) -> 2024
B10: Nuclear | C10: =OFFSET(Datos!C38,0,($J$2-1)*8) -> 6.01234982 | D10: =OFFSET(Datos!D38,0,($J$2-1)*8) -> - | E10: =OFFSET(Datos!E38,0,($J$2-1)*8) -> - | F10: =OFFSET(Datos!F38,0,($J$2-1)*8) -> - | G10: =OFFSET(Datos!G38,0,($J$2-1)*8) -> - | H10: =OFFSET(Datos!H38,0,($J$2-1)*8) -> - | I10: =OFFSET(Datos!I38,0,($J$2-1)*8) -> - | J10: =OFFSET(Datos!J38,0,($J$2-1)*8) -> -
B11: Carbón | C11: =OFFSET(Datos!C39,0,($J$2-1)*8) -> 0 | D11: =OFFSET(Datos!D39,0,($J$2-1)*8) -> - | E11: =OFFSET(Datos!E39,0,($J$2-1)*8) -> - | F11: =OFFSET(Datos!F39,0,($J$2-1)*8) -> - | G11: =OFFSET(Datos!G39,0,($J$2-1)*8) -> - | H11: =OFFSET(Datos!H39,0,($J$2-1)*8) -> - | I11: =OFFSET(Datos!I39,0,($J$2-1)*8) -> - | J11: =OFFSET(Datos!J39,0,($J$2-1)*8) -> -
B12: Fuel + Gas | C12: =OFFSET(Datos!C40,0,($J$2-1)*8) -> - | D12: =OFFSET(Datos!D40,0,($J$2-1)*8) -> - | E12: =OFFSET(Datos!E40,0,($J$2-1)*8) -> - | F12: =OFFSET(Datos!F40,0,($J$2-1)*8) -> - | G12: =OFFSET(Datos!G40,0,($J$2-1)*8) -> - | H12: =OFFSET(Datos!H40,0,($J$2-1)*8) -> - | I12: =OFFSET(Datos!I40,0,($J$2-1)*8) -> - | J12: =OFFSET(Datos!J40,0,($J$2-1)*8) -> -
B13: Ciclo combinado | C13: =OFFSET(Datos!C41,0,($J$2-1)*8) -> 0 | D13: =OFFSET(Datos!D41,0,($J$2-1)*8) -> - | E13: =OFFSET(Datos!E41,0,($J$2-1)*8) -> - | F13: =OFFSET(Datos!F41,0,($J$2-1)*8) -> - | G13: =OFFSET(Datos!G41,0,($J$2-1)*8) -> - | H13: =OFFSET(Datos!H41,0,($J$2-1)*8) -> - | I13: =OFFSET(Datos!I41,0,($J$2-1)*8) -> - | J13: =OFFSET(Datos!J41,0,($J$2-1)*8) -> -
B14: Indisponibilidad permanente | C14: =OFFSET(Datos!C42,0,($J$2-1)*8) -> 1.08257625 | D14: =OFFSET(Datos!D42,0,($J$2-1)*8) -> - | E14: =OFFSET(Datos!E42,0,($J$2-1)*8) -> - | F14: =OFFSET(Datos!F42,0,($J$2-1)*8) -> - | G14: =OFFSET(Datos!G42,0,($J$2-1)*8) -> - | H14: =OFFSET(Datos!H42,0,($J$2-1)*8) -> - | I14: =OFFSET(Datos!I42,0,($J$2-1)*8) -> - | J14: =OFFSET(Datos!J42,0,($J$2-1)*8) -> -
B16: =IF(MONTH(FACT)=1,"Datos acumulados a 31 de diciembre.",CONCATENATE("Datos acumulados a 31 de diciembre. Para el año ",YEAR(FACT), " datos acumulados a ",TEXT(FACT-30,"mmmm")," de ",YEAR(FACT),".")) -> Datos acumulados a 31 de diciembre. Para el año 2017 datos acumulados a febrero de 2017.

Sheet Indisp.Peninsular Pr mes
O1: 2
O2: 17
L4: Concepto
L5: Horizonte temporal
L6: Periodo
C8: Ene. | D8: Feb. | E8: Mar. | F8: Abr. | G8: May. | H8: Jun. | I8: Jul. | J8: Ago. | K8: Sep. | L8: Oct. | M8: Nov. | N8: Dic. | O8: =OFFSET(Año!B13,($O$2-1),0) -> 2017
B10: Nuclear | C10: =OFFSET(Datos!C10,0,($O$2-1)*13) -> 0 | D10: =OFFSET(Datos!D10,0,($O$2-1)*13) -> 0 | E10: =OFFSET(Datos!E10,0,($O$2-1)*13) -> - | F10: =OFFSET(Datos!F10,0,($O$2-1)*13) -> - | G10: =OFFSET(Datos!G10,0,($O$2-1)*13) -> - | H10: =OFFSET(Datos!H10,0,($O$2-1)*13) -> - | I10: =OFFSET(Datos!I10,0,($O$2-1)*13) -> - | J10: =OFFSET(Datos!J10,0,($O$2-1)*13) -> - | K10: =OFFSET(Datos!K10,0,($O$2-1)*13) -> - | L10: =OFFSET(Datos!L10,0,($O$2-1)*13) -> - | M10: =OFFSET(Datos!M10,0,($O$2-1)*13) -> - | N10: =OFFSET(Datos!N10,0,($O$2-1)*13) -> - | O10: =OFFSET(Datos!O10,0,($O$2-1)*13) -> 0
B11: Carbón | C11: =OFFSET(Datos!C11,0,($O$2-1)*13) -> 5.846451346 | D11: =OFFSET(Datos!D11,0,($O$2-1)*13) -> 5.846451346 | E11: =OFFSET(Datos!E11,0,($O$2-1)*13) -> - | F11: =OFFSET(Datos!F11,0,($O$2-1)*13) -> - | G11: =OFFSET(Datos!G11,0,($O$2-1)*13) -> - | H11: =OFFSET(Datos!H11,0,($O$2-1)*13) -> - | I11: =OFFSET(Datos!I11,0,($O$2-1)*13) -> - | J11: =OFFSET(Datos!J11,0,($O$2-1)*13) -> - | K11: =OFFSET(Datos!K11,0,($O$2-1)*13) -> - | L11: =OFFSET(Datos!L11,0,($O$2-1)*13) -> - | M11: =OFFSET(Datos!M11,0,($O$2-1)*13) -> - | N11: =OFFSET(Datos!N11,0,($O$2-1)*13) -> - | O11: =OFFSET(Datos!O11,0,($O$2-1)*13) -> 5.846451346
B12: Fuel + Gas | C12: =OFFSET(Datos!C12,0,($O$2-1)*13) -> - | D12: =OFFSET(Datos!D12,0,($O$2-1)*13) -> - | E12: =OFFSET(Datos!E12,0,($O$2-1)*13) -> - | F12: =OFFSET(Datos!F12,0,($O$2-1)*13) -> - | G12: =OFFSET(Datos!G12,0,($O$2-1)*13) -> - | H12: =OFFSET(Datos!H12,0,($O$2-1)*13) -> - | I12: =OFFSET(Datos!I12,0,($O$2-1)*13) -> - | J12: =OFFSET(Datos!J12,0,($O$2-1)*13) -> - | K12: =OFFSET(Datos!K12,0,($O$2-1)*13) -> - | L12: =OFFSET(Datos!L12,0,($O$2-1)*13) -> - | M12: =OFFSET(Datos!M12,0,($O$2-1)*13) -> - | N12: =OFFSET(Datos!N12,0,($O$2-1)*13) -> - | O12: =OFFSET(Datos!O12,0,($O$2-1)*13) -> -
B13: Ciclo combinado | C13: =OFFSET(Datos!C13,0,($O$2-1)*13) -> 4.616701719 | D13: =OFFSET(Datos!D13,0,($O$2-1)*13) -> 3.070101424 | E13: =OFFSET(Datos!E13,0,($O$2-1)*13) -> - | F13: =OFFSET(Datos!F13,0,($O$2-1)*13) -> - | G13: =OFFSET(Datos!G13,0,($O$2-1)*13) -> - | H13: =OFFSET(Datos!H13,0,($O$2-1)*13) -> - | I13: =OFFSET(Datos!I13,0,($O$2-1)*13) -> - | J13: =OFFSET(Datos!J13,0,($O$2-1)*13) -> - | K13: =OFFSET(Datos!K13,0,($O$2-1)*13) -> - | L13: =OFFSET(Datos!L13,0,($O$2-1)*13) -> - | M13: =OFFSET(Datos!M13,0,($O$2-1)*13) -> - | N13: =OFFSET(Datos!N13,0,($O$2-1)*13) -> - | O13: =OFFSET(Datos!O13,0,($O$2-1)*13) -> 3.882721918
B14: Indisponibilidad prevista | C14: =OFFSET(Datos!C14,0,($O$2-1)*13) -> 4.064259211 | D14: =OFFSET(Datos!D14,0,($O$2-1)*13) -> 3.146816067 | E14: =OFFSET(Datos!E14,0,($O$2-1)*13) -> - | F14: =OFFSET(Datos!F14,0,($O$2-1)*13) -> - | G14: =OFFSET(Datos!G14,0,($O$2-1)*13) -> - | H14: =OFFSET(Datos!H14,0,($O$2-1)*13) -> - | I14: =OFFSET(Datos!I14,0,($O$2-1)*13) -> - | J14: =OFFSET(Datos!J14,0,($O$2-1)*13) -> - | K14: =OFFSET(Datos!K14,0,($O$2-1)*13) -> - | L14: =OFFSET(Datos!L14,0,($O$2-1)*13) -> - | M14: =OFFSET(Datos!M14,0,($O$2-1)*13) -> - | N14: =OFFSET(Datos!N14,0,($O$2-1)*13) -> - | O14: =OFFSET(Datos!O14,0,($O$2-1)*13) -> 3.628862464
B16: Datos a último día de cada mes.

Sheet Indisp.Peninsular Pr año
J1: 1
J2: 3
H4: Concepto
H5: Horizonte temporal
H6: Periodo
C8: =OFFSET(Datos!C44,0,($J$2-1)*8) -> 2017 | D8: =OFFSET(Datos!D44,0,($J$2-1)*8) -> 2018 | E8: =OFFSET(Datos!E44,0,($J$2-1)*8) -> 2019 | F8: =OFFSET(Datos!F44,0,($J$2-1)*8) -> 2020 | G8: =OFFSET(Datos!G44,0,($J$2-1)*8) -> 2021 | H8: =OFFSET(Datos!H44,0,($J$2-1)*8) -> 2022 | I8: =OFFSET(Datos!I44,0,($J$2-1)*8) -> 2023 | J8: =OFFSET(Datos!J44,0,($J$2-1)*8) -> 2024
B10: Nuclear | C10: =OFFSET(Datos!C45,0,($J$2-1)*8) -> 0 | D10: =OFFSET(Datos!D45,0,($J$2-1)*8) -> - | E10: =OFFSET(Datos!E45,0,($J$2-1)*8) -> - | F10: =OFFSET(Datos!F45,0,($J$2-1)*8) -> - | G10: =OFFSET(Datos!G45,0,($J$2-1)*8) -> - | H10: =OFFSET(Datos!H45,0,($J$2-1)*8) -> - | I10: =OFFSET(Datos!I45,0,($J$2-1)*8) -> - | J10: =OFFSET(Datos!J45,0,($J$2-1)*8) -> -
B11: Carbón | C11: =OFFSET(Datos!C46,0,($J$2-1)*8) -> 5.846451346 | D11: =OFFSET(Datos!D46,0,($J$2-1)*8) -> - | E11: =OFFSET(Datos!E46,0,($J$2-1)*8) -> - | F11: =OFFSET(Datos!F46,0,($J$2-1)*8) -> - | G11: =OFFSET(Datos!G46,0,($J$2-1)*8) -> - | H11: =OFFSET(Datos!H46,0,($J$2-1)*8) -> - | I11: =OFFSET(Datos!I46,0,($J$2-1)*8) -> - | J11: =OFFSET(Datos!J46,0,($J$2-1)*8) -> -
B12: Fuel + Gas | C12: =OFFSET(Datos!C47,0,($J$2-1)*8) -> - | D12: =OFFSET(Datos!D47,0,($J$2-1)*8) -> - | E12: =OFFSET(Datos!E47,0,($J$2-1)*8) -> - | F12: =OFFSET(Datos!F47,0,($J$2-1)*8) -> - | G12: =OFFSET(Datos!G47,0,($J$2-1)*8) -> - | H12: =OFFSET(Datos!H47,0,($J$2-1)*8) -> - | I12: =OFFSET(Datos!I47,0,($J$2-1)*8) -> - | J12: =OFFSET(Datos!J47,0,($J$2-1)*8) -> -
B13: Ciclo combinado | C13: =OFFSET(Datos!C48,0,($J$2-1)*8) -> 3.882721918 | D13: =OFFSET(Datos!D48,0,($J$2-1)*8) -> - | E13: =OFFSET(Datos!E48,0,($J$2-1)*8) -> - | F13: =OFFSET(Datos!F48,0,($J$2-1)*8) -> - | G13: =OFFSET(Datos!G48,0,($J$2-1)*8) -> - | H13: =OFFSET(Datos!H48,0,($J$2-1)*8) -> - | I13: =OFFSET(Datos!I48,0,($J$2-1)*8) -> - | J13: =OFFSET(Datos!J48,0,($J$2-1)*8) -> -
B14: Indisponibilidad prevista | C14: =OFFSET(Datos!C49,0,($J$2-1)*8) -> 3.628862464 | D14: =OFFSET(Datos!D49,0,($J$2-1)*8) -> - | E14: =OFFSET(Datos!E49,0,($J$2-1)*8) -> - | F14: =OFFSET(Datos!F49,0,($J$2-1)*8) -> - | G14: =OFFSET(Datos!G49,0,($J$2-1)*8) -> - | H14: =OFFSET(Datos!H49,0,($J$2-1)*8) -> - | I14: =OFFSET(Datos!I49,0,($J$2-1)*8) -> - | J14: =OFFSET(Datos!J49,0,($J$2-1)*8) -> -
B16: =IF(MONTH(FACT)=1,"Datos acumulados a 31 de diciembre.",CONCATENATE("Datos acumulados a 31 de diciembre. Para el año ",YEAR(FACT), " datos acumulados a ",TEXT(FACT-30,"mmmm")," de ",YEAR(FACT),".")) -> Datos acumulados a 31 de diciembre. Para el año 2017 datos acumulados a febrero de 2017.

Sheet Indisp.Peninsular NP mes
O1: 3
O2: 17
L4: Concepto
L5: Horizonte temporal
L6: Periodo
C8: Ene. | D8: Feb. | E8: Mar. | F8: Abr. | G8: May. | H8: Jun. | I8: Jul. | J8: Ago. | K8: Sep. | L8: Oct. | M8: Nov. | N8: Dic. | O8: =OFFSET(Año!B13,($O$2-1),0) -> 2017
B10: Nuclear | C10: =OFFSET(Datos!C17,0,($O$2-1)*13) -> 0.01004523219 | D10: =OFFSET(Datos!D17,0,($O$2-1)*13) -> 0.06164313149 | E10: =OFFSET(Datos!E17,0,($O$2-1)*13) -> - | F10: =OFFSET(Datos!F17,0,($O$2-1)*13) -> - | G10: =OFFSET(Datos!G17,0,($O$2-1)*13) -> - | H10: =OFFSET(Datos!H17,0,($O$2-1)*13) -> - | I10: =OFFSET(Datos!I17,0,($O$2-1)*13) -> - | J10: =OFFSET(Datos!J17,0,($O$2-1)*13) -> - | K10: =OFFSET(Datos!K17,0,($O$2-1)*13) -> - | L10: =OFFSET(Datos!L17,0,($O$2-1)*13) -> - | M10: =OFFSET(Datos!M17,0,($O$2-1)*13) -> - | N10: =OFFSET(Datos!N17,0,($O$2-1)*13) -> - | O10: =OFFSET(Datos!O17,0,($O$2-1)*13) -> 0.03453237084
B11: Carbón | C11: =OFFSET(Datos!C18,0,($O$2-1)*13) -> 7.974364552 | D11: =OFFSET(Datos!D18,0,($O$2-1)*13) -> 5.634105701 | E11: =OFFSET(Datos!E18,0,($O$2-1)*13) -> - | F11: =OFFSET(Datos!F18,0,($O$2-1)*13) -> - | G11: =OFFSET(Datos!G18,0,($O$2-1)*13) -> - | H11: =OFFSET(Datos!H18,0,($O$2-1)*13) -> - | I11: =OFFSET(Datos!I18,0,($O$2-1)*13) -> - | J11: =OFFSET(Datos!J18,0,($O$2-1)*13) -> - | K11: =OFFSET(Datos!K18,0,($O$2-1)*13) -> - | L11: =OFFSET(Datos!L18,0,($O$2-1)*13) -> - | M11: =OFFSET(Datos!M18,0,($O$2-1)*13) -> - | N11: =OFFSET(Datos!N18,0,($O$2-1)*13) -> - | O11: =OFFSET(Datos!O18,0,($O$2-1)*13) -> 6.863733233
B12: Fuel + Gas | C12: =OFFSET(Datos!C19,0,($O$2-1)*13) -> - | D12: =OFFSET(Datos!D19,0,($O$2-1)*13) -> - | E12: =OFFSET(Datos!E19,0,($O$2-1)*13) -> - | F12: =OFFSET(Datos!F19,0,($O$2-1)*13) -> - | G12: =OFFSET(Datos!G19,0,($O$2-1)*13) -> - | H12: =OFFSET(Datos!H19,0,($O$2-1)*13) -> - | I12: =OFFSET(Datos!I19,0,($O$2-1)*13) -> - | J12: =OFFSET(Datos!J19,0,($O$2-1)*13) -> - | K12: =OFFSET(Datos!K19,0,($O$2-1)*13) -> - | L12: =OFFSET(Datos!L19,0,($O$2-1)*13) -> - | M12: =OFFSET(Datos!M19,0,($O$2-1)*13) -> - | N12: =OFFSET(Datos!N19,0,($O$2-1)*13) -> - | O12: =OFFSET(Datos!O19,0,($O$2-1)*13) -> -
B13: Ciclo combinado | C13: =OFFSET(Datos!C20,0,($O$2-1)*13) -> 2.531771221 | D13: =OFFSET(Datos!D20,0,($O$2-1)*13) -> 2.654269072 | E13: =OFFSET(Datos!E20,0,($O$2-1)*13) -> - | F13: =OFFSET(Datos!F20,0,($O$2-1)*13) -> - | G13: =OFFSET(Datos!G20,0,($O$2-1)*13) -> - | H13: =OFFSET(Datos!H20,0,($O$2-1)*13) -> - | I13: =OFFSET(Datos!I20,0,($O$2-1)*13) -> - | J13: =OFFSET(Datos!J20,0,($O$2-1)*13) -> - | K13: =OFFSET(Datos!K20,0,($O$2-1)*13) -> - | L13: =OFFSET(Datos!L20,0,($O$2-1)*13) -> - | M13: =OFFSET(Datos!M20,0,($O$2-1)*13) -> - | N13: =OFFSET(Datos!N20,0,($O$2-1)*13) -> - | O13: =OFFSET(Datos!O20,0,($O$2-1)*13) -> 2.589905794
B14: Indisponibilidad no prevista | C14: =OFFSET(Datos!C21,0,($O$2-1)*13) -> 3.311773263 | D14: =OFFSET(Datos!D21,0,($O$2-1)*13) -> 2.863096206 | E14: =OFFSET(Datos!E21,0,($O$2-1)*13) -> - | F14: =OFFSET(Datos!F21,0,($O$2-1)*13) -> - | G14: =OFFSET(Datos!G21,0,($O$2-1)*13) -> - | H14: =OFFSET(Datos!H21,0,($O$2-1)*13) -> - | I14: =OFFSET(Datos!I21,0,($O$2-1)*13) -> - | J14: =OFFSET(Datos!J21,0,($O$2-1)*13) -> - | K14: =OFFSET(Datos!K21,0,($O$2-1)*13) -> - | L14: =OFFSET(Datos!L21,0,($O$2-1)*13) -> - | M14: =OFFSET(Datos!M21,0,($O$2-1)*13) -> - | N14: =OFFSET(Datos!N21,0,($O$2-1)*13) -> - | O14: =OFFSET(Datos!O21,0,($O$2-1)*13) -> 3.098841778
B16: Datos a último día de cada mes.

Sheet Indisp.Peninsular NP año
J1: 1
J2: 3
H4: Concepto
H5: Horizonte temporal
H6: Periodo
C8: =OFFSET(Datos!C51,0,($J$2-1)*8) -> 2017 | D8: =OFFSET(Datos!D51,0,($J$2-1)*8) -> 2018 | E8: =OFFSET(Datos!E51,0,($J$2-1)*8) -> 2019 | F8: =OFFSET(Datos!F51,0,($J$2-1)*8) -> 2020 | G8: =OFFSET(Datos!G51,0,($J$2-1)*8) -> 2021 | H8: =OFFSET(Datos!H51,0,($J$2-1)*8) -> 2022 | I8: =OFFSET(Datos!I51,0,($J$2-1)*8) -> 2023 | J8: =OFFSET(Datos!J51,0,($J$2-1)*8) -> 2024
B10: Nuclear | C10: =OFFSET(Datos!C52,0,($J$2-1)*8) -> 0.03453237084 | D10: =OFFSET(Datos!D52,0,($J$2-1)*8) -> - | E10: =OFFSET(Datos!E52,0,($J$2-1)*8) -> - | F10: =OFFSET(Datos!F52,0,($J$2-1)*8) -> - | G10: =OFFSET(Datos!G52,0,($J$2-1)*8) -> - | H10: =OFFSET(Datos!H52,0,($J$2-1)*8) -> - | I10: =OFFSET(Datos!I52,0,($J$2-1)*8) -> - | J10: =OFFSET(Datos!J52,0,($J$2-1)*8) -> -
B11: Carbón | C11: =OFFSET(Datos!C53,0,($J$2-1)*8) -> 6.863733233 | D11: =OFFSET(Datos!D53,0,($J$2-1)*8) -> - | E11: =OFFSET(Datos!E53,0,($J$2-1)*8) -> - | F11: =OFFSET(Datos!F53,0,($J$2-1)*8) -> - | G11: =OFFSET(Datos!G53,0,($J$2-1)*8) -> - | H11: =OFFSET(Datos!H53,0,($J$2-1)*8) -> - | I11: =OFFSET(Datos!I53,0,($J$2-1)*8) -> - | J11: =OFFSET(Datos!J53,0,($J$2-1)*8) -> -
B12: Fuel + Gas | C12: =OFFSET(Datos!C54,0,($J$2-1)*8) -> - | D12: =OFFSET(Datos!D54,0,($J$2-1)*8) -> - | E12: =OFFSET(Datos!E54,0,($J$2-1)*8) -> - | F12: =OFFSET(Datos!F54,0,($J$2-1)*8) -> - | G12: =OFFSET(Datos!G54,0,($J$2-1)*8) -> - | H12: =OFFSET(Datos!H54,0,($J$2-1)*8) -> - | I12: =OFFSET(Datos!I54,0,($J$2-1)*8) -> - | J12: =OFFSET(Datos!J54,0,($J$2-1)*8) -> -
B13: Ciclo combinado | C13: =OFFSET(Datos!C55,0,($J$2-1)*8) -> 2.589905794 | D13: =OFFSET(Datos!D55,0,($J$2-1)*8) -> - | E13: =OFFSET(Datos!E55,0,($J$2-1)*8) -> - | F13: =OFFSET(Datos!F55,0,($J$2-1)*8) -> - | G13: =OFFSET(Datos!G55,0,($J$2-1)*8) -> - | H13: =OFFSET(Datos!H55,0,($J$2-1)*8) -> - | I13: =OFFSET(Datos!I55,0,($J$2-1)*8) -> - | J13: =OFFSET(Datos!J55,0,($J$2-1)*8) -> -
B14: Indisponibilidad no prevista | C14: =OFFSET(Datos!C56,0,($J$2-1)*8) -> 3.098841778 | D14: =OFFSET(Datos!D56,0,($J$2-1)*8) -> - | E14: =OFFSET(Datos!E56,0,($J$2-1)*8) -> - | F14: =OFFSET(Datos!F56,0,($J$2-1)*8) -> - | G14: =OFFSET(Datos!G56,0,($J$2-1)*8) -> - | H14: =OFFSET(Datos!H56,0,($J$2-1)*8) -> - | I14: =OFFSET(Datos!I56,0,($J$2-1)*8) -> - | J14: =OFFSET(Datos!J56,0,($J$2-1)*8) -> -
B16: =IF(MONTH(FACT)=1,"Datos acumulados a 31 de diciembre.",CONCATENATE("Datos acumulados a 31 de diciembre. Para el año ",YEAR(FACT), " datos acumulados a ",TEXT(FACT-30,"mmmm")," de ",YEAR(FACT),".")) -> Datos acumulados a 31 de diciembre. Para el año 2017 datos acumulados a febrero de 2017.

Sheet Disponibilidad Peninsular mes
O1: 17
L4: Concepto
L5: Horizonte temporal
L6: Periodo
C8: Ene. | D8: Feb. | E8: Mar. | F8: Abr. | G8: May. | H8: Jun. | I8: Jul. | J8: Ago. | K8: Sep. | L8: Oct. | M8: Nov. | N8: Dic. | O8: =OFFSET(Año!B13,($O$1-1),0) -> 2017
B10: Nuclear | C10: =OFFSET(Datos!C24,0,($O$1-1)*13) -> 93.97760495 | D10: =OFFSET(Datos!D24,0,($O$1-1)*13) -> 93.92600705 | E10: =OFFSET(Datos!E24,0,($O$1-1)*13) -> - | F10: =OFFSET(Datos!F24,0,($O$1-1)*13) -> - | G10: =OFFSET(Datos!G24,0,($O$1-1)*13) -> - | H10: =OFFSET(Datos!H24,0,($O$1-1)*13) -> - | I10: =OFFSET(Datos!I24,0,($O$1-1)*13) -> - | J10: =OFFSET(Datos!J24,0,($O$1-1)*13) -> - | K10: =OFFSET(Datos!K24,0,($O$1-1)*13) -> - | L10: =OFFSET(Datos!L24,0,($O$1-1)*13) -> - | M10: =OFFSET(Datos!M24,0,($O$1-1)*13) -> - | N10: =OFFSET(Datos!N24,0,($O$1-1)*13) -> - | O10: =OFFSET(Datos!O24,0,($O$1-1)*13) -> 93.95311781
B11: Carbón | C11: =OFFSET(Datos!C25,0,($O$1-1)*13) -> 86.1791841 | D11: =OFFSET(Datos!D25,0,($O$1-1)*13) -> 88.51944295 | E11: =OFFSET(Datos!E25,0,($O$1-1)*13) -> - | F11: =OFFSET(Datos!F25,0,($O$1-1)*13) -> - | G11: =OFFSET(Datos!G25,0,($O$1-1)*13) -> - | H11: =OFFSET(Datos!H25,0,($O$1-1)*13) -> - | I11: =OFFSET(Datos!I25,0,($O$1-1)*13) -> - | J11: =OFFSET(Datos!J25,0,($O$1-1)*13) -> - | K11: =OFFSET(Datos!K25,0,($O$1-1)*13) -> - | L11: =OFFSET(Datos!L25,0,($O$1-1)*13) -> - | M11: =OFFSET(Datos!M25,0,($O$1-1)*13) -> - | N11: =OFFSET(Datos!N25,0,($O$1-1)*13) -> - | O11: =OFFSET(Datos!O25,0,($O$1-1)*13) -> 87.28981542
B12: Fuel + Gas | C12: =OFFSET(Datos!C26,0,($O$1-1)*13) -> - | D12: =OFFSET(Datos!D26,0,($O$1-1)*13) -> - | E12: =OFFSET(Datos!E26,0,($O$1-1)*13) -> - | F12: =OFFSET(Datos!F26,0,($O$1-1)*13) -> - | G12: =OFFSET(Datos!G26,0,($O$1-1)*13) -> - | H12: =OFFSET(Datos!H26,0,($O$1-1)*13) -> - | I12: =OFFSET(Datos!I26,0,($O$1-1)*13) -> - | J12: =OFFSET(Datos!J26,0,($O$1-1)*13) -> - | K12: =OFFSET(Datos!K26,0,($O$1-1)*13) -> - | L12: =OFFSET(Datos!L26,0,($O$1-1)*13) -> - | M12: =OFFSET(Datos!M26,0,($O$1-1)*13) -> - | N12: =OFFSET(Datos!N26,0,($O$1-1)*13) -> - | O12: =OFFSET(Datos!O26,0,($O$1-1)*13) -> -
B13: Ciclo combinado | C13: =OFFSET(Datos!C27,0,($O$1-1)*13) -> 92.85152706 | D13: =OFFSET(Datos!D27,0,($O$1-1)*13) -> 94.2756295 | E13: =OFFSET(Datos!E27,0,($O$1-1)*13) -> - | F13: =OFFSET(Datos!F27,0,($O$1-1)*13) -> - | G13: =OFFSET(Datos!G27,0,($O$1-1)*13) -> - | H13: =OFFSET(Datos!H27,0,($O$1-1)*13) -> - | I13: =OFFSET(Datos!I27,0,($O$1-1)*13) -> - | J13: =OFFSET(Datos!J27,0,($O$1-1)*13) -> - | K13: =OFFSET(Datos!K27,0,($O$1-1)*13) -> - | L13: =OFFSET(Datos!L27,0,($O$1-1)*13) -> - | M13: =OFFSET(Datos!M27,0,($O$1-1)*13) -> - | N13: =OFFSET(Datos!N27,0,($O$1-1)*13) -> - | O13: =OFFSET(Datos!O27,0,($O$1-1)*13) -> 93.52737229
B14: Disponibilidad | C14: =OFFSET(Datos!C28,0,($O$1-1)*13) -> 91.54139128 | D14: =OFFSET(Datos!D28,0,($O$1-1)*13) -> 92.90751148 | E14: =OFFSET(Datos!E28,0,($O$1-1)*13) -> - | F14: =OFFSET(Datos!F28,0,($O$1-1)*13) -> - | G14: =OFFSET(Datos!G28,0,($O$1-1)*13) -> - | H14: =OFFSET(Datos!H28,0,($O$1-1)*13) -> - | I14: =OFFSET(Datos!I28,0,($O$1-1)*13) -> - | J14: =OFFSET(Datos!J28,0,($O$1-1)*13) -> - | K14: =OFFSET(Datos!K28,0,($O$1-1)*13) -> - | L14: =OFFSET(Datos!L28,0,($O$1-1)*13) -> - | M14: =OFFSET(Datos!M28,0,($O$1-1)*13) -> - | N14: =OFFSET(Datos!N28,0,($O$1-1)*13) -> - | O14: =OFFSET(Datos!O28,0,($O$1-1)*13) -> 92.18971951
B16: Datos a último día de cada mes.

Sheet Disponibilidad Peninsular año
J1: 3
H4: Concepto
H5: Horizonte temporal
H6: Periodo
C8: =OFFSET(Datos!C58,0,($J$1-1)*8) -> 2017 | D8: =OFFSET(Datos!D58,0,($J$1-1)*8) -> 2018 | E8: =OFFSET(Datos!E58,0,($J$1-1)*8) -> 2019 | F8: =OFFSET(Datos!F58,0,($J$1-1)*8) -> 2020 | G8: =OFFSET(Datos!G58,0,($J$1-1)*8) -> 2021 | H8: =OFFSET(Datos!H58,0,($J$1-1)*8) -> 2022 | I8: =OFFSET(Datos!I58,0,($J$1-1)*8) -> 2023 | J8: =OFFSET(Datos!J58,0,($J$1-1)*8) -> 2024
B10: Nuclear | C10: =OFFSET(Datos!C59,0,($J$1-1)*8) -> 93.95311781 | D10: =OFFSET(Datos!D59,0,($J$1-1)*8) -> - | E10: =OFFSET(Datos!E59,0,($J$1-1)*8) -> - | F10: =OFFSET(Datos!F59,0,($J$1-1)*8) -> - | G10: =OFFSET(Datos!G59,0,($J$1-1)*8) -> - | H10: =OFFSET(Datos!H59,0,($J$1-1)*8) -> - | I10: =OFFSET(Datos!I59,0,($J$1-1)*8) -> - | J10: =OFFSET(Datos!J59,0,($J$1-1)*8) -> -
B11: Carbón | C11: =OFFSET(Datos!C60,0,($J$1-1)*8) -> 87.28981542 | D11: =OFFSET(Datos!D60,0,($J$1-1)*8) -> - | E11: =OFFSET(Datos!E60,0,($J$1-1)*8) -> - | F11: =OFFSET(Datos!F60,0,($J$1-1)*8) -> - | G11: =OFFSET(Datos!G60,0,($J$1-1)*8) -> - | H11: =OFFSET(Datos!H60,0,($J$1-1)*8) -> - | I11: =OFFSET(Datos!I60,0,($J$1-1)*8) -> - | J11: =OFFSET(Datos!J60,0,($J$1-1)*8) -> -
B12: Fuel + Gas | C12: =OFFSET(Datos!C61,0,($J$1-1)*8) -> - | D12: =OFFSET(Datos!D61,0,($J$1-1)*8) -> - | E12: =OFFSET(Datos!E61,0,($J$1-1)*8) -> - | F12: =OFFSET(Datos!F61,0,($J$1-1)*8) -> - | G12: =OFFSET(Datos!G61,0,($J$1-1)*8) -> - | H12: =OFFSET(Datos!H61,0,($J$1-1)*8) -> - | I12: =OFFSET(Datos!I61,0,($J$1-1)*8) -> - | J12: =OFFSET(Datos!J61,0,($J$1-1)*8) -> -
B13: Ciclo combinado | C13: =OFFSET(Datos!C62,0,($J$1-1)*8) -> 93.52737229 | D13: =OFFSET(Datos!D62,0,($J$1-1)*8) -> - | E13: =OFFSET(Datos!E62,0,($J$1-1)*8) -> - | F13: =OFFSET(Datos!F62,0,($J$1-1)*8) -> - | G13: =OFFSET(Datos!G62,0,($J$1-1)*8) -> - | H13: =OFFSET(Datos!H62,0,($J$1-1)*8) -> - | I13: =OFFSET(Datos!I62,0,($J$1-1)*8) -> - | J13: =OFFSET(Datos!J62,0,($J$1-1)*8) -> -
B14: Disponibilidad | C14: =OFFSET(Datos!C63,0,($J$1-1)*8) -> 92.18971951 | D14: =OFFSET(Datos!D63,0,($J$1-1)*8) -> - | E14: =OFFSET(Datos!E63,0,($J$1-1)*8) -> - | F14: =OFFSET(Datos!F63,0,($J$1-1)*8) -> - | G14: =OFFSET(Datos!G63,0,($J$1-1)*8) -> - | H14: =OFFSET(Datos!H63,0,($J$1-1)*8) -> - | I14: =OFFSET(Datos!I63,0,($J$1-1)*8) -> - | J14: =OFFSET(Datos!J63,0,($J$1-1)*8) -> -
B16: =IF(MONTH(FACT)=1,"Datos acumulados a 31 de diciembre.",CONCATENATE("Datos acumulados a 31 de diciembre. Para el año ",YEAR(FACT), " datos acumulados a ",TEXT(FACT-30,"mmmm")," de ",YEAR(FACT),".")) -> Datos acumulados a 31 de diciembre. Para el año 2017 datos acumulados a febrero de 2017.

Sheet Horas funcionamiento mes
O1: 17
L4: Concepto
L5: Horizonte temporal
L6: Periodo
C8: Ene. | D8: Feb. | E8: Mar. | F8: Abr. | G8: May. | H8: Jun. | I8: Jul. | J8: Ago. | K8: Sep. | L8: Oct. | M8: Nov. | N8: Dic. | O8: =OFFSET(Año!B13,($O$1-1),0) -> 2017
B10: Nuclear | C10: =OFFSET(Datos!C31,0,($O$1-1)*13) -> 699.2681173 | D10: =OFFSET(Datos!D31,0,($O$1-1)*13) -> 631.5970092 | E10: =OFFSET(Datos!E31,0,($O$1-1)*13) -> - | F10: =OFFSET(Datos!F31,0,($O$1-1)*13) -> - | G10: =OFFSET(Datos!G31,0,($O$1-1)*13) -> - | H10: =OFFSET(Datos!H31,0,($O$1-1)*13) -> - | I10: =OFFSET(Datos!I31,0,($O$1-1)*13) -> - | J10: =OFFSET(Datos!J31,0,($O$1-1)*13) -> - | K10: =OFFSET(Datos!K31,0,($O$1-1)*13) -> - | L10: =OFFSET(Datos!L31,0,($O$1-1)*13) -> - | M10: =OFFSET(Datos!M31,0,($O$1-1)*13) -> - | N10: =OFFSET(Datos!N31,0,($O$1-1)*13) -> - | O10: =OFFSET(Datos!O31,0,($O$1-1)*13) -> 1330.865127
B11: Carbón | C11: =OFFSET(Datos!C32,0,($O$1-1)*13) -> 611.0694714 | D11: =OFFSET(Datos!D32,0,($O$1-1)*13) -> 457.4198159 | E11: =OFFSET(Datos!E32,0,($O$1-1)*13) -> - | F11: =OFFSET(Datos!F32,0,($O$1-1)*13) -> - | G11: =OFFSET(Datos!G32,0,($O$1-1)*13) -> - | H11: =OFFSET(Datos!H32,0,($O$1-1)*13) -> - | I11: =OFFSET(Datos!I32,0,($O$1-1)*13) -> - | J11: =OFFSET(Datos!J32,0,($O$1-1)*13) -> - | K11: =OFFSET(Datos!K32,0,($O$1-1)*13) -> - | L11: =OFFSET(Datos!L32,0,($O$1-1)*13) -> - | M11: =OFFSET(Datos!M32,0,($O$1-1)*13) -> - | N11: =OFFSET(Datos!N32,0,($O$1-1)*13) -> - | O11: =OFFSET(Datos!O32,0,($O$1-1)*13) -> 1068.489287
B12: Fuel + Gas | C12: =OFFSET(Datos!C33,0,($O$1-1)*13) -> - | D12: =OFFSET(Datos!D33,0,($O$1-1)*13) -> - | E12: =OFFSET(Datos!E33,0,($O$1-1)*13) -> - | F12: =OFFSET(Datos!F33,0,($O$1-1)*13) -> - | G12: =OFFSET(Datos!G33,0,($O$1-1)*13) -> - | H12: =OFFSET(Datos!H33,0,($O$1-1)*13) -> - | I12: =OFFSET(Datos!I33,0,($O$1-1)*13) -> - | J12: =OFFSET(Datos!J33,0,($O$1-1)*13) -> - | K12: =OFFSET(Datos!K33,0,($O$1-1)*13) -> - | L12: =OFFSET(Datos!L33,0,($O$1-1)*13) -> - | M12: =OFFSET(Datos!M33,0,($O$1-1)*13) -> - | N12: =OFFSET(Datos!N33,0,($O$1-1)*13) -> - | O12: =OFFSET(Datos!O33,0,($O$1-1)*13) -> -
B13: Ciclo combinado | C13: =OFFSET(Datos!C34,0,($O$1-1)*13) -> 214.9286191 | D13: =OFFSET(Datos!D34,0,($O$1-1)*13) -> 132.1775774 | E13: =OFFSET(Datos!E34,0,($O$1-1)*13) -> - | F13: =OFFSET(Datos!F34,0,($O$1-1)*13) -> - | G13: =OFFSET(Datos!G34,0,($O$1-1)*13) -> - | H13: =OFFSET(Datos!H34,0,($O$1-1)*13) -> - | I13: =OFFSET(Datos!I34,0,($O$1-1)*13) -> - | J13: =OFFSET(Datos!J34,0,($O$1-1)*13) -> - | K13: =OFFSET(Datos!K34,0,($O$1-1)*13) -> - | L13: =OFFSET(Datos!L34,0,($O$1-1)*13) -> - | M13: =OFFSET(Datos!M34,0,($O$1-1)*13) -> - | N13: =OFFSET(Datos!N34,0,($O$1-1)*13) -> - | O13: =OFFSET(Datos!O34,0,($O$1-1)*13) -> 347.1061965
B14: Horas de funcionamiento | C14: =OFFSET(Datos!C35,0,($O$1-1)*13) -> 391.9596953 | D14: =OFFSET(Datos!D35,0,($O$1-1)*13) -> 295.8482812 | E14: =OFFSET(Datos!E35,0,($O$1-1)*13) -> - | F14: =OFFSET(Datos!F35,0,($O$1-1)*13) -> - | G14: =OFFSET(Datos!G35,0,($O$1-1)*13) -> - | H14: =OFFSET(Datos!H35,0,($O$1-1)*13) -> - | I14: =OFFSET(Datos!I35,0,($O$1-1)*13) -> - | J14: =OFFSET(Datos!J35,0,($O$1-1)*13) -> - | K14: =OFFSET(Datos!K35,0,($O$1-1)*13) -> - | L14: =OFFSET(Datos!L35,0,($O$1-1)*13) -> - | M14: =OFFSET(Datos!M35,0,($O$1-1)*13) -> - | N14: =OFFSET(Datos!N35,0,($O$1-1)*13) -> - | O14: =OFFSET(Datos!O35,0,($O$1-1)*13) -> 687.8079765
B16: Datos a último día de cada mes.

Sheet Horas funcionamiento año
J1: 3
H4: Concepto
H5: Horizonte temporal
H6: Periodo
C8: =OFFSET(Datos!C58,0,($J$1-1)*8) -> 2017 | D8: =OFFSET(Datos!D58,0,($J$1-1)*8) -> 2018 | E8: =OFFSET(Datos!E58,0,($J$1-1)*8) -> 2019 | F8: =OFFSET(Datos!F58,0,($J$1-1)*8) -> 2020 | G8: =OFFSET(Datos!G58,0,($J$1-1)*8) -> 2021 | H8: =OFFSET(Datos!H58,0,($J$1-1)*8) -> 2022 | I8: =OFFSET(Datos!I58,0,($J$1-1)*8) -> 2023 | J8: =OFFSET(Datos!J58,0,($J$1-1)*8) -> 2024
B10: Nuclear | C10: =OFFSET(Datos!C66,0,($J$1-1)*8) -> 1330.865127 | D10: =OFFSET(Datos!D66,0,($J$1-1)*8) -> - | E10: =OFFSET(Datos!E66,0,($J$1-1)*8) -> - | F10: =OFFSET(Datos!F66,0,($J$1-1)*8) -> - | G10: =OFFSET(Datos!G66,0,($J$1-1)*8) -> - | H10: =OFFSET(Datos!H66,0,($J$1-1)*8) -> - | I10: =OFFSET(Datos!I66,0,($J$1-1)*8) -> - | J10: =OFFSET(Datos!J66,0,($J$1-1)*8) -> -
B11: Carbón | C11: =OFFSET(Datos!C67,0,($J$1-1)*8) -> 1068.489287 | D11: =OFFSET(Datos!D67,0,($J$1-1)*8) -> - | E11: =OFFSET(Datos!E67,0,($J$1-1)*8) -> - | F11: =OFFSET(Datos!F67,0,($J$1-1)*8) -> - | G11: =OFFSET(Datos!G67,0,($J$1-1)*8) -> - | H11: =OFFSET(Datos!H67,0,($J$1-1)*8) -> - | I11: =OFFSET(Datos!I67,0,($J$1-1)*8) -> - | J11: =OFFSET(Datos!J67,0,($J$1-1)*8) -> -
B12: Fuel + Gas | C12: =OFFSET(Datos!C68,0,($J$1-1)*8) -> - | D12: =OFFSET(Datos!D68,0,($J$1-1)*8) -> - | E12: =OFFSET(Datos!E68,0,($J$1-1)*8) -> - | F12: =OFFSET(Datos!F68,0,($J$1-1)*8) -> - | G12: =OFFSET(Datos!G68,0,($J$1-1)*8) -> - | H12: =OFFSET(Datos!H68,0,($J$1-1)*8) -> - | I12: =OFFSET(Datos!I68,0,($J$1-1)*8) -> - | J12: =OFFSET(Datos!J68,0,($J$1-1)*8) -> -
B13: Ciclo combinado | C13: =OFFSET(Datos!C69,0,($J$1-1)*8) -> 347.1061965 | D13: =OFFSET(Datos!D69,0,($J$1-1)*8) -> - | E13: =OFFSET(Datos!E69,0,($J$1-1)*8) -> - | F13: =OFFSET(Datos!F69,0,($J$1-1)*8) -> - | G13: =OFFSET(Datos!G69,0,($J$1-1)*8) -> - | H13: =OFFSET(Datos!H69,0,($J$1-1)*8) -> - | I13: =OFFSET(Datos!I69,0,($J$1-1)*8) -> - | J13: =OFFSET(Datos!J69,0,($J$1-1)*8) -> -
B14: Horas de funcionamiento | C14: =OFFSET(Datos!C70,0,($J$1-1)*8) -> 687.8079765 | D14: =OFFSET(Datos!D70,0,($J$1-1)*8) -> - | E14: =OFFSET(Datos!E70,0,($J$1-1)*8) -> - | F14: =OFFSET(Datos!F70,0,($J$1-1)*8) -> - | G14: =OFFSET(Datos!G70,0,($J$1-1)*8) -> - | H14: =OFFSET(Datos!H70,0,($J$1-1)*8) -> - | I14: =OFFSET(Datos!I70,0,($J$1-1)*8) -> - | J14: =OFFSET(Datos!J70,0,($J$1-1)*8) -> -
B16: =IF(MONTH(FACT)=1,"Datos acumulados a 31 de diciembre.",CONCATENATE("Datos acumulados a 31 de diciembre. Para el año ",YEAR(FACT), " datos acumulados a ",TEXT(FACT-30,"mmmm")," de ",YEAR(FACT),".")) -> Datos acumulados a 31 de diciembre. Para el año 2017 datos acumulados a febrero de 2017.

Sheet Datos (hidden)
B2: Indisponibilidad equipo térmico mensual peninsular (%) Tipo permanente | C2: 2001-01-01 | D2: 2001-02-01 | E2: 2001-03-01 | F2: 2001-04-01 | G2: 2001-05-01 | H2: 2001-06-01 | I2: 2001-07-01 | J2: 2001-08-01 | K2: 2001-09-01 | L2: 2001-10-01 | M2: 2001-11-01 | N2: 2001-12-01 | O2: 2001 | P2: 2002-01-01 | Q2: 2002-02-01 | R2: 2002-03-01 | S2: 2002-04-01 | T2: 2002-05-01 | U2: 2002-06-01 | V2: 2002-07-01 | W2: 2002-08-01 | X2: 2002-09-01 | Y2: 2002-10-01 | Z2: 2002-11-01 | AA2: 2002-12-01 | AB2: 2002 | AC2: 2003-01-01 | AD2: 2003-02-01 | AE2: 2003-03-01 | AF2: 2003-04-01 | AG2: 2003-05-01 | AH2: 2003-06-01 | AI2: 2003-07-01 | AJ2: 2003-08-01 | AK2: 2003-09-01 | AL2: 2003-10-01 | AM2: 2003-11-01 | AN2: 2003-12-01 | AO2: 2003 | AP2: 2004-01-01 | AQ2: 2004-02-01 | AR2: 2004-03-01 | AS2: 2004-04-01 | AT2: 2004-05-01 | AU2: 2004-06-01 | AV2: 2004-07-01 | AW2: 2004-08-01 | AX2: 2004-09-01 | AY2: 2004-10-01 | AZ2: 2004-11-01 | BA2: 2004-12-01 | BB2: 2004 | BC2: 2005-01-01 | BD2: 2005-02-01 | BE2: 2005-03-01 | BF2: 2005-04-01 | BG2: 2005-05-01 | BH2: 2005-06-01 | BI2: 2005-07-01 | BJ2: 2005-08-01 | BK2: 2005-09-01 | BL2: 2005-10-01 | BM2: 2005-11-01 | BN2: 2005-12-01 | BO2: 2005 | BP2: 2006-01-01 | BQ2: 2006-02-01 | BR2: 2006-03-01 | BS2: 2006-04-01 | BT2: 2006-05-01 | BU2: 2006-06-01 | BV2: 2006-07-01 | BW2: 2006-08-01 | BX2: 2006-09-01 | BY2: 2006-10-01 | BZ2: 2006-11-01 | CA2: 2006-12-01 | CB2: 2006 | CC2: 2007-01-01 | CD2: 2007-02-01 | CE2: 2007-03-01 | CF2: 2007-04-01 | CG2: 2007-05-01 | CH2: 2007-06-01 | CI2: 2007-07-01 | CJ2: 2007-08-01 | CK2: 2007-09-01 | CL2: 2007-10-01 | CM2: 2007-11-01 | CN2: 2007-12-01 | CO2: 2007 | CP2: 2008-01-01 | CQ2: 2008-02-01 | CR2: 2008-03-01 | CS2: 2008-04-01 | CT2: 2008-05-01 | CU2: 2008-06-01 | CV2: 2008-07-01 | CW2: 2008-08-01 | CX2: 2008-09-01 | CY2: 2008-10-01 | CZ2: 2008-11-01 | DA2: 2008-12-01 | DB2: 2008 | DC2: 2009-01-01 | DD2: 2009-02-01 | DE2: 2009-03-01 | DF2: 2009-04-01 | DG2: 2009-05-01 | DH2: 2009-06-01 | DI2: 2009-07-01 | DJ2: 2009-08-01 | DK2: 2009-09-01 | DL2: 2009-10-01 | DM2: 2009-11-01 | DN2: 2009-12-01 | DO2: 2009 | DP2: 2010-01-31 | DQ2: 2010-02-28 | DR2: 2010-03-31 | DS2: 2010-04-30 | DT2: 2010-05-31 | DU2: 2010-06-30 | DV2: 2010-07-31 | DW2: 2010-08-31 | DX2: 2010-09-30 | DY2: 2010-10-31 | DZ2: 2010-11-30 | EA2: 2010-12-31 | EB2: 2010 | EC2: 2011-01-31 | ED2: 2011-02-28 | EE2: 2011-03-31 | EF2: 2011-04-30 | EG2: 2011-05-31 | EH2: 2011-06-30 | EI2: 2011-07-31 | EJ2: 2011-08-31 | EK2: 2011-09-30 | EL2: 2011-10-31 | EM2: 2011-11-30 | EN2: 2011-12-31 | EO2: 2011 | EP2: 2012-01-31 | EQ2: 2012-02-29 | ER2: 2012-03-31 | ES2: 2012-04-30 | ET2: 2012-05-31 | EU2: 2012-06-30 | EV2: 2012-07-31 | EW2: 2012-08-31 | EX2: 2012-09-30 | EY2: 2012-10-31 | EZ2: 2012-11-30 | FA2: 2012-12-31 | FB2: 2012 | FC2: 2013-01-31 | FD2: 2013-02-28 | FE2: 2013-03-31 | FF2: 2013-04-30 | FG2: 2013-05-31 | FH2: 2013-06-30 | FI2: 2013-07-31 | FJ2: 2013-08-31 | FK2: 2013-09-30 | FL2: 2013-10-31 | FM2: 2013-11-30 | FN2: 2013-12-31 | FO2: 2013 | FP2: 2014-01-31 | FQ2: 2014-02-28 | FR2: 2014-03-31 | FS2: 2014-04-30 | FT2: 2014-05-31 | FU2: 2014-06-30 | FV2: 2014-07-31 | FW2: 2014-08-31 | FX2: 2014-09-30 | FY2: 2014-10-31 | FZ2: 2014-11-30 | GA2: 2014-12-31 | GB2: 2014 | GC2: 2015-01-31 | GD2: 2015-02-28 | GE2: 2015-03-31 | GF2: 2015-04-30 | GG2: 2015-05-31 | GH2: 2015-06-30 | GI2: 2015-07-31 | GJ2: 2015-08-31 | GK2: 2015-09-30 | GL2: 2015-10-31 | GM2: 2015-11-30 | GN2: 2015-12-31 | GO2: 2015 | GP2: 2016-01-31 | GQ2: 2016-02-29 | GR2: 2016-03-31 | GS2: 2016-04-30 | GT2: 2016-05-31 | GU2: 2016-06-30 | GV2: 2016-07-31 | GW2: 2016-08-31 | GX2: 2016-09-30 | GY2: 2016-10-31 | GZ2: 2016-11-30 | HA2: 2016-12-31 | HB2: 2016 | HC2: 2017-01-31 | HD2: 2017-02-28 | HE2: 2017-03-31 | HF2: 2017-04-30 | HG2: 2017-05-31 | HH2: 2017-06-30 | HI2: 2017-07-31 | HJ2: 2017-08-31 | HK2: 2017-09-30 | HL2: 2017-10-31 | HM2: 2017-11-30 | HN2: 2017-12-31 | HO2: 2017
B3: Nuclear | C3: 0 | D3: 0 | E3: 0 | F3: 0 | G3: 0 | H3: 0 | I3: 0 | J3: 0 | K3: 0 | L3: 0 | M3: 0 | N3: 0 | O3: 0 | P3: 0 | Q3: 0 | R3: 0 | S3: 0 | T3: 0 | U3: 0 | V3: 0 | W3: 0 | X3: 0 | Y3: 0 | Z3: 0 | AA3: 0 | AB3: 0 | AC3: 0 | AD3: 0 | AE3: 0 | AF3: 0 | AG3: 0 | AH3: 0 | AI3: 0 | AJ3: 0 | AK3: 0 | AL3: 0 | AM3: 0 | AN3: 0 | AO3: 0 | AP3: 0 | AQ3: 0 | AR3: 0 | AS3: 0 | AT3: 0 | AU3: 0 | AV3: 0 | AW3: 0 | AX3: 0 | AY3: 0 | AZ3: 0 | BA3: 0 | BB3: 0 | BC3: 0 | BD3: 0 | BE3: 0 | BF3: 0 | BG3: 0 | BH3: 0 | BI3: 0 | BJ3: 0 | BK3: 0 | BL3: 0 | BM3: 0 | BN3: 0 | BO3: 0 | BP3: 0 | BQ3: 0 | BR3: 0 | BS3: 0 | BT3: 0 | BU3: 0 | BV3: 0 | BW3: 0 | BX3: 0 | BY3: 0 | BZ3: 0 | CA3: 0 | CB3: 0 | CC3: 0 | CD3: 0 | CE3: 0 | CF3: 0 | CG3: 0 | CH3: 0 | CI3: 0 | CJ3: 0 | CK3: 0 | CL3: 0 | CM3: 0 | CN3: 0 | CO3: 0 | CP3: 0 | CQ3: 0 | CR3: 0 | CS3: 0 | CT3: 0 | CU3: 0 | CV3: 0 | CW3: 0 | CX3: 0 | CY3: 0 | CZ3: 0 | DA3: 0 | DB3: 0 | DC3: 0 | DD3: 0 | DE3: 0 | DF3: 0 | DG3: 0 | DH3: 0 | DI3: 0 | DJ3: 0 | DK3: 0 | DL3: 0 | DM3: 0 | DN3: 0 | DO3: 0 | DP3: 0 | DQ3: 0 | DR3: 0 | DS3: 0 | DT3: 0 | DU3: 0 | DV3: 0 | DW3: 0 | DX3: 0 | DY3: 0 | DZ3: 0 | EA3: 0 | EB3: 0 | EC3: 0 | ED3: 0 | EE3: 0 | EF3: 0 | EG3: 0 | EH3: 0 | EI3: 0 | EJ3: 0 | EK3: 0 | EL3: 0 | EM3: 0 | EN3: 0 | EO3: 0 | EP3: 0 | EQ3: 0 | ER3: 0 | ES3: 0 | ET3: 0 | EU3: 0 | EV3: 0 | EW3: 0 | EX3: 0 | EY3: 0 | EZ3: 0 | FA3: 2.909201526 | FB3: 0.2464077795 | FC3: 6.01234982 | FD3: 6.01234982 | FE3: 6.01234982 | FF3: 6.01234982 | FG3: 6.01234982 | FH3: 6.01234982 | FI3: 6.01234982 | FJ3: 6.01234982 | FK3: 6.01234982 | FL3: 6.01234982 | FM3: 6.01234982 | FN3: 6.01234982 | FO3: 6.01234982 | FP3: 6.01234982 | FQ3: 6.01234982 | FR3: 6.01234982 | FS3: 6.01234982 | FT3: 6.01234982 | FU3: 6.01234982 | FV3: 6.01234982 | FW3: 6.01234982 | FX3: 6.01234982 | FY3: 6.01234982 | FZ3: 6.01234982 | GA3: 6.01234982 | GB3: 6.01234982 | GC3: 6.01234982 | GD3: 6.01234982 | GE3: 6.01234982 | GF3: 6.01234982 | GG3: 6.01234982 | GH3: 6.01234982 | GI3: 6.01234982 | GJ3: 6.01234982 | GK3: 6.01234982 | GL3: 6.01234982 | GM3: 6.01234982 | GN3: 6.01234982 | GO3: 6.01234982 | GP3: 6.01234982 | GQ3: 6.01234982 | GR3: 6.01234982 | GS3: 6.01234982 | GT3: 6.01234982 | GU3: 6.01234982 | GV3: 6.01234982 | GW3: 6.01234982 | GX3: 6.01234982 | GY3: 6.01234982 | GZ3: 6.01234982 | HA3: 6.01234982 | HB3: 6.01234982 | HC3: 6.01234982 | HD3: 6.01234982 | HE3: - | HF3: - | HG3: - | HH3: - | HI3: - | HJ3: - | HK3: - | HL3: - | HM3: - | HN3: - | HO3: 6.01234982
B4: Carbón | C4: 0 | D4: 0 | E4: 0 | F4: 0 | G4: 0 | H4: 0 | I4: 0 | J4: 0 | K4: 0 | L4: 0 | M4: 0 | N4: 0 | O4: 0 | P4: 0 | Q4: 0 | R4: 0.7619745522 | S4: 1.201798179 | T4: 1.201798179 | U4: 1.201798179 | V4: 1.201798179 | W4: 1.201798179 | X4: 1.201798179 | Y4: 1.202032295 | Z4: 1.202602323 | AA4: 1.203148812 | AB4: 0.97044967 | AC4: 1.203491392 | AD4: 1.203491392 | AE4: 1.203491392 | AF4: 1.203491392 | AG4: 1.203491392 | AH4: 1.204495212 | AI4: 1.204495212 | AJ4: 1.204495212 | AK4: 1.204495212 | AL4: 1.204495212 | AM4: 1.203269274 | AN4: 1.203269274 | AO4: 1.203874929 | AP4: 1.203269274 | AQ4: 1.203269274 | AR4: 1.204187861 | AS4: 1.205071448 | AT4: 1.205071448 | AU4: 1.205071448 | AV4: 1.205071448 | AW4: 1.205071448 | AX4: 1.205071448 | AY4: 1.205071448 | AZ4: 1.205071448 | BA4: 1.205071448 | BB4: 1.204700887 | BC4: 1.205071448 | BD4: 1.205071448 | BE4: 1.20438723 | BF4: 1.20438723 | BG4: 0.1570522544 | BH4: 0 | BI4: 0 | BJ4: 0 | BK4: 0 | BL4: 0 | BM4: 0 | BN4: 0 | BO4: 0.412341659 | BP4: 0 | BQ4: 0 | BR4: 0 | BS4: 0 | BT4: 0 | BU4: 0 | BV4: 0 | BW4: 0 | BX4: 0 | BY4: 0 | BZ4: 0 | CA4: 0 | CB4: 0 | CC4: 0.6133116081 | CD4: 0.6133116081 | CE4: 0.6134042563 | CF4: 0.6134042563 | CG4: 0.6134042563 | CH4: 0.6134042563 | CI4: 0.6134042563 | CJ4: 0.6134042563 | CK4: 0.6134042563 | CL4: 0.6134042563 | CM4: 0.6134042563 | CN4: 0.6169434748 | CO4: 0.6136882701 | CP4: 0.6170764392 | CQ4: 0.6170764392 | CR4: 0.617147489 | CS4: 0.617147489 | CT4: 0.617147489 | CU4: 0.617147489 | CV4: 0.617147489 | CW4: 0.617147489 | CX4: 0.617147489 | CY4: 0.617147489 | CZ4: 0.617147489 | DA4: 0.6171336641 | DB4: 0.6171346695 | DC4: 0.617147489 | DD4: 0.617147489 | DE4: 0.617147489 | DF4: 0.617147489 | DG4: 0.617147489 | DH4: 0.617147489 | DI4: 0.617147489 | DJ4: 0.617147489 | DK4: 0.617147489 | DL4: 0.617147489 | DM4: 0.617147489 | DN4: 0.617147489 | DO4: 0.617147489 | DP4: 0.617147489 | DQ4: 0.617147489 | DR4: 0.617147489 | DS4: 0.617147489 | DT4: 0.617147489 | DU4: 0.617147489 | DV4: 0.617147489 | DW4: 0.6161514445 | DX4: 0.6161514445 | DY4: 0.6161514445 | DZ4: 0.6161514445 | EA4: 0.6153094813 | EB4: 0.6166578872 | EC4: 0 | ED4: 0 | EE4: 0 | EF4: 0 | EG4: 0 | EH4: 0 | EI4: 0 | EJ4: 0 | EK4: 0 | EL4: 0 | EM4: 0 | EN4: 0.4128300207 | EO4: 0.03501136465 | EP4: 1.274264519 | EQ4: 1.314913734 | ER4: 1.314913734 | ES4: 1.314913734 | ET4: 1.314913734 | EU4: 0.7931125957 | EV4: 0 | EW4: 0 | EX4: 0 | EY4: 0 | EZ4: 0.09191963071 | FA4: 0.7633003804 | FB4: 0.6830451381 | FC4: 1.343498684 | FD4: 1.342419945 | FE4: 1.341612027 | FF4: 1.341612027 | FG4: 1.341612027 | FH4: 1.341612027 | FI4: 1.341612027 | FJ4: 1.341612027 | FK4: 1.341612027 | FL4: 1.341612027 | FM4: 1.471170814 | FN4: 3.289409146 | FO4: 1.517921031 | FP4: 3.284993832 | FQ4: 3.284993832 | FR4: 3.284993832 | FS4: 3.284993832 | FT4: 2.864613176 | FU4: 1.969808999 | FV4: 1.969808999 | FW4: 1.969808999 | FX4: 1.969808999 | FY4: 1.969808999 | FZ4: 1.969808999 | GA4: 1.969808999 | GB4: 2.481933908 | GC4: 1.969808999 | GD4: 1.969808999 | GE4: 1.969808999 | GF4: 1.969808999 | GG4: 1.969808999 | GH4: 1.969808999 | GI4: 1.969808999 | GJ4: 1.969808999 | GK4: 1.969808999 | GL4: 1.969808999 | GM4: 1.969808999 | GN4: 1.969808999 | GO4: 1.969808999 | GP4: 1.969764873 | GQ4: 0 | GR4: 0 | GS4: 0 | GT4: 0 | GU4: 0 | GV4: 0 | GW4: 0 | GX4: 0 | GY4: 0 | GZ4: 0 | HA4: 0 | HB4: 0.1803325252 | HC4: 0 | HD4: 0 | HE4: - | HF4: - | HG4: - | HH4: - | HI4: - | HJ4: - | HK4: - | HL4: - | HM4: - | HN4: - | HO4: 0
B5: Fuel + Gas | C5: 3.962123166 | D5: 3.962123166 | E5: 3.962123166 | F5: 3.962123166 | G5: 3.962123166 | H5: 3.962123166 | I5: 3.962123166 | J5: 3.962123166 | K5: 3.962123166 | L5: 3.962123166 | M5: 3.962123166 | N5: 10.86719585 | O5: 4.548581394 | P5: 7.082704396 | Q5: 7.078638838 | R5: 7.078638838 | S5: 7.078638838 | T5: 7.078638838 | U5: 7.078638838 | V5: 7.207972075 | W5: 7.351814133 | X5: 7.355911049 | Y5: 7.364118595 | Z5: 7.364118595 | AA5: 7.37043275 | AB5: 7.205978693 | AC5: 7.373910153 | AD5: 7.433106924 | AE5: 7.755896005 | AF5: 7.937916073 | AG5: 7.951015532 | AH5: 7.974297718 | AI5: 7.974297718 | AJ5: 7.999663425 | AK5: 7.999663425 | AL5: 7.999663425 | AM5: 7.999663425 | AN5: 7.999663425 | AO5: 7.862766326 | AP5: 7.972781129 | AQ5: 7.972781129 | AR5: 7.972781129 | AS5: 7.972781129 | AT5: 7.972781129 | AU5: 7.972781129 | AV5: 7.972781129 | AW5: 7.972781129 | AX5: 7.972781129 | AY5: 7.972781129 | AZ5: 7.989291588 | BA5: 7.989291588 | BB5: 7.975528132 | BC5: 7.989291588 | BD5: 7.989291588 | BE5: 8.345590678 | BF5: 8.358032754 | BG5: 8.358032754 | BH5: 9.736909307 | BI5: 10.79134432 | BJ5: 10.79134432 | BK5: 10.79134432 | BL5: 10.79134432 | BM5: 10.79134432 | BN5: 10.802391 | BO5: 9.626202476 | BP5: 10.79134432 | BQ5: 10.79134432 | BR5: 10.79134432 | BS5: 10.79134432 | BT5: 10.79134432 | BU5: 10.79134432 | BV5: 10.79134432 | BW5: 10.79134432 | BX5: 10.79134432 | BY5: 10.79134432 | BZ5: 10.79134432 | CA5: 10.79134432 | CB5: 10.79134432 | CC5: 15.89344921 | CD5: 15.89344921 | CE5: 15.88467139 | CF5: 15.88467139 | CG5: 15.88467139 | CH5: 15.88467139 | CI5: 16.0144516 | CJ5: 16.54898305 | CK5: 17.89749776 | CL5: 18.12131832 | CM5: 18.12131832 | CN5: 13.90487626 | CO5: 16.31883859 | CP5: 8.493285959 | CQ5: 3.693122929 | CR5: 3.693122929 | CS5: 3.693122929 | CT5: 7.124153262 | CU5: 7.124153262 | CV5: 7.152188841 | CW5: 11.69961029 | CX5: 13.93185151 | CY5: 13.93185151 | CZ5: 13.93185151 | DA5: 8.843252654 | DB5: 8.619173388 | DC5: 7.448674055 | DD5: 7.804102151 | DE5: 7.153127161 | DF5: 7.153127161 | DG5: 7.153127161 | DH5: 7.153127161 | DI5: 7.155564207 | DJ5: 7.633305523 | DK5: 7.709980944 | DL5: 5.719719254 | DM5: 9.034791348 | DN5: 24.29438781 | DO5: 8.487664666 | DP5: 16.74187265 | DQ5: 0 | DR5: 0 | DS5: 0 | DT5: 0 | DU5: 0 | DV5: 0.1406968668 | DW5: 0 | DX5: 0 | DY5: 0.5939161892 | DZ5: 9.816941415 | EA5: 20.79457663 | EB5: 4.245432536 | EC5: 24.12962913 | ED5: 24.12962913 | EE5: 27.59159428 | EF5: 52.42333252 | EG5: 55.37778391 | EH5: 42.05638268 | EI5: 35.62300319 | EJ5: 35.62300319 | EK5: 35.62300319 | EL5: 35.62300319 | EM5: 35.62300319 | EN5: 22.20991105 | EO5: 35.9684447 | EP5: 0 | EQ5: 0 | ER5: 0 | ES5: 0 | ET5: 0 | EU5: 0 | EV5: 0 | EW5: 0 | EX5: 0 | EY5: 0 | EZ5: 0 | FA5: 15.45304926 | FB5: 1.236381506 | FC5: 0 | FD5: 0 | FE5: 0 | FF5: 0 | FG5: 0 | FH5: 0 | FI5: 0 | FJ5: 0 | FK5: 0 | FL5: 0 | FM5: 0 | FN5: 0 | FO5: 0 | FP5: 0 | FQ5: 0 | FR5: 0 | FS5: 0 | FT5: 0 | FU5: 0 | FV5: 0 | FW5: 0 | FX5: 0 | FY5: 0 | FZ5: 0 | GA5: 0 | GB5: 0 | GC5: 0 | GD5: 0 | GE5: 0 | GF5: 0 | GG5: 0 | GH5: - | GI5: - | GJ5: - | GK5: - | GL5: - | GM5: - | GN5: - | GO5: 0 | GP5: - | GQ5: - | GR5: - | GS5: - | GT5: - | GU5: - | GV5: - | GW5: - | GX5: - | GY5: - | GZ5: - | HA5: - | HB5: - | HC5: - | HD5: - | HE5: - | HF5: - | HG5: - | HH5: - | HI5: - | HJ5: - | HK5: - | HL5: - | HM5: - | HN5: - | HO5: -
B6: Ciclo combinado | C6: - | D6: - | E6: - | F6: - | G6: - | H6: - | I6: - | J6: - | K6: - | L6: - | M6: - | N6: - | O6: - | P6: - | Q6: - | R6: 0 | S6: 0 | T6: 0 | U6: 0 | V6: 0 | W6: 0 | X6: 0 | Y6: 0 | Z6: 0 | AA6: 0 | AB6: 0 | AC6: 0 | AD6: 0 | AE6: 0 | AF6: 0 | AG6: 0 | AH6: 0 | AI6: 0 | AJ6: 0 | AK6: 0 | AL6: 0 | AM6: 0 | AN6: 0 | AO6: 0 | AP6: 0 | AQ6: 0 | AR6: 0 | AS6: 0 | AT6: 0 | AU6: 0 | AV6: 0 | AW6: 0 | AX6: 0 | AY6: 0 | AZ6: 0 | BA6: 0 | BB6: 0 | BC6: 0 | BD6: 0 | BE6: 0 | BF6: 0 | BG6: 0 | BH6: 0 | BI6: 0 | BJ6: 0 | BK6: 0 | BL6: 0 | BM6: 0 | BN6: 0 | BO6: 0 | BP6: 0 | BQ6: 0 | BR6: 0 | BS6: 0 | BT6: 0 | BU6: 0 | BV6: 0 | BW6: 0 | BX6: 0 | BY6: 0 | BZ6: 0 | CA6: 0 | CB6: 0 | CC6: 0 | CD6: 0 | CE6: 0 | CF6: 0 | CG6: 0 | CH6: 0 | CI6: 0 | CJ6: 0 | CK6: 0 | CL6: 0 | CM6: 0 | CN6: 0 | CO6: 0 | CP6: 0 | CQ6: 0 | CR6: 0 | CS6: 0 | CT6: 0 | CU6: 0 | CV6: 0 | CW6: 0 | CX6: 0 | CY6: 0 | CZ6: 0 | DA6: 0 | DB6: 0 | DC6: 0 | DD6: 0 | DE6: 0 | DF6: 0 | DG6: 0 | DH6: 0 | DI6: 0 | DJ6: 0 | DK6: 0 | DL6: 0 | DM6: 0 | DN6: 0 | DO6: 0 | DP6: 0 | DQ6: 0 | DR6: 0 | DS6: 0 | DT6: 0 | DU6: 0 | DV6: 0 | DW6: 0 | DX6: 0 | DY6: 0 | DZ6: 0 | EA6: 0 | EB6: 0 | EC6: 0 | ED6: 0 | EE6: 0 | EF6: 0 | EG6: 0 | EH6: 0 | EI6: 0 | EJ6: 0 | EK6: 0 | EL6: 0 | EM6: 0 | EN6: 0 | EO6: 0 | EP6: 0 | EQ6: 0 | ER6: 0 | ES6: 0 | ET6: 0 | EU6: 0 | EV6: 0 | EW6: 0 | EX6: 0 | EY6: 0 | EZ6: 0 | FA6: 0 | FB6: 0 | FC6: 0 | FD6: 0 | FE6: 0 | FF6: 0 | FG6: 0 | FH6: 0 | FI6: 0 | FJ6: 0 | FK6: 0 | FL6: 0 | FM6: 0 | FN6: 0 | FO6: 0 | FP6: 0 | FQ6: 0 | FR6: 0 | FS6: 0 | FT6: 0 | FU6: 0 | FV6: 0 | FW6: 0 | FX6: 0 | FY6: 0 | FZ6: 0 | GA6: 0 | GB6: 0 | GC6: 0 | GD6: 0 | GE6: 0 | GF6: 0 | GG6: 0 | GH6: 0 | GI6: 0 | GJ6: 0 | GK6: 0 | GL6: 0 | GM6: 0 | GN6: 0 | GO6: 0 | GP6: 0 | GQ6: 0 | GR6: 0 | GS6: 0 | GT6: 0 | GU6: 0 | GV6: 0 | GW6: 0 | GX6: 0 | GY6: 0 | GZ6: 0 | HA6: 0 | HB6: 0 | HC6: 0 | HD6: 0 | HE6: - | HF6: - | HG6: - | HH6: - | HI6: - | HJ6: - | HK6: - | HL6: - | HM6: - | HN6: - | HO6: 0
B7: Indisponibilidad permanente | C7: 1.13535574 | D7: 1.13535574 | E7: 1.135139068 | F7: 1.135139068 | G7: 1.134598398 | H7: 1.134093201 | I7: 1.134093201 | J7: 1.134093201 | K7: 1.134106437 | L7: 1.134192478 | M7: 1.134192478 | N7: 3.110830046 | O7: 1.302471106 | P7: 2.027353285 | Q7: 2.025854927 | R7: 2.313471888 | S7: 2.490001947 | T7: 2.389761735 | U7: 2.375186405 | V7: 2.346888945 | W7: 2.348714578 | X7: 2.33977247 | Y7: 2.321458542 | Z7: 2.323912303 | AA7: 2.32707097 | AB7: 2.306107784 | AC7: 2.327918872 | AD7: 2.334953835 | AE7: 2.33196425 | AF7: 2.34489972 | AG7: 2.346914446 | AH7: 2.34898239 | AI7: 2.316347143 | AJ7: 2.265765205 | AK7: 2.261063461 | AL7: 2.261063461 | AM7: 2.260990473 | AN7: 2.259734279 | AO7: 2.304193101 | AP7: 2.22919203 | AQ7: 2.231580269 | AR7: 2.224838777 | AS7: 2.193554782 | AT7: 2.166354823 | AU7: 2.15599062 | AV7: 2.088029229 | AW7: 2.039392081 | AX7: 2.039392081 | AY7: 2.038584862 | AZ7: 1.995032507 | BA7: 1.995032507 | BB7: 2.112214649 | BC7: 1.950094691 | BD7: 1.941604488 | BE7: 1.93990116 | BF7: 1.920184504 | BG7: 1.591221 | BH7: 1.795594959 | BI7: 1.988873995 | BJ7: 1.988863228 | BK7: 1.94726079 | BL7: 1.897692467 | BM7: 1.87421258 | BN7: 1.866320685 | BO7: 1.891286034 | BP7: 1.854851026 | BQ7: 1.827445514 | BR7: 1.808745584 | BS7: 1.796867689 | BT7: 1.803338511 | BU7: 1.784588858 | BV7: 1.716205433 | BW7: 1.716205433 | BX7: 1.716205433 | BY7: 1.716205433 | BZ7: 1.717462023 | CA7: 1.716152304 | CB7: 1.762665502 | CC7: 2.690085413 | CD7: 2.690085413 | CE7: 2.669727313 | CF7: 2.630211811 | CG7: 2.60072507 | CH7: 2.576011511 | CI7: 2.57277508 | CJ7: 2.507208823 | CK7: 2.508550274 | CL7: 2.467171921 | CM7: 2.461279989 | CN7: 1.718564585 | CO7: 2.500400736 | CP7: 1.017797776 | CQ7: 0.5126093826 | CR7: 0.5121677917 | CS7: 0.5096469432 | CT7: 0.8352544947 | CU7: 0.8341358726 | CV7: 0.8344101939 | CW7: 1.267823217 | CX7: 1.480571982 | CY7: 1.480571982 | CZ7: 1.480571982 | DA7: 0.9954057353 | DB7: 0.982867893 | DC7: 0.8618771913 | DD7: 0.895719628 | DE7: 0.8337346346 | DF7: 0.8335631705 | DG7: 0.8306309763 | DH7: 0.823658719 | DI7: 0.8238879668 | DJ7: 0.8285616551 | DK7: 0.8292929847 | DL7: 0.6446218063 | DM7: 0.9171959268 | DN7: 1.888262187 | DO7: 0.917583929 | DP7: 1.199142656 | DQ7: 0.1544380185 | DR7: 0.1544380185 | DS7: 0.1527996499 | DT7: 0.1501001226 | DU7: 0.148973561 | DV7: 0.1554421288 | DW7: 0.1476296734 | DX7: 0.1476296734 | DY7: 0.175734903 | DZ7: 0.6119032741 | EA7: 1.130550217 | EB7: 0.3636880139 | EC7: 0.9828445151 | ED7: 0.9815720691 | EE7: 1.122306307 | EF7: 2.134949929 | EG7: 2.253263419 | EH7: 1.300759553 | EI7: 0.9946542907 | EJ7: 0.9946542907 | EK7: 0.9946542907 | EL7: 0.9946542907 | EM7: 0.9946542907 | EN7: 0.6185702261 | EO7: 1.199151834 | EP7: 0.3187049105 | EQ7: 0.3287170354 | ER7: 0.3287170354 | ES7: 0.3287170354 | ET7: 0.3287170354 | EU7: 0.1974894492 | EV7: 0 | EW7: 0 | EX7: 0 | EY7: 0 | EZ7: 0.02275213488 | FA7: 0.9530566103 | FB7: 0.2341238416 | FC7: 1.370065253 | FD7: 1.369797886 | FE7: 1.36959743 | FF7: 1.36959743 | FG7: 1.36959743 | FH7: 1.36959743 | FI7: 1.36959743 | FJ7: 1.36959743 | FK7: 1.36959743 | FL7: 1.36959743 | FM7: 1.401100341 | FN7: 1.843214693 | FO7: 1.412463664 | FP7: 1.842141086 | FQ7: 1.842141086 | FR7: 1.842141086 | FS7: 1.842141086 | FT7: 1.738738502 | FU7: 1.520882387 | FV7: 1.520882387 | FW7: 1.520882387 | FX7: 1.520882387 | FY7: 1.520882387 | FZ7: 1.520882387 | GA7: 1.520882387 | GB7: 1.645197315 | GC7: 1.520882387 | GD7: 1.520882387 | GE7: 1.520882387 | GF7: 1.520882387 | GG7: 1.527755987 | GH7: 1.538767167 | GI7: 1.538767167 | GJ7: 1.538767167 | GK7: 1.538767167 | GL7: 1.538767167 | GM7: 1.538767167 | GN7: 1.538767167 | GO7: 1.531908928 | GP7: 1.538756422 | GQ7: 1.06464571 | GR7: 1.08042475 | GS7: 1.081243726 | GT7: 1.081845105 | GU7: 1.08257625 | GV7: 1.08257625 | GW7: 1.08257625 | GX7: 1.08257625 | GY7: 1.08257625 | GZ7: 1.08257625 | HA7: 1.08257625 | HB7: 1.120139609 | HC7: 1.08257625 | HD7: 1.08257625 | HE7: - | HF7: - | HG7: - | HH7: - | HI7: - | HJ7: - | HK7: - | HL7: - | HM7: - | HN7: - | HO7: 1.08257625
B9: Indisponibilidad equipo térmico mensual peninsular (%) Tipo prevista | C9: 2001-01-01 | D9: 2001-02-01 | E9: 2001-03-01 | F9: 2001-04-01 | G9: 2001-05-01 | H9: 2001-06-01 | I9: 2001-07-01 | J9: 2001-08-01 | K9: 2001-09-01 | L9: 2001-10-01 | M9: 2001-11-01 | N9: 2001-12-01 | O9: 2001 | P9: 2002-01-01 | Q9: 2002-02-01 | R9: 2002-03-01 | S9: 2002-04-01 | T9: 2002-05-01 | U9: 2002-06-01 | V9: 2002-07-01 | W9: 2002-08-01 | X9: 2002-09-01 | Y9: 2002-10-01 | Z9: 2002-11-01 | AA9: 2002-12-01 | AB9: 2002 | AC9: 2003-01-01 | AD9: 2003-02-01 | AE9: 2003-03-01 | AF9: 2003-04-01 | AG9: 2003-05-01 | AH9: 2003-06-01 | AI9: 2003-07-01 | AJ9: 2003-08-01 | AK9: 2003-09-01 | AL9: 2003-10-01 | AM9: 2003-11-01 | AN9: 2003-12-01 | AO9: 2003 | AP9: 2004-01-01 | AQ9: 2004-02-01 | AR9: 2004-03-01 | AS9: 2004-04-01 | AT9: 2004-05-01 | AU9: 2004-06-01 | AV9: 2004-07-01 | AW9: 2004-08-01 | AX9: 2004-09-01 | AY9: 2004-10-01 | AZ9: 2004-11-01 | BA9: 2004-12-01 | BB9: 2004 | BC9: 2005-01-01 | BD9: 2005-02-01 | BE9: 2005-03-01 | BF9: 2005-04-01 | BG9: 2005-05-01 | BH9: 2005-06-01 | BI9: 2005-07-01 | BJ9: 2005-08-01 | BK9: 2005-09-01 | BL9: 2005-10-01 | BM9: 2005-11-01 | BN9: 2005-12-01 | BO9: 2005 | BP9: 2006-01-01 | BQ9: 2006-02-01 | BR9: 2006-03-01 | BS9: 2006-04-01 | BT9: 2006-05-01 | BU9: 2006-06-01 | BV9: 2006-07-01 | BW9: 2006-08-01 | BX9: 2006-09-01 | BY9: 2006-10-01 | BZ9: 2006-11-01 | CA9: 2006-12-01 | CB9: 2006 | CC9: 2007-01-01 | CD9: 2007-02-01 | CE9: 2007-03-01 | CF9: 2007-04-01 | CG9: 2007-05-01 | CH9: 2007-06-01 | CI9: 2007-07-01 | CJ9: 2007-08-01 | CK9: 2007-09-01 | CL9: 2007-10-01 | CM9: 2007-11-01 | CN9: 2007-12-01 | CO9: 2007 | CP9: 2008-01-01 | CQ9: 2008-02-01 | CR9: 2008-03-01 | CS9: 2008-04-01 | CT9: 2008-05-01 | CU9: 2008-06-01 | CV9: 2008-07-01 | CW9: 2008-08-01 | CX9: 2008-09-01 | CY9: 2008-10-01 | CZ9: 2008-11-01 | DA9: 2008-12-01 | DB9: 2008 | DC9: 2009-01-01 | DD9: 2009-02-01 | DE9: 2009-03-01 | DF9: 2009-04-01 | DG9: 2009-05-01 | DH9: 2009-06-01 | DI9: 2009-07-01 | DJ9: 2009-08-01 | DK9: 2009-09-01 | DL9: 2009-10-01 | DM9: 2009-11-01 | DN9: 2009-12-01 | DO9: 2009 | DP9: 2010-01-31 | DQ9: 2010-02-28 | DR9: 2010-03-31 | DS9: 2010-04-30 | DT9: 2010-05-31 | DU9: 2010-06-30 | DV9: 2010-07-31 | DW9: 2010-08-31 | DX9: 2010-09-30 | DY9: 2010-10-31 | DZ9: 2010-11-30 | EA9: 2010-12-31 | EB9: 2010 | EC9: 2011-01-31 | ED9: 2011-02-28 | EE9: 2011-03-31 | EF9: 2011-04-30 | EG9: 2011-05-31 | EH9: 2011-06-30 | EI9: 2011-07-31 | EJ9: 2011-08-31 | EK9: 2011-09-30 | EL9: 2011-10-31 | EM9: 2011-11-30 | EN9: 2011-12-31 | EO9: 2011 | EP9: 2012-01-31 | EQ9: 2012-02-29 | ER9: 2012-03-31 | ES9: 2012-04-30 | ET9: 2012-05-31 | EU9: 2012-06-30 | EV9: 2012-07-31 | EW9: 2012-08-31 | EX9: 2012-09-30 | EY9: 2012-10-31 | EZ9: 2012-11-30 | FA9: 2012-12-31 | FB9: 2012 | FC9: 2013-01-31 | FD9: 2013-02-28 | FE9: 2013-03-31 | FF9: 2013-04-30 | FG9: 2013-05-31 | FH9: 2013-06-30 | FI9: 2013-07-31 | FJ9: 2013-08-31 | FK9: 2013-09-30 | FL9: 2013-10-31 | FM9: 2013-11-30 | FN9: 2013-12-31 | FO9: 2013 | FP9: 2014-01-31 | FQ9: 2014-02-28 | FR9: 2014-03-31 | FS9: 2014-04-30 | FT9: 2014-05-31 | FU9: 2014-06-30 | FV9: 2014-07-31 | FW9: 2014-08-31 | FX9: 2014-09-30 | FY9: 2014-10-31 | FZ9: 2014-11-30 | GA9: 2014-12-31 | GB9: 2014 | GC9: 2015-01-31 | GD9: 2015-02-28 | GE9: 2015-03-31 | GF9: 2015-04-30 | GG9: 2015-05-31 | GH9: 2015-06-30 | GI9: 2015-07-31 | GJ9: 2015-08-31 | GK9: 2015-09-30 | GL9: 2015-10-31 | GM9: 2015-11-30 | GN9: 2015-12-31 | GO9: 2015 | GP9: 2016-01-31 | GQ9: 2016-02-29 | GR9: 2016-03-31 | GS9: 2016-04-30 | GT9: 2016-05-31 | GU9: 2016-06-30 | GV9: 2016-07-31 | GW9: 2016-08-31 | GX9: 2016-09-30 | GY9: 2016-10-31 | GZ9: 2016-11-30 | HA9: 2016-12-31 | HB9: 2016 | HC9: 2017-01-31 | HD9: 2017-02-28 | HE9: 2017-03-31 | HF9: 2017-04-30 | HG9: 2017-05-31 | HH9: 2017-06-30 | HI9: 2017-07-31 | HJ9: 2017-08-31 | HK9: 2017-09-30 | HL9: 2017-10-31 | HM9: 2017-11-30 | HN9: 2017-12-31 | HO9: 2017
B10: Nuclear | C10: 0 | D10: 2.27942048 | E10: 14.25101659 | F10: 13.89751671 | G10: 0 | H10: 0 | I10: 0.2549083483 | J10: 1.975539699 | K10: 10.41139507 | L10: 9.845466879 | M10: 0.8585369285 | N10: 0 | O10: 4.478233122 | P10: 0 | Q10: 2.3392615 | R10: 17.13300722 | S10: 17.40133102 | T10: 12.54962025 | U10: 3.694285111 | V10: 0 | W10: 0.6186838037 | X10: 11.77123212 | Y10: 1.451380844 | Z10: 0 | AA10: 0 | AB10: 5.575848833 | AC10: 0 | AD10: 0 | AE10: 14.40286965 | AF10: 9.467494346 | AG10: 2.279169155 | AH10: 7.895794834 | AI10: 0 | AJ10: 0 | AK10: 18.78243643 | AL10: 15.20537462 | AM10: 0.9925184631 | AN10: 1.860969674 | AO10: 5.915942128 | AP10: 0.708494167 | AQ10: 0 | AR10: 8.00357274 | AS10: 4.781049074 | AT10: 7.390662445 | AU10: 2.479250337 | AV10: 0 | AW10: 0 | AX10: 11.81004328 | AY10: 12.97020545 | AZ10: 0 | BA10: 0 | BB10: 4.02636343 | BC10: 0 | BD10: 2.023701637 | BE10: 13.19860432 | BF10: 14.38821538 | BG10: 15.33989071 | BH10: 8.399765491 | BI10: 0 | BJ10: 0 | BK10: 0 | BL10: 13.05730472 | BM10: 1.523352217 | BN10: 0 | BO10: 5.686665718 | BP10: 0 | BQ10: 0 | BR10: 5.673561316 | BS10: 18.16016658 | BT10: 5.200694453 | BU10: 0 | BV10: 0 | BW10: 1.809097477 | BX10: 12.61163938 | BY10: 12.25376512 | BZ10: 1.688220992 | CA10: 0 | CB10: 4.79421378 | CC10: 0 | CD10: 2.397533123 | CE10: 7.862512908 | CF10: 10.66911554 | CG10: 29.10874548 | CH10: 37.93063197 | CI10: 27.00236327 | CJ10: 14.01634749 | CK10: 3.942097731 | CL10: 9.243686873 | CM10: 23.54507929 | CN10: 0 | CO10: 13.8466837 | CP10: 0 | CQ10: 0 | CR10: 0 | CS10: 7.227696124 | CT10: 10.96407635 | CU10: 0 | CV10: 0 | CW10: 0 | CX10: 0 | CY10: 3.036147639 | CZ10: 13.30547053 | DA10: 8.605038851 | DB10: 3.598045503 | DC10: 0 | DD10: 8.763889725 | DE10: 27.83942829 | DF10: 20.69789848 | DG10: 30.73536868 | DH10: 32.05928386 | DI10: 20.34594851 | DJ10: 0 | DK10: 11.86490894 | DL10: 9.4247323 | DM10: 11.83513258 | DN10: 12.66165744 | DO10: 15.53303984 | DP10: 6.926471209 | DQ10: 0 | DR10: 0 | DS10: 0 | DT10: 11.88020719 | DU10: 11.13162769 | DV10: 0 | DW10: 0 | DX10: 0 | DY10: 0 | DZ10: 4.09885933 | EA10: 12.72059792 | EB10: 3.924974636 | EC10: 10.93148365 | ED10: 13.89408585 | EE10: 19.02395223 | EF10: 15.83478024 | EG10: 29.35721227 | EH10: 9.777050886 | EI10: 8.613419264 | EJ10: 0 | EK10: 2.790623833 | EL10: 14.05069342 | EM10: 13.24471536 | EN10: 13.09989462 | EO10: 12.55644144 | EP10: 5.176571261 | EQ10: 0 | ER10: 0 | ES10: 0 | ET10: 18.71036723 | EU10: 28.04773659 | EV10: 5.440158433 | EW10: 0 | EX10: 0 | EY10: 2.153867714 | EZ10: 22.22013501 | FA10: 17.93716163 | FB10: 8.306250839 | FC10: 4.200836354 | FD10: 0 | FE10: 0 | FF10: 10.93146626 | FG10: 9.292421067 | FH10: 0 | FI10: 0 | FJ10: 0 | FK10: 4.208465743 | FL10: 14.00621124 | FM10: 16.6282125 | FN10: 19.52797392 | FO10: 6.606036701 | FP10: 10.66023976 | FQ10: 0 | FR10: 0 | FS10: 0 | FT10: 16.02233474 | FU10: 26.22158272 | FV10: 13.35476152 | FW10: 8.14927652 | FX10: 0 | FY10: 0.0175784335 | FZ10: 13.09593296 | GA10: 5.474240793 | GB10: 7.790568733 | GC10: 0 | GD10: 0 | GE10: 0 | GF10: 3.226679929 | GG10: 26.56705397 | GH10: 16.04298407 | GI10: 4.266833342 | GJ10: 0 | GK10: 0 | GL10: 0.4236265987 | GM10: 13.15007567 | GN10: 3.817469323 | GO10: 5.643655675 | GP10: 12.06236524 | GQ10: 8.768859217 | GR10: 0 | GS10: 0.4365310986 | GT10: 13.09593296 | GU10: 2.981143628 | GV10: 0 | GW10: 0 | GX10: 0 | GY10: 1.352595139 | GZ10: 24.42990368 | HA10: 9.92726459 | HB10: 6.063834764 | HC10: 0 | HD10: 0 | HE10: - | HF10: - | HG10: - | HH10: - | HI10: - | HJ10: - | HK10: - | HL10: - | HM10: - | HN10: - | HO10: 0
B11: Carbón | C11: 0 | D11: 1.159641839 | E11: 2.574927927 | F11: 7.578763293 | G11: 11.67586051 | H11: 7.335770067 | I11: 0 | J11: 0 | K11: 0.5723628815 | L11: 1.771890376 | M11: 0 | N11: 0 | O11: 2.72266922 | P11: 0 | Q11: 0 | R11: 0 | S11: 4.923381601 | T11: 5.121423291 | U11: 3.48057118 | V11: 4.587688726 | W11: 3.343603369 | X11: 1.826717336 | Y11: 7.055946355 | Z11: 0.9828222273 | AA11: 0 | AB11: 2.630751481 | AC11: 0 | AD11: 2.949264888 | AE11: 7.550711821 | AF11: 6.461511266 | AG11: 7.654573529 | AH11: 4.129996605 | AI11: 0 | AJ11: 1.188135345 | AK11: 1.730178884 | AL11: 3.095618137 | AM11: 1.505225652 | AN11: 0 | AO11: 3.017707714 | AP11: 0 | AQ11: 0 | AR11: 3.943322557 | AS11: 12.89148588 | AT11: 13.19964113 | AU11: 1.665864041 | AV11: 0 | AW11: 0 | AX11: 0.2281279784 | AY11: 1.763613581 | AZ11: 3.85169829 | BA11: 1.122794559 | BB11: 3.223119424 | BC11: 0 | BD11: 1.687563174 | BE11: 4.91561204 | BF11: 13.35742661 | BG11: 10.982858 | BH11: 4.054821873 | BI11: 2.652208062 | BJ11: 0 | BK11: 0 | BL11: 0.06082736885 | BM11: 0.9494238224 | BN11: 0 | BO11: 3.22716097 | BP11: 0 | BQ11: 3.871910939 | BR11: 0.4505772375 | BS11: 4.877284704 | BT11: 8.091136274 | BU11: 1.123794354 | BV11: 0.02585978049 | BW11: 3.206612781 | BX11: 6.544685802 | BY11: 12.21386241 | BZ11: 6.85866473 | CA11: 1.646281532 | CB11: 4.070866893 | CC11: 0 | CD11: 0 | CE11: 0 | CF11: 0 | CG11: 0 | CH11: 1.355211418 | CI11: 0.360409456 | CJ11: 1.300050812 | CK11: 2.375390181 | CL11: 8.361471556 | CM11: 11.42878687 | CN11: 5.922151189 | CO11: 2.599397944 | CP11: 10.5744007 | CQ11: 17.33766187 | CR11: 17.47469213 | CS11: 14.75280667 | CT11: 17.14961912 | CU11: 18.03981066 | CV11: 16.57665175 | CW11: 15.04200622 | CX11: 7.755793817 | CY11: 9.886600153 | CZ11: 12.85086831 | DA11: 10.26995135 | DB11: 13.96351131 | DC11: 9.375024348 | DD11: 8.197929332 | DE11: 8.877245309 | DF11: 15.36384623 | DG11: 15.27649267 | DH11: 3.692808952 | DI11: 1.251447043 | DJ11: 1.24657652 | DK11: 1.806411681 | DL11: 3.243432445 | DM11: 2.421312416 | DN11: 0 | DO11: 5.877302537 | DP11: 0 | DQ11: 0 | DR11: 0.6581451939 | DS11: 5.093769574 | DT11: 5.093769574 | DU11: 0.3601012101 | DV11: 0 | DW11: 0 | DX11: 1.755044932 | DY11: 5.708538641 | DZ11: 5.260278004 | EA11: 1.230374635 | EB11: 2.103752824 | EC11: 0 | ED11: 0.8123091068 | EE11: 2.650889907 | EF11: 2.901466229 | EG11: 5.49292187 | EH11: 0 | EI11: 0 | EJ11: 0.7955541612 | EK11: 3.514524118 | EL11: 5.068966633 | EM11: 2.740629119 | EN11: 0 | EO11: 2.00366932 | EP11: 0 | EQ11: 0 | ER11: 0.01079175222 | ES11: 4.121254308 | ET11: 7.633050174 | EU11: 3.704555431 | EV11: 0 | EW11: 1.663667765 | EX11: 3.140616958 | EY11: 9.473565427 | EZ11: 2.732274688 | FA11: 0 | FB11: 2.718723862 | FC11: 0 | FD11: 0 | FE11: 2.264600195 | FF11: 8.753112652 | FG11: 14.63665463 | FH11: 6.462763377 | FI11: 1.507165728 | FJ11: 1.943381805 | FK11: 5.981436086 | FL11: 7.996226283 | FM11: 1.813823018 | FN11: 0 | FO11: 4.30010029 | FP11: 0 | FQ11: 0 | FR11: 0 | FS11: 0.3364541272 | FT11: 4.203186359 | FU11: 1.116520974 | FV11: 0 | FW11: 0 | FX11: 0.9730443028 | FY11: 5.442328414 | FZ11: 7.17416598 | GA11: 0 | GB11: 1.604126047 | GC11: 0 | GD11: 0 | GE11: 2.535722745 | GF11: 12.05471153 | GG11: 10.66039572 | GH11: 2.813645347 | GI11: 0 | GJ11: 0 | GK11: 0 | GL11: 0 | GM11: 0.9499465064 | GN11: 0 | GO11: 2.420611284 | GP11: 0.7138890144 | GQ11: 0.1165507207 | GR11: 8.35010182 | GS11: 17.52831293 | GT11: 12.70697167 | GU11: 4.162627845 | GV11: 0 | GW11: 0.5704234507 | GX11: 5.894375657 | GY11: 9.535713979 | GZ11: 4.703307849 | HA11: 6.631403914 | HB11: 5.850148377 | HC11: 5.846451346 | HD11: 5.846451346 | HE11: - | HF11: - | HG11: - | HH11: - | HI11: - | HJ11: - | HK11: - | HL11: - | HM11: - | HN11: - | HO11: 5.846451346
B12: Fuel + Gas | C12: 0 | D12: 0 | E12: 0 | F12: 1.404386399 | G12: 4.477817023 | H12: 1.742449659 | I12: 0 | J12: 1.463243509 | K12: 0.9910232254 | L12: 5.5812379 | M12: 7.206277705 | N12: 1.191037565 | O12: 2.012794732 | P12: 0 | Q12: 0 | R12: 0 | S12: 3.470181699 | T12: 1.477432753 | U12: 0 | V12: 0 | W12: 1.290418785 | X12: 3.605308496 | Y12: 5.592785928 | Z12: 12.18946713 | AA12: 0 | AB12: 2.261476358 | AC12: 0 | AD12: 0 | AE12: 2.19409086 | AF12: 15.52512323 | AG12: 8.355794986 | AH12: 2.35645371 | AI12: 0 | AJ12: 0 | AK12: 0 | AL12: 0.6723833301 | AM12: 0 | AN12: 0 | AO12: 2.401588787 | AP12: 0 | AQ12: 0 | AR12: 0 | AS12: 2.555762546 | AT12: 2.51850124 | AU12: 0 | AV12: 0 | AW12: 0 | AX12: 0 | AY12: 4.024984294 | AZ12: 6.038657371 | BA12: 0 | BB12: 1.258559104 | BC12: 0 | BD12: 0.1677476835 | BE12: 1.134191135 | BF12: 4.628463141 | BG12: 4.492682307 | BH12: 3.826997449 | BI12: 0 | BJ12: 2.868284645 | BK12: 6.813914286 | BL12: 6.153383922 | BM12: 0 | BN12: 0 | BO12: 2.494393455 | BP12: 0 | BQ12: 0 | BR12: 0 | BS12: 0 | BT12: 2.089440667 | BU12: 0 | BV12: 1.382676651 | BW12: 6.993494424 | BX12: 3.419041718 | BY12: 8.700976806 | BZ12: 5.472587117 | CA12: 0.2939867444 | CB12: 2.384628054 | CC12: 0 | CD12: 0 | CE12: 3.226689888 | CF12: 8.353416679 | CG12: 7.356786228 | CH12: 0 | CI12: 0 | CJ12: 0 | CK12: 0 | CL12: 0 | CM12: 20.64439889 | CN12: 1.217773914 | CO12: 3.329844953 | CP12: 0 | CQ12: 0 | CR12: 0 | CS12: 0.01995146786 | CT12: 7.602930205 | CU12: 14.04811124 | CV12: 7.221557896 | CW12: 7.222505317 | CX12: 7.222505317 | CY12: 7.222505317 | CZ12: 7.222505317 | DA12: 7.222505317 | DB12: 5.401125296 | DC12: 7.222505317 | DD12: 7.222505317 | DE12: 7.222505317 | DF12: 7.222505317 | DG12: 7.222505317 | DH12: 8.462284001 | DI12: 4.416827344 | DJ12: 0 | DK12: 0 | DL12: 0 | DM12: 0 | DN12: 0 | DO12: 4.270294442 | DP12: 0 | DQ12: 0 | DR12: 0 | DS12: 0 | DT12: 0 | DU12: 0 | DV12: 0 | DW12: 0 | DX12: 0 | DY12: 0 | DZ12: 0 | EA12: 0 | EB12: 0 | EC12: 0 | ED12: 0 | EE12: 0 | EF12: 0 | EG12: 11.93999385 | EH12: 13.6882819 | EI12: 0 | EJ12: 0 | EK12: 0 | EL12: 0 | EM12: 0 | EN12: 0 | EO12: 2.305655601 | EP12: 0 | EQ12: 0 | ER12: 0 | ES12: 0 | ET12: 0 | EU12: 0 | EV12: 0 | EW12: 0 | EX12: 0 | EY12: 0 | EZ12: 0 | FA12: 0 | FB12: 0 | FC12: 0 | FD12: 0 | FE12: 0 | FF12: 0 | FG12: 0 | FH12: 0 | FI12: 0 | FJ12: 0 | FK12: 0 | FL12: 0 | FM12: 0 | FN12: 0 | FO12: 0 | FP12: 0 | FQ12: 0 | FR12: 0 | FS12: 0 | FT12: 0 | FU12: 0 | FV12: 0 | FW12: 0 | FX12: 0 | FY12: 0 | FZ12: 0 | GA12: 0 | GB12: 0 | GC12: 0 | GD12: 0 | GE12: 0 | GF12: 0 | GG12: 0 | GH12: - | GI12: - | GJ12: - | GK12: - | GL12: - | GM12: - | GN12: - | GO12: 0 | GP12: - | GQ12: - | GR12: - | GS12: - | GT12: - | GU12: - | GV12: - | GW12: - | GX12: - | GY12: - | GZ12: - | HA12: - | HB12: - | HC12: - | HD12: - | HE12: - | HF12: - | HG12: - | HH12: - | HI12: - | HJ12: - | HK12: - | HL12: - | HM12: - | HN12: - | HO12: -
B13: Ciclo combinado | C13: - | D13: - | E13: - | F13: - | G13: - | H13: - | I13: - | J13: - | K13: - | L13: - | M13: - | N13: - | O13: - | P13: - | Q13: - | R13: 0 | S13: 0 | T13: 0 | U13: 0 | V13: 0 | W13: 0 | X13: 0 | Y13: 8.779757136 | Z13: 4.028514248 | AA13: 0 | AB13: 1.800281687 | AC13: 0 | AD13: 0 | AE13: 6.04204906 | AF13: 23.1033072 | AG13: 13.41257748 | AH13: 0 | AI13: 0 | AJ13: 0 | AK13: 0 | AL13: 0 | AM13: 0 | AN13: 0 | AO13: 3.091877642 | AP13: 0 | AQ13: 0 | AR13: 1.541571104 | AS13: 0 | AT13: 4.278475806 | AU13: 0 | AV13: 0 | AW13: 2.540425814 | AX13: 0 | AY13: 0.3383641209 | AZ13: 6.543665599 | BA13: 0.4709289249 | BB13: 1.451048106 | BC13: 0 | BD13: 0.5248704684 | BE13: 3.965064335 | BF13: 6.583120777 | BG13: 10.52706135 | BH13: 5.804419261 | BI13: 2.79606061 | BJ13: 2.328063212 | BK13: 2.187202212 | BL13: 0.6203826407 | BM13: 1.035837204 | BN13: 0 | BO13: 2.937004362 | BP13: 0 | BQ13: 0 | BR13: 0 | BS13: 1.407807932 | BT13: 0.09314220264 | BU13: 0 | BV13: 0 | BW13: 0.8482978508 | BX13: 1.062111398 | BY13: 9.336179082 | BZ13: 5.25938516 | CA13: 1.691376656 | CB13: 1.763278402 | CC13: 0 | CD13: 0.6174474665 | CE13: 0.5448327722 | CF13: 2.10381893 | CG13: 1.260245267 | CH13: 0 | CI13: 0 | CJ13: 0.6998854385 | CK13: 0.9706160821 | CL13: 3.606224362 | CM13: 5.031664726 | CN13: 1.389415382 | CO13: 1.438914527 | CP13: 0 | CQ13: 1.402473815 | CR13: 4.307055694 | CS13: 4.749114308 | CT13: 2.930075246 | CU13: 2.186509771 | CV13: 0.4198460627 | CW13: 0.1577090255 | CX13: 3.664767377 | CY13: 7.023509705 | CZ13: 2.958556814 | DA13: 0.1865827512 | DB13: 2.497459359 | DC13: 0 | DD13: 0.611839944 | DE13: 3.680114852 | DF13: 4.945300925 | DG13: 5.966971411 | DH13: 0.4619137813 | DI13: 0 | DJ13: 0 | DK13: 1.778099212 | DL13: 7.282308085 | DM13: 2.344151394 | DN13: 0 | DO13: 2.260339941 | DP13: 0 | DQ13: 0.7727963378 | DR13: 4.512531828 | DS13: 3.537812016 | DT13: 13.44076724 | DU13: 4.784548443 | DV13: 1.500403412 | DW13: 3.379135869 | DX13: 4.484502612 | DY13: 10.19900705 | DZ13: 9.302412942 | EA13: 2.125178827 | EB13: 4.914191769 | EC13: 1.235670295 | ED13: 4.147232715 | EE13: 3.387815456 | EF13: 5.18024043 | EG13: 9.449666208 | EH13: 5.896930661 | EI13: 1.103881456 | EJ13: 7.818132488 | EK13: 7.694907048 | EL13: 10.74342317 | EM13: 15.81319825 | EN13: 6.039844569 | EO13: 6.541454922 | EP13: 3.58609742 | EQ13: 1.039820661 | ER13: 17.71931149 | ES13: 8.964502918 | ET13: 9.441161063 | EU13: 5.369151975 | EV13: 4.939951078 | EW13: 4.885435398 | EX13: 1.14557867 | EY13: 2.169671385 | EZ13: 0.8777210775 | FA13: 0 | FB13: 5.041466149 | FC13: 0 | FD13: 0.5586864056 | FE13: 2.507464092 | FF13: 10.02555854 | FG13: 7.647683656 | FH13: 0.7318062237 | FI13: 0.4067236063 | FJ13: 4.005439661 | FK13: 2.467531365 | FL13: 5.912470869 | FM13: 3.094371131 | FN13: 3.747703158 | FO13: 3.442126587 | FP13: 4.983121865 | FQ13: 5.803852433 | FR13: 5.854314163 | FS13: 9.038986219 | FT13: 7.500685119 | FU13: 6.02626764 | FV13: 5.109324701 | FW13: 4.64809001 | FX13: 5.093908658 | FY13: 7.189503291 | FZ13: 7.711835064 | GA13: 3.129185003 | GB13: 5.998724321 | GC13: 3.18534952 | GD13: 4.803085002 | GE13: 10.68636321 | GF13: 7.909556369 | GG13: 10.17515205 | GH13: 4.169635896 | GI13: 4.889234397 | GJ13: 5.039229636 | GK13: 5.895926869 | GL13: 11.51109919 | GM13: 9.021685542 | GN13: 2.773095368 | GO13: 6.686219476 | GP13: 1.763759604 | GQ13: 1.348577996 | GR13: 4.194881417 | GS13: 6.488145633 | GT13: 6.259149097 | GU13: 1.235661064 | GV13: 1.370913855 | GW13: 3.226689616 | GX13: 8.195428261 | GY13: 11.02341945 | GZ13: 5.951640738 | HA13: 5.922959502 | HB13: 4.759930339 | HC13: 4.616701719 | HD13: 3.070101424 | HE13: - | HF13: - | HG13: - | HH13: - | HI13: - | HJ13: - | HK13: - | HL13: - | HM13: - | HN13: - | HO13: 3.882721918
B14: Indisponibilidad prevista | C14: 0 | D14: 1.154881572 | E14: 5.254076456 | F14: 7.658921797 | G14: 6.19945485 | H14: 3.586764614 | I14: 0.07464047048 | J14: 0.9972932599 | K14: 3.573228841 | L14: 5.226604345 | M14: 2.314272898 | N14: 0.3409449405 | O14: 3.033276219 | P14: 0 | Q14: 0.6848680321 | R14: 4.944968402 | S14: 8.025837382 | T14: 5.902490292 | U14: 2.389564964 | V14: 1.790703925 | W14: 1.803996622 | X14: 4.813132885 | Y14: 5.343300248 | Z14: 3.830198245 | AA14: 0 | AB14: 3.30137095 | AC14: 0 | AD14: 1.143715311 | AE14: 7.936780644 | AF14: 11.16382128 | AG14: 6.981367685 | AH14: 4.290522639 | AI14: 0 | AJ14: 0.4467294516 | AK14: 5.515484348 | AL14: 5.25309949 | AM14: 0.8221294225 | AN14: 0.4812208406 | AO14: 3.647826091 | AP14: 0.1807305284 | AQ14: 0 | AR14: 3.724287667 | AS14: 6.449291038 | AT14: 7.870492725 | AU14: 1.205446528 | AV14: 0 | AW14: 0.5701671804 | AX14: 2.824554286 | AY14: 4.511912409 | AZ14: 4.062822992 | BA14: 0.4853740236 | BB14: 2.651775485 | BC14: 0 | BD14: 1.162135798 | BE14: 5.789729691 | BF14: 10.09378783 | BG14: 10.61700658 | BH14: 5.457985787 | BI14: 1.620716418 | BJ14: 1.181013476 | BK14: 1.875388637 | BL14: 4.033325653 | BM14: 0.9312156096 | BN14: 0 | BO14: 3.54249659 | BP14: 0 | BQ14: 1.12448557 | BR14: 1.263697833 | BS14: 5.491050965 | BT14: 3.717881797 | BU14: 0.3187198508 | BV14: 0.2269475624 | BW14: 2.647658826 | BX14: 5.082116026 | BY14: 10.56310829 | BZ14: 5.064602607 | CA14: 1.142025953 | CB14: 3.094187228 | CC14: 0 | CD14: 0.6820777703 | CE14: 2.16979956 | CF14: 4.070542207 | CG14: 6.867379636 | CH14: 7.102225569 | CI14: 4.892298563 | CJ14: 3.058801657 | CK14: 1.714478466 | CL14: 5.293593394 | CM14: 11.76123464 | CN14: 2.257006882 | CO14: 4.210783642 | CP14: 2.642849181 | CQ14: 5.020209228 | CR14: 6.44719865 | CS14: 7.210917991 | CT14: 8.267559588 | CU14: 6.872053804 | CV14: 4.995636819 | CW14: 4.488609501 | CX14: 4.393531244 | CY14: 7.073365044 | CZ14: 7.572542059 | DA14: 4.783382733 | DB14: 5.812515637 | DC14: 3.006209379 | DD14: 4.501881786 | DE14: 9.405798342 | DF14: 10.41291365 | DG14: 12.57068678 | DH14: 7.305349272 | DI14: 4.13493219 | DJ14: 0.3063716138 | DK14: 3.332791528 | DL14: 6.022426052 | DM14: 3.773720107 | DN14: 2.163580144 | DO14: 5.580004147 | DP14: 1.17810804 | DQ14: 0.4058285644 | DR14: 2.534421854 | DS14: 3.136846312 | DT14: 10.46080219 | DU14: 4.532366958 | DV14: 0.8170052944 | DW14: 1.850231243 | DX14: 2.875978186 | DY14: 6.951494946 | DZ14: 7.031364525 | EA14: 3.56540812 | EB14: 3.817578458 | EC14: 2.486940545 | ED14: 4.772048622 | EE14: 5.657378692 | EF14: 6.177713366 | EG14: 11.89820232 | EH14: 5.335456195 | EI14: 2.067930946 | EJ14: 4.540542282 | EK14: 5.616647768 | EL14: 9.596852135 | EM14: 11.70081571 | EN14: 5.594795738 | EO14: 6.289931585 | EP14: 2.895329407 | EQ14: 0.5837078608 | ER14: 9.949510591 | ES14: 6.062540644 | ET14: 10.39806895 | EU14: 8.72871464 | EV14: 3.712769865 | EW14: 3.163284031 | EX14: 1.422564736 | EY14: 3.935314738 | EZ14: 4.971541478 | FA14: 3.08857694 | FB14: 4.931297347 | FC14: 0.7292580446 | FD14: 0.3194593662 | FE14: 1.984218898 | FF14: 9.757221957 | FG14: 9.543917849 | FH14: 1.989844209 | FI14: 0.599007718 | FJ14: 2.762536663 | FK14: 3.595490037 | FL14: 7.755231627 | FM14: 5.095800695 | FN14: 5.531505193 | FO14: 4.159927069 | FP14: 4.698921803 | FQ14: 3.318182925 | FR14: 3.347032943 | FS14: 5.249586688 | FT14: 8.094920251 | FU14: 8.29070179 | FV14: 5.255824813 | FW14: 4.084952969 | FX14: 3.156015536 | FY14: 5.436751832 | FZ14: 8.430205795 | GA14: 2.747978882 | GB14: 5.178772519 | GC14: 1.827090787 | GD14: 2.755010808 | GE14: 6.739905103 | GF14: 7.999952449 | GG14: 13.08649878 | GH14: 5.930983172 | GI14: 3.589025451 | GJ14: 2.924451777 | GK14: 3.421624942 | GL14: 6.754941299 | GM14: 7.783382358 | GN14: 2.281794071 | GO14: 5.43950307 | GP14: 3.322251872 | GQ14: 2.367404704 | GR14: 4.389603232 | GS14: 7.913610891 | GT14: 8.954695745 | GU14: 2.213614854 | GV14: 0.8132259648 | GW14: 2.043410541 | GX14: 6.198025868 | GY14: 8.944778494 | GZ14: 8.995765171 | HA14: 6.804603343 | HB14: 5.244051904 | HC14: 4.064259211 | HD14: 3.146816067 | HE14: - | HF14: - | HG14: - | HH14: - | HI14: - | HJ14: - | HK14: - | HL14: - | HM14: - | HN14: - | HO14: 3.628862464
B16: Indisponibilidad equipo térmico mensual peninsular (%) Tipo no prevista | C16: 2001-01-01 | D16: 2001-02-01 | E16: 2001-03-01 | F16: 2001-04-01 | G16: 2001-05-01 | H16: 2001-06-01 | I16: 2001-07-01 | J16: 2001-08-01 | K16: 2001-09-01 | L16: 2001-10-01 | M16: 2001-11-01 | N16: 2001-12-01 | O16: 2001 | P16: 2002-01-01 | Q16: 2002-02-01 | R16: 2002-03-01 | S16: 2002-04-01 | T16: 2002-05-01 | U16: 2002-06-01 | V16: 2002-07-01 | W16: 2002-08-01 | X16: 2002-09-01 | Y16: 2002-10-01 | Z16: 2002-11-01 | AA16: 2002-12-01 | AB16: 2002 | AC16: 2003-01-01 | AD16: 2003-02-01 | AE16: 2003-03-01 | AF16: 2003-04-01 | AG16: 2003-05-01 | AH16: 2003-06-01 | AI16: 2003-07-01 | AJ16: 2003-08-01 | AK16: 2003-09-01 | AL16: 2003-10-01 | AM16: 2003-11-01 | AN16: 2003-12-01 | AO16: 2003 | AP16: 2004-01-01 | AQ16: 2004-02-01 | AR16: 2004-03-01 | AS16: 2004-04-01 | AT16: 2004-05-01 | AU16: 2004-06-01 | AV16: 2004-07-01 | AW16: 2004-08-01 | AX16: 2004-09-01 | AY16: 2004-10-01 | AZ16: 2004-11-01 | BA16: 2004-12-01 | BB16: 2004 | BC16: 2005-01-01 | BD16: 2005-02-01 | BE16: 2005-03-01 | BF16: 2005-04-01 | BG16: 2005-05-01 | BH16: 2005-06-01 | BI16: 2005-07-01 | BJ16: 2005-08-01 | BK16: 2005-09-01 | BL16: 2005-10-01 | BM16: 2005-11-01 | BN16: 2005-12-01 | BO16: 2005 | BP16: 2006-01-01 | BQ16: 2006-02-01 | BR16: 2006-03-01 | BS16: 2006-04-01 | BT16: 2006-05-01 | BU16: 2006-06-01 | BV16: 2006-07-01 | BW16: 2006-08-01 | BX16: 2006-09-01 | BY16: 2006-10-01 | BZ16: 2006-11-01 | CA16: 2006-12-01 | CB16: 2006 | CC16: 2007-01-01 | CD16: 2007-02-01 | CE16: 2007-03-01 | CF16: 2007-04-01 | CG16: 2007-05-01 | CH16: 2007-06-01 | CI16: 2007-07-01 | CJ16: 2007-08-01 | CK16: 2007-09-01 | CL16: 2007-10-01 | CM16: 2007-11-01 | CN16: 2007-12-01 | CO16: 2007 | CP16: 2008-01-01 | CQ16: 2008-02-01 | CR16: 2008-03-01 | CS16: 2008-04-01 | CT16: 2008-05-01 | CU16: 2008-06-01 | CV16: 2008-07-01 | CW16: 2008-08-01 | CX16: 2008-09-01 | CY16: 2008-10-01 | CZ16: 2008-11-01 | DA16: 2008-12-01 | DB16: 2008 | DC16: 2009-01-01 | DD16: 2009-02-01 | DE16: 2009-03-01 | DF16: 2009-04-01 | DG16: 2009-05-01 | DH16: 2009-06-01 | DI16: 2009-07-01 | DJ16: 2009-08-01 | DK16: 2009-09-01 | DL16: 2009-10-01 | DM16: 2009-11-01 | DN16: 2009-12-01 | DO16: 2009 | DP16: 2010-01-31 | DQ16: 2010-02-28 | DR16: 2010-03-31 | DS16: 2010-04-30 | DT16: 2010-05-31 | DU16: 2010-06-30 | DV16: 2010-07-31 | DW16: 2010-08-31 | DX16: 2010-09-30 | DY16: 2010-10-31 | DZ16: 2010-11-30 | EA16: 2010-12-31 | EB16: 2010 | EC16: 2011-01-31 | ED16: 2011-02-28 | EE16: 2011-03-31 | EF16: 2011-04-30 | EG16: 2011-05-31 | EH16: 2011-06-30 | EI16: 2011-07-31 | EJ16: 2011-08-31 | EK16: 2011-09-30 | EL16: 2011-10-31 | EM16: 2011-11-30 | EN16: 2011-12-31 | EO16: 2011 | EP16: 2012-01-31 | EQ16: 2012-02-29 | ER16: 2012-03-31 | ES16: 2012-04-30 | ET16: 2012-05-31 | EU16: 2012-06-30 | EV16: 2012-07-31 | EW16: 2012-08-31 | EX16: 2012-09-30 | EY16: 2012-10-31 | EZ16: 2012-11-30 | FA16: 2012-12-31 | FB16: 2012 | FC16: 2013-01-31 | FD16: 2013-02-28 | FE16: 2013-03-31 | FF16: 2013-04-30 | FG16: 2013-05-31 | FH16: 2013-06-30 | FI16: 2013-07-31 | FJ16: 2013-08-31 | FK16: 2013-09-30 | FL16: 2013-10-31 | FM16: 2013-11-30 | FN16: 2013-12-31 | FO16: 2013 | FP16: 2014-01-31 | FQ16: 2014-02-28 | FR16: 2014-03-31 | FS16: 2014-04-30 | FT16: 2014-05-31 | FU16: 2014-06-30 | FV16: 2014-07-31 | FW16: 2014-08-31 | FX16: 2014-09-30 | FY16: 2014-10-31 | FZ16: 2014-11-30 | GA16: 2014-12-31 | GB16: 2014 | GC16: 2015-01-31 | GD16: 2015-02-28 | GE16: 2015-03-31 | GF16: 2015-04-30 | GG16: 2015-05-31 | GH16: 2015-06-30 | GI16: 2015-07-31 | GJ16: 2015-08-31 | GK16: 2015-09-30 | GL16: 2015-10-31 | GM16: 2015-11-30 | GN16: 2015-12-31 | GO16: 2015 | GP16: 2016-01-31 | GQ16: 2016-02-29 | GR16: 2016-03-31 | GS16: 2016-04-30 | GT16: 2016-05-31 | GU16: 2016-06-30 | GV16: 2016-07-31 | GW16: 2016-08-31 | GX16: 2016-09-30 | GY16: 2016-10-31 | GZ16: 2016-11-30 | HA16: 2016-12-31 | HB16: 2016 | HC16: 2017-01-31 | HD16: 2017-02-28 | HE16: 2017-03-31 | HF16: 2017-04-30 | HG16: 2017-05-31 | HH16: 2017-06-30 | HI16: 2017-07-31 | HJ16: 2017-08-31 | HK16: 2017-09-30 | HL16: 2017-10-31 | HM16: 2017-11-30 | HN16: 2017-12-31 | HO16: 2017
B17: Nuclear | C17: 0.448319583 | D17: 0.5383105379 | E17: 0.1659039041 | F17: 0.1578686589 | G17: 0.2577797802 | H17: 2.642943824 | I17: 0.0238257434 | J17: 0.006939870465 | K17: 0 | L17: 1.667786529 | M17: 1.811866909 | N17: 0.9165427179 | O17: 0.7170349601 | P17: 0 | Q17: 0.0252992888 | R17: 2.023265524 | S17: 1.17963253 | T17: 0.6361359649 | U17: 0.9783816436 | V17: 0.5257388604 | W17: 0.6417432382 | X17: 0.7541035531 | Y17: 0.673989806 | Z17: 0.1081991877 | AA17: 0.2249920213 | AB17: 0.6514068371 | AC17: 1.45511405 | AD17: 0.9197381089 | AE17: 0.5029615063 | AF17: 1.414846818 | AG17: 11.54201625 | AH17: 6.067699468 | AI17: 0.2135422557 | AJ17: 0.8433446112 | AK17: 0.03234808432 | AL17: 0 | AM17: 0.2717140167 | AN17: 0 | AO17: 1.946239905 | AP17: 1.163268563 | AQ17: 0.163484212 | AR17: 1.990747453 | AS17: 0.03887988599 | AT17: 4.452202566 | AU17: 1.132783998 | AV17: 0.2020654091 | AW17: 1.260477791 | AX17: 0 | AY17: 4.445563875 | AZ17: 5.738795603 | BA17: 7.016894178 | BB17: 2.318918203 | BC17: 0.135510117 | BD17: 0.1250036197 | BE17: 3.627805421 | BF17: 12.7695343 | BG17: 17.42196959 | BH17: 20.63027272 | BI17: 29.04543872 | BJ17: 17.00508622 | BK17: 2.717057338 | BL17: 1.622914814 | BM17: 1.385898966 | BN17: 2.057895094 | BO17: 9.115550526 | BP17: 3.051115559 | BQ17: 2.864463068 | BR17: 3.458434752 | BS17: 11.27314766 | BT17: 13.6192534 | BU17: 2.875040251 | BV17: 9.209870049 | BW17: 0.4199241887 | BX17: 3.059145133 | BY17: 2.211154094 | BZ17: 0.4127758138 | CA17: 1.334565906 | CB17: 4.500585737 | CC17: 1.821257429 | CD17: 0.9364989521 | CE17: 0.4585351918 | CF17: 1.601544737 | CG17: 4.186275395 | CH17: 1.461662806 | CI17: 0.4111168075 | CJ17: 11.27241629 | CK17: 1.116818246 | CL17: 0.3798161163 | CM17: 0 | CN17: 5.401485223 | CO17: 2.447883398 | CP17: 1.577325846 | CQ17: 0.01089787783 | CR17: 1.964420611 | CS17: 15.52929179 | CT17: 2.353220495 | CU17: 12.03521265 | CV17: 14.53525113 | CW17: 6.592806854 | CX17: 14.66346409 | CY17: 16.65285751 | CZ17: 8.953147496 | DA17: 0 | DB17: 7.897032496 | DC17: 0.1384904839 | DD17: 2.375976881 | DE17: 0 | DF17: 2.123687461 | DG17: 1.068892222 | DH17: 0 | DI17: 2.341247552 | DJ17: 0 | DK17: 3.065427108 | DL17: 14.6786597 | DM17: 10.86910992 | DN17: 14.98329302 | DO17: 4.324421289 | DP17: 10.54999305 | DQ17: 5.799838273 | DR17: 10.94513394 | DS17: 7.907220721 | DT17: 6.993324146 | DU17: 0.1657222584 | DV17: 0.4897490292 | DW17: 0.3200028097 | DX17: 3.105663855 | DY17: 0.6656723553 | DZ17: 0.2711378667 | EA17: 0 | EB17: 3.917089717 | EC17: 2.130256557 | ED17: 0 | EE17: 0.6620499671 | EF17: 0.0084746326 | EG17: 3.554292536 | EH17: 0.4274782737 | EI17: 0.08607118234 | EJ17: 0.8044640373 | EK17: 1.64548596 | EL17: 3.321289055 | EM17: 0.7865549126 | EN17: 0 | EO17: 1.133335482 | EP17: 0.7814744483 | EQ17: 0.7418518232 | ER17: 0.918852833 | ES17: 2.394713216 | ET17: 0 | EU17: 3.063056852 | EV17: 0 | EW17: 0.1015442046 | EX17: 0 | EY17: 0 | EZ17: 2.168373947 | FA17: 0.280454053 | FB17: 0.8601416107 | FC17: 6.342228087 | FD17: 5.735678452 | FE17: 0 | FF17: 0.05822542207 | FG17: 11.93090361 | FH17: 11.791292 | FI17: 0.6962117207 | FJ17: 1.406982548 | FK17: 0 | FL17: 0.6740845044 | FM17: 0 | FN17: 1.932603812 | FO17: 3.365604974 | FP17: 1.632605144 | FQ17: 0.7313296239 | FR17: 0 | FS17: 0 | FT17: 0.005184203495 | FU17: 1.710160112 | FV17: 1.55714816 | FW17: 7.881852553 | FX17: 2.962400138 | FY17: 0.07247208628 | FZ17: 0.08330807468 | GA17: 3.464943929 | GB17: 1.688210102 | GC17: 0.5647327721 | GD17: 0.7748902 | GE17: 1.099837351 | GF17: 3.572489862 | GG17: 3.094890425 | GH17: 6.69396007 | GI17: 0.2885489922 | GJ17: 0 | GK17: 1.853806394 | GL17: 18.62966361 | GM17: 6.565610669 | GN17: 1.905256463 | GO17: 3.770066199 | GP17: 0 | GQ17: 5.314106348 | GR17: 0.2101572299 | GS17: 0.5674433835 | GT17: 11.36271982 | GU17: 0.4626476196 | GV17: 0.02201854998 | GW17: 0.0544925499 | GX17: 0.175065096 | GY17: 0.4547151257 | GZ17: 0.006165794514 | HA17: 4.794104813 | HB17: 1.951648583 | HC17: 0.01004523219 | HD17: 0.06164313149 | HE17: - | HF17: - | HG17: - | HH17: - | HI17: - | HJ17: - | HK17: - | HL17: - | HM17: - | HN17: - | HO17: 0.03453237084
B18: Carbón | C18: 1.564216841 | D18: 0.6143798627 | E18: 2.821717231 | F18: 2.931493908 | G18: 4.577448363 | H18: 5.826026205 | I18: 7.738042368 | J18: 7.618885935 | K18: 6.561259621 | L18: 7.156379838 | M18: 5.90592591 | N18: 6.886919596 | O18: 5.051444113 | P18: 6.898544261 | Q18: 4.275862355 | R18: 5.393164241 | S18: 4.767749406 | T18: 5.897866587 | U18: 9.954453991 | V18: 7.718925066 | W18: 3.103244543 | X18: 5.334591481 | Y18: 4.80024382 | Z18: 5.592623235 | AA18: 1.998081734 | AB18: 5.477809574 | AC18: 1.833334811 | AD18: 2.516780816 | AE18: 3.85174587 | AF18: 2.446848436 | AG18: 3.494119769 | AH18: 6.689774082 | AI18: 5.377372664 | AJ18: 3.877828548 | AK18: 3.966455815 | AL18: 1.995775285 | AM18: 2.861982124 | AN18: 1.109754422 | AO18: 3.334068352 | AP18: 4.671815488 | AQ18: 3.488084393 | AR18: 5.767112489 | AS18: 5.588603994 | AT18: 6.62597041 | AU18: 7.549700367 | AV18: 3.686190847 | AW18: 4.313638184 | AX18: 5.955714425 | AY18: 5.020620299 | AZ18: 3.504412536 | BA18: 4.779193077 | BB18: 5.081432786 | BC18: 5.322908559 | BD18: 5.717388469 | BE18: 7.482158134 | BF18: 3.147958879 | BG18: 4.599602174 | BH18: 10.29137791 | BI18: 5.36389911 | BJ18: 6.558445137 | BK18: 4.776649362 | BL18: 3.199956368 | BM18: 2.04589409 | BN18: 5.427263635 | BO18: 5.327266208 | BP18: 4.550695709 | BQ18: 5.319494382 | BR18: 3.286446204 | BS18: 2.583303579 | BT18: 6.731296969 | BU18: 6.626853305 | BV18: 6.971771085 | BW18: 3.438332138 | BX18: 7.329880417 | BY18: 2.416147766 | BZ18: 2.435509212 | CA18: 1.800584362 | CB18: 4.447192507 | CC18: 2.315224818 | CD18: 3.195176137 | CE18: 3.076107052 | CF18: 10.29934233 | CG18: 12.47826855 | CH18: 11.84267626 | CI18: 12.74421963 | CJ18: 12.56494193 | CK18: 14.40578126 | CL18: 13.12742021 | CM18: 6.902444457 | CN18: 4.444108023 | CO18: 8.979189123 | CP18: 6.531048682 | CQ18: 4.366036682 | CR18: 3.463957906 | CS18: 3.627571363 | CT18: 5.798769459 | CU18: 5.771937478 | CV18: 6.000325556 | CW18: 6.905706682 | CX18: 10.04021263 | CY18: 7.907004852 | CZ18: 8.870766514 | DA18: 8.226276324 | DB18: 6.464300097 | DC18: 7.197740479 | DD18: 8.545490622 | DE18: 7.919537783 | DF18: 11.48524704 | DG18: 5.413207923 | DH18: 7.949528406 | DI18: 7.582961879 | DJ18: 6.367257734 | DK18: 5.803906865 | DL18: 5.526934576 | DM18: 6.852801347 | DN18: 4.490451728 | DO18: 7.072217563 | DP18: 5.98180766 | DQ18: 7.838822136 | DR18: 10.28882013 | DS18: 10.20914763 | DT18: 6.92280499 | DU18: 4.524139925 | DV18: 5.524255142 | DW18: 5.884878501 | DX18: 6.034373613 | DY18: 5.011659281 | DZ18: 2.384188871 | EA18: 2.677783366 | EB18: 6.094400071 | EC18: 0.2618483756 | ED18: 1.5292026 | EE18: 3.560210089 | EF18: 4.643836396 | EG18: 3.586478732 | EH18: 5.367121771 | EI18: 5.180153307 | EJ18: 7.500704663 | EK18: 7.869090858 | EL18: 10.37776029 | EM18: 7.319476429 | EN18: 3.47378854 | EO18: 5.067114572 | EP18: 4.815747854 | EQ18: 3.959435828 | ER18: 6.24079678 | ES18: 5.610207283 | ET18: 2.838957626 | EU18: 5.767055217 | EV18: 4.526795671 | EW18: 5.092028405 | EX18: 7.306124014 | EY18: 2.988603206 | EZ18: 5.025244943 | FA18: 1.750853099 | FB18: 4.656397801 | FC18: 1.581043098 | FD18: 1.022295462 | FE18: 1.012129464 | FF18: 2.180080978 | FG18: 1.222119175 | FH18: 3.046986848 | FI18: 3.333947669 | FJ18: 3.22550388 | FK18: 4.111520097 | FL18: 1.957277573 | FM18: 4.114511527 | FN18: 2.77132817 | FO18: 2.467021238 | FP18: 4.099261879 | FQ18: 4.620380021 | FR18: 4.327561781 | FS18: 7.36659628 | FT18: 7.982686612 | FU18: 6.995303319 | FV18: 1.584559036 | FW18: 6.572330971 | FX18: 4.966515155 | FY18: 8.267745826 | FZ18: 13.76953037 | GA18: 4.664418196 | GB18: 6.256248048 | GC18: 3.868835266 | GD18: 2.381948591 | GE18: 3.452631995 | GF18: 6.596813287 | GG18: 5.10434557 | GH18: 6.670804096 | GI18: 6.922037954 | GJ18: 7.081415804 | GK18: 4.153667262 | GL18: 6.267147542 | GM18: 8.669950016 | GN18: 6.908585752 | GO18: 5.691243474 | GP18: 9.633513446 | GQ18: 6.679377907 | GR18: 1.689597318 | GS18: 4.359379704 | GT18: 5.070019184 | GU18: 8.254256463 | GV18: 7.79713436 | GW18: 7.551198406 | GX18: 7.562305221 | GY18: 15.10829308 | GZ18: 10.03485123 | HA18: 4.343163321 | HB18: 7.351891851 | HC18: 7.974364552 | HD18: 5.634105701 | HE18: - | HF18: - | HG18: - | HH18: - | HI18: - | HJ18: - | HK18: - | HL18: - | HM18: - | HN18: - | HO18: 6.863733233
B19: Fuel + Gas | C19: 2.702669257 | D19: 1.894626243 | E19: 2.945592696 | F19: 3.584067503 | G19: 1.304753757 | H19: 6.189932999 | I19: 5.694074452 | J19: 2.490141894 | K19: 9.031378855 | L19: 18.94613952 | M19: 14.10694016 | N19: 22.32672005 | O19: 7.643283973 | P19: 23.525728 | Q19: 24.38478486 | R19: 19.44343732 | S19: 17.3088848 | T19: 24.78310527 | U19: 21.66699831 | V19: 21.46356083 | W19: 14.66487913 | X19: 13.22398906 | Y19: 10.11220061 | Z19: 9.215823803 | AA19: 5.648389753 | AB19: 17.17984479 | AC19: 7.187811091 | AD19: 6.893563314 | AE19: 4.968832672 | AF19: 5.065067313 | AG19: 5.852598031 | AH19: 9.732395775 | AI19: 9.594435858 | AJ19: 12.03414981 | AK19: 6.873756765 | AL19: 9.772418892 | AM19: 5.223931068 | AN19: 6.37300107 | AO19: 7.46449652 | AP19: 6.391954777 | AQ19: 6.00975013 | AR19: 5.911291155 | AS19: 5.253857854 | AT19: 12.32453113 | AU19: 8.363350804 | AV19: 7.120289161 | AW19: 7.419503873 | AX19: 8.487589979 | AY19: 6.49067281 | AZ19: 9.817928997 | BA19: 17.41233047 | BB19: 8.433102185 | BC19: 16.88665512 | BD19: 13.08224486 | BE19: 11.77934441 | BF19: 6.929081894 | BG19: 8.516557734 | BH19: 12.65461487 | BI19: 11.42963779 | BJ19: 9.584636304 | BK19: 9.035016698 | BL19: 15.98050722 | BM19: 11.78216002 | BN19: 15.8605796 | BO19: 11.99472431 | BP19: 12.58043128 | BQ19: 9.274520044 | BR19: 10.1465294 | BS19: 7.424762704 | BT19: 10.24031136 | BU19: 8.692372234 | BV19: 16.89962379 | BW19: 8.718286068 | BX19: 9.176980288 | BY19: 9.44005663 | BZ19: 16.96522354 | CA19: 12.96035544 | CB19: 11.06298822 | CC19: 7.663743117 | CD19: 7.203170494 | CE19: 6.385091881 | CF19: 7.529092667 | CG19: 2.19143559 | CH19: 5.354180751 | CI19: 2.23006589 | CJ19: 1.186160776 | CK19: 4.874444611 | CL19: 4.129059015 | CM19: 15.3583583 | CN19: 8.708628907 | CO19: 5.932397735 | CP19: 4.452390413 | CQ19: 4.769722408 | CR19: 7.625528705 | CS19: 5.400847128 | CT19: 7.63037302 | CU19: 1.54099415 | CV19: 7.723178486 | CW19: 9.472353461 | CX19: 7.386367352 | CY19: 1.603488337 | CZ19: 0.6302132191 | DA19: 0.3631642835 | DB19: 4.894451275 | DC19: 3.159771583 | DD19: 8.282702759 | DE19: 4.33306089 | DF19: 7.060413621 | DG19: 6.93601066 | DH19: 4.225372837 | DI19: 4.923735433 | DJ19: 4.19482032 | DK19: 4.423461893 | DL19: 7.050280116 | DM19: 23.71576669 | DN19: 16.3893093 | DO19: 7.571859827 | DP19: 7.217382736 | DQ19: 9.661530453 | DR19: 11.53715547 | DS19: 7.661682147 | DT19: 7.109217262 | DU19: 7.268255319 | DV19: 7.281829542 | DW19: 22.21771351 | DX19: 22.69842355 | DY19: 17.83295837 | DZ19: 1.723983855 | EA19: 1.911191279 | EB19: 10.24735699 | EC19: 1.623069224 | ED19: 1.623069224 | EE19: 5.034791315 | EF19: 3.951271855 | EG19: 0 | EH19: 0 | EI19: 0 | EJ19: 0 | EK19: 0 | EL19: 0 | EM19: 0 | EN19: 0 | EO19: 1.256574306 | EP19: 0 | EQ19: 0 | ER19: 0 | ES19: 0 | ET19: 0 | EU19: 0 | EV19: 0 | EW19: 0 | EX19: 0 | EY19: 0 | EZ19: 0 | FA19: 0 | FB19: 0 | FC19: 0 | FD19: 0 | FE19: 0 | FF19: 0 | FG19: 0 | FH19: 0 | FI19: 0 | FJ19: 0 | FK19: 0 | FL19: 0 | FM19: 0 | FN19: 0 | FO19: 0 | FP19: 0 | FQ19: 0 | FR19: 0 | FS19: 21.77083333 | FT19: 100 | FU19: 100 | FV19: 100 | FW19: 100 | FX19: 100 | FY19: 100 | FZ19: 100 | GA19: 100 | GB19: 68.92408676 | GC19: 100 | GD19: 100 | GE19: 100 | GF19: 100 | GG19: 94.73318713 | GH19: - | GI19: - | GJ19: - | GK19: - | GL19: - | GM19: - | GN19: - | GO19: 99.27986007 | GP19: - | GQ19: - | GR19: - | GS19: - | GT19: - | GU19: - | GV19: - | GW19: - | GX19: - | GY19: - | GZ19: - | HA19: - | HB19: - | HC19: - | HD19: - | HE19: - | HF19: - | HG19: - | HH19: - | HI19: - | HJ19: - | HK19: - | HL19: - | HM19: - | HN19: - | HO19: -
B20: Ciclo combinado | C20: - | D20: - | E20: - | F20: - | G20: - | H20: - | I20: - | J20: - | K20: - | L20: - | M20: - | N20: - | O20: - | P20: - | Q20: - | R20: 0 | S20: 0 | T20: 0 | U20: 0 | V20: 1.518143233 | W20: 3.38327098 | X20: 4.913842605 | Y20: 4.600187814 | Z20: 10.22050519 | AA20: 3.747856004 | AB20: 3.78638517 | AC20: 2.446260318 | AD20: 3.380552786 | AE20: 2.941576615 | AF20: 7.825461224 | AG20: 7.896923882 | AH20: 3.06873728 | AI20: 4.052022908 | AJ20: 8.63073581 | AK20: 1.250385429 | AL20: 4.548915689 | AM20: 0.3637469511 | AN20: 0.6582771308 | AO20: 3.833996001 | AP20: 0.8464428867 | AQ20: 0.4987341037 | AR20: 2.174245863 | AS20: 4.318330069 | AT20: 4.174433056 | AU20: 4.935101328 | AV20: 1.271694493 | AW20: 7.985952449 | AX20: 3.341411403 | AY20: 4.196539418 | AZ20: 0.2088658905 | BA20: 4.154078475 | BB20: 3.31456911 | BC20: 5.838736257 | BD20: 6.297133223 | BE20: 16.33474789 | BF20: 10.59585791 | BG20: 12.19519358 | BH20: 6.359172888 | BI20: 3.491360138 | BJ20: 8.544151026 | BK20: 6.966131558 | BL20: 7.411790167 | BM20: 3.216539973 | BN20: 6.061539314 | BO20: 7.665872488 | BP20: 3.053047961 | BQ20: 3.302568887 | BR20: 2.122164091 | BS20: 2.460673354 | BT20: 6.742701021 | BU20: 5.547110348 | BV20: 4.064717402 | BW20: 5.895929154 | BX20: 5.806507058 | BY20: 3.681090312 | BZ20: 4.319657957 | CA20: 6.741229227 | CB20: 4.54885798 | CC20: 3.115612224 | CD20: 5.491086675 | CE20: 4.325184531 | CF20: 7.781905455 | CG20: 6.922880704 | CH20: 4.46059521 | CI20: 4.335528468 | CJ20: 5.44766476 | CK20: 8.892707112 | CL20: 8.265870543 | CM20: 7.493516329 | CN20: 6.871461028 | CO20: 6.221906782 | CP20: 5.625047679 | CQ20: 3.520854982 | CR20: 4.477270872 | CS20: 3.277448448 | CT20: 5.1426348 | CU20: 4.832090344 | CV20: 5.800952241 | CW20: 3.871659972 | CX20: 3.720140929 | CY20: 5.235884582 | CZ20: 6.84249888 | DA20: 7.070276219 | DB20: 4.966854011 | DC20: 3.962763269 | DD20: 3.530790989 | DE20: 5.804707981 | DF20: 6.212420101 | DG20: 5.533249534 | DH20: 2.245054361 | DI20: 1.034781326 | DJ20: 5.974017372 | DK20: 11.4243201 | DL20: 9.421237437 | DM20: 10.64344481 | DN20: 3.269612554 | DO20: 5.757559311 | DP20: 4.071172396 | DQ20: 3.29603324 | DR20: 5.096186643 | DS20: 5.505781163 | DT20: 6.852363909 | DU20: 4.294256433 | DV20: 1.170771903 | DW20: 3.404163376 | DX20: 2.964286884 | DY20: 2.218349716 | DZ20: 2.569939739 | EA20: 0.7507883101 | EB20: 3.481404864 | EC20: 1.072985302 | ED20: 0.5044816062 | EE20: 2.975650023 | EF20: 1.524170579 | EG20: 1.506913554 | EH20: 1.012208269 | EI20: 0.8909667483 | EJ20: 1.962351143 | EK20: 5.914439276 | EL20: 4.822101635 | EM20: 3.311799714 | EN20: 1.999715191 | EO20: 2.29961002 | EP20: 1.685999784 | EQ20: 3.351748767 | ER20: 3.691360993 | ES20: 4.365378568 | ET20: 1.656840926 | EU20: 2.716193317 | EV20: 1.403187971 | EW20: 1.585141758 | EX20: 1.746231812 | EY20: 4.9975495 | EZ20: 3.878922965 | FA20: 1.353741265 | FB20: 2.694135901 | FC20: 0.70076695 | FD20: 0.2844518444 | FE20: 2.455642861 | FF20: 0.9972023289 | FG20: 2.228265506 | FH20: 1.663179684 | FI20: 0.4451476991 | FJ20: 0.7437011337 | FK20: 1.33347543 | FL20: 4.143460589 | FM20: 2.688927727 | FN20: 1.526429379 | FO20: 1.611231655 | FP20: 0.4220495402 | FQ20: 0.2510039503 | FR20: 0.6032766362 | FS20: 1.26764947 | FT20: 3.094782004 | FU20: 1.072442732 | FV20: 1.527281122 | FW20: 2.124119298 | FX20: 5.167380185 | FY20: 6.000616696 | FZ20: 4.481535501 | GA20: 1.756902827 | GB20: 2.324172899 | GC20: 1.434720581 | GD20: 0.6998070229 | GE20: 2.675823346 | GF20: 2.169061961 | GG20: 2.358831979 | GH20: 1.85164352 | GI20: 0.4515832654 | GJ20: 1.384432916 | GK20: 1.135516881 | GL20: 3.149059986 | GM20: 11.92540617 | GN20: 9.023133647 | GO20: 3.196899529 | GP20: 5.734898635 | GQ20: 5.854313731 | GR20: 5.741749012 | GS20: 6.301426589 | GT20: 7.460763356 | GU20: 5.630008167 | GV20: 1.845156727 | GW20: 3.665720909 | GX20: 3.147267511 | GY20: 6.256140218 | GZ20: 4.971992781 | HA20: 2.848683768 | HB20: 4.949354847 | HC20: 2.531771221 | HD20: 2.654269072 | HE20: - | HF20: - | HG20: - | HH20: - | HI20: - | HJ20: - | HK20: - | HL20: - | HM20: - | HN20: - | HO20: 2.589905794
B21: Indisponibilidad no prevista | C21: 1.564040542 | D21: 0.9589870299 | E21: 2.080017148 | F21: 2.306788443 | G21: 2.376781385 | H21: 4.99814079 | I21: 4.894167175 | J21: 3.921989984 | K21: 5.34705492 | L21: 8.924029871 | M21: 7.054639592 | N21: 9.558340962 | O21: 4.524868894 | P21: 9.637881662 | Q21: 8.786447865 | R21: 8.308582934 | S21: 7.185741171 | T21: 9.214406084 | U21: 10.01809938 | V21: 8.865274344 | W21: 5.41310589 | X21: 6.067109208 | Y21: 5.013783592 | Z21: 5.461969782 | AA21: 2.603585667 | AB21: 7.158446121 | AC21: 3.140182533 | AD21: 3.269548864 | AE21: 3.129568431 | AF21: 3.354265854 | AG21: 6.677739328 | AH21: 6.857992878 | AI21: 4.830795792 | AJ21: 5.593148644 | AK21: 3.225633035 | AL21: 3.593672923 | AM21: 2.377321822 | AN21: 1.949152532 | AO21: 3.995220155 | AP21: 3.584404932 | AQ21: 2.75603923 | AR21: 4.288899714 | AS21: 3.915655628 | AT21: 6.895863168 | AU21: 5.676745585 | AV21: 3.078705243 | AW21: 5.063248578 | AX21: 4.501669734 | AY21: 5.002440317 | AZ21: 4.477736263 | BA21: 7.661435789 | BB21: 4.778502986 | BC21: 6.560894806 | BD21: 6.061525653 | BE21: 9.822994401 | BF21: 8.024937687 | BG21: 10.26331974 | BH21: 11.90093466 | BI21: 11.16264472 | BJ21: 9.96893196 | BK21: 5.748316333 | BL21: 6.435927819 | BM21: 3.976769084 | BN21: 6.741840209 | BO21: 8.041818456 | BP21: 5.13114128 | BQ21: 4.811153544 | BR21: 4.068935185 | BS21: 5.072361625 | BT21: 8.668910087 | BU21: 5.856276484 | BV21: 7.856521525 | BW21: 4.655184719 | BX21: 6.246625015 | BY21: 3.97835077 | BZ21: 5.090196336 | CA21: 5.376407274 | CB21: 5.575118109 | CC21: 3.379222453 | CD21: 4.291527106 | CE21: 3.599439821 | CF21: 7.289870678 | CG21: 7.166737729 | CH21: 5.987213064 | CI21: 5.510036597 | CJ21: 7.656541906 | CK21: 8.416600504 | CL21: 7.607464288 | CM21: 7.074287855 | CN21: 6.226674565 | CO21: 6.227099061 | CP21: 5.037590293 | CQ21: 3.249527723 | CR21: 4.096086985 | CS21: 5.666304987 | CT21: 5.068867023 | CU21: 5.973765121 | CV21: 7.518097316 | CW21: 5.619056305 | CX21: 7.494290431 | CY21: 7.491696803 | CZ21: 7.111286535 | DA21: 5.515574826 | DB21: 5.831598767 | DC21: 4.036832194 | DD21: 5.027292777 | DE21: 5.201742514 | DF21: 6.902606978 | DG21: 4.881361598 | DH21: 3.44835181 | DI21: 3.21963555 | DJ21: 4.904589122 | DK21: 8.014525472 | DL21: 9.147132684 | DM21: 10.8526164 | DN21: 6.511767516 | DO21: 6.002638834 | DP21: 5.842976138 | DQ21: 5.198961764 | DR21: 7.74059485 | DS21: 7.191142078 | DT21: 6.906210878 | DU21: 3.812251287 | DV21: 2.397388439 | DW21: 4.376925671 | DX21: 4.655903674 | DY21: 3.368683028 | DZ21: 2.104527746 | EA21: 1.143144199 | EB21: 4.530470227 | EC21: 1.070821644 | ED21: 0.7183977358 | EE21: 2.82004902 | EF21: 2.135004333 | EG21: 2.294760208 | EH21: 1.957502737 | EI21: 1.792263695 | EJ21: 3.08344345 | EK21: 5.512371251 | EL21: 5.80971641 | EM21: 3.785259751 | EN21: 1.980703351 | EO21: 2.752385749 | EP21: 2.283857577 | EQ21: 2.997825903 | ER21: 3.788967067 | ES21: 4.261315593 | ET21: 1.639789674 | EU21: 3.48570401 | EV21: 1.910760735 | EW21: 2.170514972 | EX21: 2.791908927 | EY21: 3.554377705 | EZ21: 3.799393569 | FA21: 1.242259912 | FB21: 2.819221735 | FC21: 1.885810204 | FD21: 1.406623892 | FE21: 1.650046683 | FF21: 1.110323979 | FG21: 3.641587791 | FH21: 3.738014745 | FI21: 1.185987247 | FJ21: 1.453654232 | FK21: 1.762113636 | FL21: 2.961804889 | FM21: 2.537781236 | FN21: 1.881936772 | FO21: 2.105093202 | FP21: 1.521372583 | FQ21: 1.393888452 | FR21: 1.397175515 | FS21: 2.768181248 | FT21: 4.866492591 | FU21: 3.758792674 | FV21: 2.690795251 | FW21: 5.334760432 | FX21: 5.837354271 | FY21: 6.606669831 | FZ21: 7.061383749 | GA21: 3.895920186 | GB21: 3.936821364 | GC21: 3.014692475 | GD21: 2.271880545 | GE21: 3.719573373 | GF21: 4.616141358 | GG21: 3.812352593 | GH21: 3.87814558 | GI21: 1.998474944 | GJ21: 2.52782287 | GK21: 1.99699209 | GL21: 6.635317349 | GM21: 10.18852327 | GN21: 7.254377814 | GO21: 4.330341139 | GP21: 5.674016946 | GQ21: 5.956298763 | GR21: 3.822699415 | GS21: 4.828052784 | GT21: 7.619541215 | GU21: 5.294605207 | GV21: 2.866444102 | GW21: 3.896485978 | GX21: 3.61316799 | GY21: 7.218691798 | GZ21: 5.225811435 | HA21: 3.537834162 | HB21: 4.962799763 | HC21: 3.311773263 | HD21: 2.863096206 | HE21: - | HF21: - | HG21: - | HH21: - | HI21: - | HJ21: - | HK21: - | HL21: - | HM21: - | HN21: - | HO21: 3.098841778
B23: Disponibilidad equipo térmico mensual peninsular (%) | C23: 2001-01-01 | D23: 2001-02-01 | E23: 2001-03-01 | F23: 2001-04-01 | G23: 2001-05-01 | H23: 2001-06-01 | I23: 2001-07-01 | J23: 2001-08-01 | K23: 2001-09-01 | L23: 2001-10-01 | M23: 2001-11-01 | N23: 2001-12-01 | O23: 2001 | P23: 2002-01-01 | Q23: 2002-02-01 | R23: 2002-03-01 | S23: 2002-04-01 | T23: 2002-05-01 | U23: 2002-06-01 | V23: 2002-07-01 | W23: 2002-08-01 | X23: 2002-09-01 | Y23: 2002-10-01 | Z23: 2002-11-01 | AA23: 2002-12-01 | AB23: 2002 | AC23: 2003-01-01 | AD23: 2003-02-01 | AE23: 2003-03-01 | AF23: 2003-04-01 | AG23: 2003-05-01 | AH23: 2003-06-01 | AI23: 2003-07-01 | AJ23: 2003-08-01 | AK23: 2003-09-01 | AL23: 2003-10-01 | AM23: 2003-11-01 | AN23: 2003-12-01 | AO23: 2003 | AP23: 2004-01-01 | AQ23: 2004-02-01 | AR23: 2004-03-01 | AS23: 2004-04-01 | AT23: 2004-05-01 | AU23: 2004-06-01 | AV23: 2004-07-01 | AW23: 2004-08-01 | AX23: 2004-09-01 | AY23: 2004-10-01 | AZ23: 2004-11-01 | BA23: 2004-12-01 | BB23: 2004 | BC23: 2005-01-01 | BD23: 2005-02-01 | BE23: 2005-03-01 | BF23: 2005-04-01 | BG23: 2005-05-01 | BH23: 2005-06-01 | BI23: 2005-07-01 | BJ23: 2005-08-01 | BK23: 2005-09-01 | BL23: 2005-10-01 | BM23: 2005-11-01 | BN23: 2005-12-01 | BO23: 2005 | BP23: 2006-01-01 | BQ23: 2006-02-01 | BR23: 2006-03-01 | BS23: 2006-04-01 | BT23: 2006-05-01 | BU23: 2006-06-01 | BV23: 2006-07-01 | BW23: 2006-08-01 | BX23: 2006-09-01 | BY23: 2006-10-01 | BZ23: 2006-11-01 | CA23: 2006-12-01 | CB23: 2006 | CC23: 2007-01-01 | CD23: 2007-02-01 | CE23: 2007-03-01 | CF23: 2007-04-01 | CG23: 2007-05-01 | CH23: 2007-06-01 | CI23: 2007-07-01 | CJ23: 2007-08-01 | CK23: 2007-09-01 | CL23: 2007-10-01 | CM23: 2007-11-01 | CN23: 2007-12-01 | CO23: 2007 | CP23: 2008-01-01 | CQ23: 2008-02-01 | CR23: 2008-03-01 | CS23: 2008-04-01 | CT23: 2008-05-01 | CU23: 2008-06-01 | CV23: 2008-07-01 | CW23: 2008-08-01 | CX23: 2008-09-01 | CY23: 2008-10-01 | CZ23: 2008-11-01 | DA23: 2008-12-01 | DB23: 2008 | DC23: 2009-01-01 | DD23: 2009-02-01 | DE23: 2009-03-01 | DF23: 2009-04-01 | DG23: 2009-05-01 | DH23: 2009-06-01 | DI23: 2009-07-01 | DJ23: 2009-08-01 | DK23: 2009-09-01 | DL23: 2009-10-01 | DM23: 2009-11-01 | DN23: 2009-12-01 | DO23: 2009 | DP23: 2010-01-31 | DQ23: 2010-02-28 | DR23: 2010-03-31 | DS23: 2010-04-30 | DT23: 2010-05-31 | DU23: 2010-06-30 | DV23: 2010-07-31 | DW23: 2010-08-31 | DX23: 2010-09-30 | DY23: 2010-10-31 | DZ23: 2010-11-30 | EA23: 2010-12-31 | EB23: 2010 | EC23: 2011-01-31 | ED23: 2011-02-28 | EE23: 2011-03-31 | EF23: 2011-04-30 | EG23: 2011-05-31 | EH23: 2011-06-30 | EI23: 2011-07-31 | EJ23: 2011-08-31 | EK23: 2011-09-30 | EL23: 2011-10-31 | EM23: 2011-11-30 | EN23: 2011-12-31 | EO23: 2011 | EP23: 2012-01-31 | EQ23: 2012-02-29 | ER23: 2012-03-31 | ES23: 2012-04-30 | ET23: 2012-05-31 | EU23: 2012-06-30 | EV23: 2012-07-31 | EW23: 2012-08-31 | EX23: 2012-09-30 | EY23: 2012-10-31 | EZ23: 2012-11-30 | FA23: 2012-12-31 | FB23: 2012 | FC23: 2013-01-31 | FD23: 2013-02-28 | FE23: 2013-03-31 | FF23: 2013-04-30 | FG23: 2013-05-31 | FH23: 2013-06-30 | FI23: 2013-07-31 | FJ23: 2013-08-31 | FK23: 2013-09-30 | FL23: 2013-10-31 | FM23: 2013-11-30 | FN23: 2013-12-31 | FO23: 2013 | FP23: 2014-01-31 | FQ23: 2014-02-28 | FR23: 2014-03-31 | FS23: 2014-04-30 | FT23: 2014-05-31 | FU23: 2014-06-30 | FV23: 2014-07-31 | FW23: 2014-08-31 | FX23: 2014-09-30 | FY23: 2014-10-31 | FZ23: 2014-11-30 | GA23: 2014-12-31 | GB23: 2014 | GC23: 2015-01-31 | GD23: 2015-02-28 | GE23: 2015-03-31 | GF23: 2015-04-30 | GG23: 2015-05-31 | GH23: 2015-06-30 | GI23: 2015-07-31 | GJ23: 2015-08-31 | GK23: 2015-09-30 | GL23: 2015-10-31 | GM23: 2015-11-30 | GN23: 2015-12-31 | GO23: 2015 | GP23: 2016-01-31 | GQ23: 2016-02-29 | GR23: 2016-03-31 | GS23: 2016-04-30 | GT23: 2016-05-31 | GU23: 2016-06-30 | GV23: 2016-07-31 | GW23: 2016-08-31 | GX23: 2016-09-30 | GY23: 2016-10-31 | GZ23: 2016-11-30 | HA23: 2016-12-31 | HB23: 2016 | HC23: 2017-01-31 | HD23: 2017-02-28 | HE23: 2017-03-31 | HF23: 2017-04-30 | HG23: 2017-05-31 | HH23: 2017-06-30 | HI23: 2017-07-31 | HJ23: 2017-08-31 | HK23: 2017-09-30 | HL23: 2017-10-31 | HM23: 2017-11-30 | HN23: 2017-12-31 | HO23: 2017
B24: Nuclear | C24: 99.55168042 | D24: 97.18226898 | E24: 85.5830795 | F24: 85.94461463 | G24: 99.74222022 | H24: 97.35705618 | I24: 99.72126591 | J24: 98.01752043 | K24: 89.58860493 | L24: 88.48674659 | M24: 97.32959616 | N24: 99.08345728 | O24: 94.80473192 | P24: 100 | Q24: 97.63543921 | R24: 80.84372725 | S24: 81.41903645 | T24: 86.81424379 | U24: 95.32733325 | V24: 99.47426114 | W24: 98.73957296 | X24: 87.47466433 | Y24: 97.87462935 | Z24: 99.89180081 | AA24: 99.77500798 | AB24: 93.77274433 | AC24: 98.54488595 | AD24: 99.08026189 | AE24: 85.09416884 | AF24: 89.11765884 | AG24: 86.1788146 | AH24: 86.0365057 | AI24: 99.78645774 | AJ24: 99.15665539 | AK24: 81.18521548 | AL24: 84.79462538 | AM24: 98.73576752 | AN24: 98.13903033 | AO24: 92.13781797 | AP24: 98.12823727 | AQ24: 99.83651579 | AR24: 90.00567981 | AS24: 95.18007104 | AT24: 88.15713499 | AU24: 96.38796567 | AV24: 99.79793459 | AW24: 98.73952221 | AX24: 88.18995672 | AY24: 82.58423067 | AZ24: 94.2612044 | BA24: 92.98310582 | BB24: 93.65471837 | BC24: 99.86448988 | BD24: 97.85129474 | BE24: 83.17359026 | BF24: 72.84225032 | BG24: 67.2381397 | BH24: 70.96996179 | BI24: 70.95456128 | BJ24: 82.99491378 | BK24: 97.28294266 | BL24: 85.31978047 | BM24: 97.09074882 | BN24: 97.94210491 | BO24: 85.19778376 | BP24: 96.94888444 | BQ24: 97.13553693 | BR24: 90.86800393 | BS24: 70.56668576 | BT24: 81.18005215 | BU24: 97.12495975 | BV24: 90.79012995 | BW24: 97.77097833 | BX24: 84.32921549 | BY24: 85.53508078 | BZ24: 97.89900319 | CA24: 98.66543409 | CB24: 90.70520048 | CC24: 98.17874257 | CD24: 96.66596793 | CE24: 91.6789519 | CF24: 87.72933972 | CG24: 66.70497912 | CH24: 60.60770522 | CI24: 72.58651992 | CJ24: 74.71123622 | CK24: 94.94108402 | CL24: 90.37649701 | CM24: 76.45492071 | CN24: 94.59851478 | CO24: 83.70543291 | CP24: 98.42267415 | CQ24: 99.98910212 | CR24: 98.03557939 | CS24: 77.24301208 | CT24: 86.68270315 | CU24: 87.96478735 | CV24: 85.46474887 | CW24: 93.40719315 | CX24: 85.33653591 | CY24: 80.31099485 | CZ24: 77.74138197 | DA24: 91.39496115 | DB24: 88.504922 | DC24: 99.86150952 | DD24: 88.86013339 | DE24: 72.16057171 | DF24: 77.17841406 | DG24: 68.1957391 | DH24: 67.94071614 | DI24: 77.31280394 | DJ24: 100 | DK24: 85.06966395 | DL24: 75.896608 | DM24: 77.2957575 | DN24: 72.35504954 | DO24: 80.14253887 | DP24: 82.52353574 | DQ24: 94.20016173 | DR24: 89.05486606 | DS24: 92.09277928 | DT24: 81.12646866 | DU24: 88.70265006 | DV24: 99.51025097 | DW24: 99.67999719 | DX24: 96.89433615 | DY24: 99.33432764 | DZ24: 95.6300028 | EA24: 87.27940208 | EB24: 92.15793565 | EC24: 86.9382598 | ED24: 86.10591415 | EE24: 80.3139978 | EF24: 84.15674513 | EG24: 67.0884952 | EH24: 89.79547084 | EI24: 91.30050955 | EJ24: 99.19553596 | EK24: 95.56389021 | EL24: 82.62801752 | EM24: 85.96872972 | EN24: 86.90010538 | EO24: 86.31022308 | EP24: 94.04195429 | EQ24: 99.25814818 | ER24: 99.08114717 | ES24: 97.60528678 | ET24: 81.28963277 | EU24: 68.88920656 | EV24: 94.55984157 | EW24: 99.8984558 | EX24: 100 | EY24: 97.84613229 | EZ24: 75.61149104 | FA24: 78.87318279 | FB24: 90.58719977 | FC24: 83.44458574 | FD24: 88.25197173 | FE24: 93.98765018 | FF24: 82.9979585 | FG24: 72.7643255 | FH24: 82.19635818 | FI24: 93.29143846 | FJ24: 92.58066763 | FK24: 89.77918444 | FL24: 79.30735443 | FM24: 77.35943768 | FN24: 72.52707245 | FO24: 84.01600851 | FP24: 81.69480528 | FQ24: 93.25632056 | FR24: 93.98765018 | FS24: 93.98765018 | FT24: 77.96013123 | FU24: 66.05590735 | FV24: 79.0757405 | FW24: 77.95652111 | FX24: 91.02525004 | FY24: 93.89759966 | FZ24: 80.80840915 | GA24: 85.04846546 | GB24: 84.50887134 | GC24: 93.42291741 | GD24: 93.21275998 | GE24: 92.88781283 | GF24: 87.18848039 | GG24: 64.32570579 | GH24: 71.25070604 | GI24: 89.43226785 | GJ24: 93.98765018 | GK24: 92.13384379 | GL24: 74.93435998 | GM24: 74.27196384 | GN24: 88.26492439 | GO24: 84.57392831 | GP24: 81.92528494 | GQ24: 79.90468461 | GR24: 93.77749295 | GS24: 92.9836757 | GT24: 69.5289974 | GU24: 90.54385893 | GV24: 93.96563163 | GW24: 93.93315763 | GX24: 93.81258508 | GY24: 92.18033992 | GZ24: 69.55158071 | HA24: 79.26628078 | HB24: 85.97216683 | HC24: 93.97760495 | HD24: 93.92600705 | HE24: - | HF24: - | HG24: - | HH24: - | HI24: - | HJ24: - | HK24: - | HL24: - | HM24: - | HN24: - | HO24: 93.95311781
B25: Carbón | C25: 98.43578316 | D25: 98.2259783 | E25: 94.60335484 | F25: 89.4897428 | G25: 83.74669112 | H25: 86.83820373 | I25: 92.26195763 | J25: 92.38111406 | K25: 92.8663775 | L25: 91.07172979 | M25: 94.09407409 | N25: 93.1130804 | O25: 92.22588667 | P25: 93.10145574 | Q25: 95.72413765 | R25: 93.84486121 | S25: 89.10707081 | T25: 87.77891194 | U25: 85.36317665 | V25: 86.49158803 | W25: 92.35135391 | X25: 91.636893 | Y25: 86.94177753 | Z25: 92.22195221 | AA25: 96.79876945 | AB25: 90.92098928 | AC25: 96.9631738 | AD25: 93.3304629 | AE25: 87.39405092 | AF25: 89.88814891 | AG25: 87.64781531 | AH25: 87.9757341 | AI25: 93.41813212 | AJ25: 93.72954089 | AK25: 93.09887009 | AL25: 93.70411137 | AM25: 94.42952295 | AN25: 97.6869763 | AO25: 92.444349 | AP25: 94.12491524 | AQ25: 95.30864633 | AR25: 89.08537709 | AS25: 80.31483867 | AT25: 78.96931702 | AU25: 89.57936414 | AV25: 95.10873771 | AW25: 94.48129037 | AX25: 92.61108615 | AY25: 92.01069467 | AZ25: 91.43881773 | BA25: 92.89294092 | BB25: 90.4907469 | BC25: 93.47201999 | BD25: 91.38997691 | BE25: 86.3978426 | BF25: 82.29022728 | BG25: 84.26048757 | BH25: 85.65380022 | BI25: 91.98389283 | BJ25: 93.44155486 | BK25: 95.22335064 | BL25: 96.73921626 | BM25: 97.00468209 | BN25: 94.57273637 | BO25: 91.03323116 | BP25: 95.44930429 | BQ25: 90.80859468 | BR25: 96.26297656 | BS25: 92.53941172 | BT25: 85.17756676 | BU25: 92.24935234 | BV25: 93.00236913 | BW25: 93.35505508 | BX25: 86.12543378 | BY25: 85.36998983 | BZ25: 90.70582606 | CA25: 96.55313411 | CB25: 91.4819406 | CC25: 97.07146357 | CD25: 96.19151225 | CE25: 96.31048869 | CF25: 89.08725342 | CG25: 86.90832719 | CH25: 86.18870806 | CI25: 86.28196666 | CJ25: 85.521603 | CK25: 82.6054243 | CL25: 77.89770398 | CM25: 81.05536442 | CN25: 89.01679731 | CO25: 87.80772466 | CP25: 82.27747417 | CQ25: 77.67922501 | CR25: 78.44420247 | CS25: 81.00247447 | CT25: 76.43446393 | CU25: 75.57110437 | CV25: 76.8058752 | CW25: 77.43513961 | CX25: 81.58684606 | CY25: 81.58924751 | CZ25: 77.66121769 | DA25: 80.88663866 | DB25: 78.95505392 | DC25: 82.81008768 | DD25: 82.63943256 | DE25: 82.58606942 | DF25: 72.53375925 | DG25: 78.69315192 | DH25: 87.74051515 | DI25: 90.54844359 | DJ25: 91.76901826 | DK25: 91.77253396 | DL25: 90.61248549 | DM25: 90.10873875 | DN25: 94.89240078 | DO25: 86.43333241 | DP25: 93.40104485 | DQ25: 91.54403037 | DR25: 88.43588718 | DS25: 84.07993531 | DT25: 87.36627795 | DU25: 94.49861138 | DV25: 93.85859737 | DW25: 93.49897005 | DX25: 91.59443001 | DY25: 88.66365063 | DZ25: 91.73938168 | EA25: 95.47653252 | EB25: 91.18518922 | EC25: 99.73815162 | ED25: 97.65848829 | EE25: 93.7889 | EF25: 92.45469738 | EG25: 90.9205994 | EH25: 94.63287823 | EI25: 94.81984669 | EJ25: 91.70374118 | EK25: 88.61638502 | EL25: 84.55327307 | EM25: 89.93989445 | EN25: 96.11338144 | EO25: 92.89420474 | EP25: 93.90998763 | EQ25: 94.72565044 | ER25: 92.43349773 | ES25: 88.95362468 | ET25: 88.21307847 | EU25: 89.73527676 | EV25: 95.47320433 | EW25: 93.24430383 | EX25: 89.55325903 | EY25: 87.53783137 | EZ25: 92.15056074 | FA25: 97.48584652 | FB25: 91.9418332 | FC25: 97.07545822 | FD25: 97.63528459 | FE25: 95.38165831 | FF25: 87.72519434 | FG25: 82.79961416 | FH25: 89.14863775 | FI25: 93.81727458 | FJ25: 93.48950229 | FK25: 88.56543179 | FL25: 88.70488412 | FM25: 92.60049464 | FN25: 93.93926268 | FO25: 91.71495744 | FP25: 92.61574429 | FQ25: 92.09462615 | FR25: 92.38744439 | FS25: 89.01195576 | FT25: 84.94951385 | FU25: 89.91836671 | FV25: 96.44563197 | FW25: 91.45786003 | FX25: 92.09063154 | FY25: 84.32011676 | FZ25: 77.08649465 | GA25: 93.36577281 | GB25: 89.657692 | GC25: 94.16135574 | GD25: 95.64824241 | GE25: 92.04183626 | GF25: 79.37866618 | GG25: 82.26544971 | GH25: 88.54574156 | GI25: 91.10815305 | GJ25: 90.9487752 | GK25: 93.87652374 | GL25: 91.76304346 | GM25: 88.41029448 | GN25: 91.12160525 | GO25: 89.91833624 | GP25: 87.68283267 | GQ25: 93.20407137 | GR25: 89.96030086 | GS25: 78.11230736 | GT25: 82.22300915 | GU25: 87.58311569 | GV25: 92.20286564 | GW25: 91.87837814 | GX25: 86.54331912 | GY25: 75.35599294 | GZ25: 85.26184092 | HA25: 89.02543276 | HB25: 86.61762725 | HC25: 86.1791841 | HD25: 88.51944295 | HE25: - | HF25: - | HG25: - | HH25: - | HI25: - | HJ25: - | HK25: - | HL25: - | HM25: - | HN25: - | HO25: 87.28981542
B26: Fuel + Gas | C26: 93.33520758 | D26: 94.14325059 | E26: 93.09228414 | F26: 91.04942293 | G26: 90.25530605 | H26: 88.10549418 | I26: 90.34380238 | J26: 92.08449143 | K26: 86.01547475 | L26: 71.51049942 | M26: 74.72465897 | N26: 65.61504653 | O26: 85.7953399 | P26: 69.39156761 | Q26: 68.5365763 | R26: 73.47792384 | S26: 72.14229466 | T26: 66.66082313 | U26: 71.25436285 | V26: 71.32846709 | W26: 76.69288795 | X26: 75.81479139 | Y26: 76.93089487 | Z26: 71.23059047 | AA26: 86.9811775 | AB26: 73.35270016 | AC26: 85.43827876 | AD26: 85.67332976 | AE26: 85.08118046 | AF26: 71.47189338 | AG26: 77.84059145 | AH26: 79.9368528 | AI26: 82.43126642 | AJ26: 79.96618677 | AK26: 85.12657981 | AL26: 81.55553435 | AM26: 86.77640551 | AN26: 85.6273355 | AO26: 82.27114837 | AP26: 85.63526409 | AQ26: 86.01746874 | AR26: 86.11592772 | AS26: 84.21759847 | AT26: 77.1841865 | AU26: 83.66386807 | AV26: 84.90692971 | AW26: 84.607715 | AX26: 83.53962889 | AY26: 81.51156177 | AZ26: 76.15412204 | BA26: 74.59837795 | BB26: 82.33281058 | BC26: 75.12405329 | BD26: 78.76071587 | BE26: 78.74087378 | BF26: 80.08442221 | BG26: 78.6327272 | BH26: 73.78147838 | BI26: 77.77901789 | BJ26: 76.75573473 | BK26: 73.3597247 | BL26: 67.07476454 | BM26: 77.42649566 | BN26: 73.3370294 | BO26: 75.88467976 | BP26: 76.6282244 | BQ26: 79.93413564 | BR26: 79.06212629 | BS26: 81.78389298 | BT26: 76.87890365 | BU26: 80.51628345 | BV26: 70.92635524 | BW26: 73.49687519 | BX26: 76.61263368 | BY26: 71.06762225 | BZ26: 66.77084502 | CA26: 75.9543135 | CB26: 75.76103941 | CC26: 76.44280767 | CD26: 76.90338029 | CE26: 74.50354684 | CF26: 68.23281927 | CG26: 74.5671068 | CH26: 78.76114786 | CI26: 81.75548251 | CJ26: 82.26485617 | CK26: 77.22805763 | CL26: 77.74962266 | CM26: 45.87592449 | CN26: 76.16872092 | CO26: 74.41891872 | CP26: 87.05432363 | CQ26: 91.53715466 | CR26: 88.68134837 | CS26: 90.88607848 | CT26: 77.64254351 | CU26: 77.28674134 | CV26: 77.90307478 | CW26: 71.60553093 | CX26: 71.45927582 | CY26: 77.24215483 | CZ26: 78.21542995 | DA26: 83.57107775 | DB26: 81.08525004 | DC26: 82.16904904 | DD26: 76.69068977 | DE26: 81.29130663 | DF26: 78.5639539 | DG26: 78.68835686 | DH26: 80.159216 | DI26: 83.50387302 | DJ26: 88.17187416 | DK26: 87.86655716 | DL26: 87.23000063 | DM26: 67.24944196 | DN26: 59.31630289 | DO26: 79.67018107 | DP26: 76.04074462 | DQ26: 90.33846955 | DR26: 88.46284453 | DS26: 92.33831785 | DT26: 92.89078274 | DU26: 92.73174468 | DV26: 92.57747359 | DW26: 77.78228649 | DX26: 77.30157645 | DY26: 81.57312544 | DZ26: 88.45907473 | EA26: 77.2942321 | EB26: 85.50721047 | EC26: 74.24730165 | ED26: 74.24730165 | EE26: 67.37361441 | EF26: 43.62539562 | EG26: 32.68222224 | EH26: 44.25533542 | EI26: 64.37699681 | EJ26: 64.37699681 | EK26: 64.37699681 | EL26: 64.37699681 | EM26: 64.37699681 | EN26: 77.79008895 | EO26: 60.46932539 | EP26: 100 | EQ26: 100 | ER26: 100 | ES26: 100 | ET26: 100 | EU26: 100 | EV26: 100 | EW26: 100 | EX26: 100 | EY26: 100 | EZ26: 100 | FA26: 84.54695074 | FB26: 98.76361849 | FC26: 100 | FD26: 100 | FE26: 100 | FF26: 100 | FG26: 100 | FH26: 100 | FI26: 100 | FJ26: 100 | FK26: 100 | FL26: 100 | FM26: 100 | FN26: 100 | FO26: 100 | FP26: 100 | FQ26: 100 | FR26: 100 | FS26: 78.22916667 | FT26: -5.400124792e-13 | FU26: -2.700062396e-13 | FV26: -5.400124792e-13 | FW26: -5.400124792e-13 | FX26: -2.700062396e-13 | FY26: -5.400124792e-13 | FZ26: -2.700062396e-13 | GA26: -5.400124792e-13 | GB26: 31.07591324 | GC26: -5.400124792e-13 | GD26: 0 | GE26: -5.400124792e-13 | GF26: -2.700062396e-13 | GG26: 5.266812865 | GH26: - | GI26: - | GJ26: - | GK26: - | GL26: - | GM26: - | GN26: - | GO26: 0.72013993 | GP26: - | GQ26: - | GR26: - | GS26: - | GT26: - | GU26: - | GV26: - | GW26: - | GX26: - | GY26: - | GZ26: - | HA26: - | HB26: - | HC26: - | HD26: - | HE26: - | HF26: - | HG26: - | HH26: - | HI26: - | HJ26: - | HK26: - | HL26: - | HM26: - | HN26: - | HO26: -
B27: Ciclo combinado | C27: - | D27: - | E27: - | F27: - | G27: - | H27: - | I27: - | J27: - | K27: - | L27: - | M27: - | N27: - | O27: - | P27: - | Q27: - | R27: 100 | S27: 100 | T27: 100 | U27: 100 | V27: 98.48185677 | W27: 96.61672902 | X27: 95.08615739 | Y27: 86.62005505 | Z27: 85.75098056 | AA27: 96.252144 | AB27: 94.41333314 | AC27: 97.55373968 | AD27: 96.61944721 | AE27: 91.01637432 | AF27: 69.07123157 | AG27: 78.69049864 | AH27: 96.93126272 | AI27: 95.94797709 | AJ27: 91.36926419 | AK27: 98.74961457 | AL27: 95.45108431 | AM27: 99.63625305 | AN27: 99.34172287 | AO27: 93.07412636 | AP27: 99.15355711 | AQ27: 99.5012659 | AR27: 96.28418303 | AS27: 95.68166993 | AT27: 91.54709114 | AU27: 95.06489867 | AV27: 98.72830551 | AW27: 89.47362174 | AX27: 96.6585886 | AY27: 95.46509646 | AZ27: 93.24746851 | BA27: 95.3749926 | BB27: 95.23438278 | BC27: 94.16126374 | BD27: 93.17799631 | BE27: 79.70018778 | BF27: 82.82102131 | BG27: 77.27774508 | BH27: 87.83640785 | BI27: 93.71257925 | BJ27: 89.12778576 | BK27: 90.84666623 | BL27: 91.96782719 | BM27: 95.74762282 | BN27: 93.93846069 | BO27: 89.39712315 | BP27: 96.94695204 | BQ27: 96.69743111 | BR27: 97.87783591 | BS27: 96.13151871 | BT27: 93.16415678 | BU27: 94.45288965 | BV27: 95.9352826 | BW27: 93.25577299 | BX27: 93.13138154 | BY27: 86.98273061 | BZ27: 90.42095688 | CA27: 91.56739412 | CB27: 93.68786362 | CC27: 96.88438778 | CD27: 93.89146586 | CE27: 95.1299827 | CF27: 90.11427562 | CG27: 91.81687403 | CH27: 95.53940479 | CI27: 95.66447153 | CJ27: 93.8524498 | CK27: 90.13667681 | CL27: 88.1279051 | CM27: 87.47481894 | CN27: 91.73912359 | CO27: 92.33917869 | CP27: 94.37495232 | CQ27: 95.0766712 | CR27: 91.21567343 | CS27: 91.97343724 | CT27: 91.92728995 | CU27: 92.98139988 | CV27: 93.7792017 | CW27: 95.970631 | CX27: 92.61509169 | CY27: 87.74060571 | CZ27: 90.19894431 | DA27: 92.74314103 | DB27: 92.53568663 | DC27: 96.03723673 | DD27: 95.85736907 | DE27: 90.51517717 | DF27: 88.84227897 | DG27: 88.49977906 | DH27: 97.29303186 | DI27: 98.96521867 | DJ27: 94.02598263 | DK27: 86.79758069 | DL27: 83.29645448 | DM27: 87.0124038 | DN27: 96.73038745 | DO27: 91.98210075 | DP27: 95.9288276 | DQ27: 95.93117042 | DR27: 90.39128153 | DS27: 90.95640682 | DT27: 79.70686885 | DU27: 90.92119512 | DV27: 97.32882469 | DW27: 93.21670075 | DX27: 92.5512105 | DY27: 87.58264323 | DZ27: 88.12764732 | EA27: 97.12403286 | EB27: 91.60440337 | EC27: 97.6913444 | ED27: 95.34828568 | EE27: 93.63653452 | EF27: 93.29558899 | EG27: 89.04342024 | EH27: 93.09086107 | EI27: 98.0051518 | EJ27: 90.21951637 | EK27: 86.39065368 | EL27: 84.4344752 | EM27: 80.87500203 | EN27: 91.96044024 | EO27: 91.15893506 | EP27: 94.7279028 | EQ27: 95.60843057 | ER27: 78.58932752 | ES27: 86.67011851 | ET27: 88.90199801 | EU27: 91.91465471 | EV27: 93.65686095 | EW27: 93.52942284 | EX27: 97.10818952 | EY27: 92.83277911 | EZ27: 95.24335596 | FA27: 98.64625874 | FB27: 92.26439795 | FC27: 99.29923305 | FD27: 99.15686175 | FE27: 95.03689305 | FF27: 88.97723914 | FG27: 90.12405084 | FH27: 97.60501409 | FI27: 99.14812869 | FJ27: 95.25085921 | FK27: 96.1989932 | FL27: 89.94406854 | FM27: 94.21670114 | FN27: 94.72586746 | FO27: 94.94664176 | FP27: 94.59482859 | FQ27: 93.94514362 | FR27: 93.5424092 | FS27: 89.69336431 | FT27: 89.40453288 | FU27: 92.90128963 | FV27: 93.36339418 | FW27: 93.22779069 | FX27: 89.73871116 | FY27: 86.80988001 | FZ27: 87.80662944 | GA27: 95.11391217 | GB27: 91.67710278 | GC27: 95.3799299 | GD27: 94.49710798 | GE27: 86.63781344 | GF27: 89.92138167 | GG27: 87.46601597 | GH27: 93.97872058 | GI27: 94.65918234 | GJ27: 93.57633745 | GK27: 92.96855625 | GL27: 85.33984083 | GM27: 79.05290829 | GN27: 88.20377099 | GO27: 90.11688099 | GP27: 92.50134176 | GQ27: 92.79710827 | GR27: 90.06336957 | GS27: 87.21042778 | GT27: 86.28008755 | GU27: 93.13433077 | GV27: 96.78392942 | GW27: 93.10758947 | GX27: 88.65730423 | GY27: 82.72044033 | GZ27: 89.07636648 | HA27: 91.22835673 | HB27: 90.29071481 | HC27: 92.85152706 | HD27: 94.2756295 | HE27: - | HF27: - | HG27: - | HH27: - | HI27: - | HJ27: - | HK27: - | HL27: - | HM27: - | HN27: - | HO27: 93.52737229
B28: Disponibilidad | C28: 97.30060372 | D28: 96.75077566 | E28: 91.53076733 | F28: 88.89915069 | G28: 90.28916537 | H28: 90.28100139 | I28: 93.89709915 | J28: 93.94662356 | K28: 89.9456098 | L28: 84.71517331 | M28: 89.49689503 | N28: 86.98988405 | O28: 91.13938378 | P28: 88.33476505 | Q28: 88.50282918 | R28: 84.43297678 | S28: 82.2984195 | T28: 82.49334189 | U28: 85.21714925 | V28: 86.99713279 | W28: 90.43418291 | X28: 86.77998544 | Y28: 87.32145762 | Z28: 88.38391967 | AA28: 95.06934336 | AB28: 87.23407515 | AC28: 94.53189859 | AD28: 93.25178199 | AE28: 86.60168667 | AF28: 83.13701314 | AG28: 83.99397854 | AH28: 86.50250209 | AI28: 92.85285707 | AJ28: 91.6943567 | AK28: 88.99781916 | AL28: 88.89216413 | AM28: 94.53955828 | AN28: 95.30989235 | AO28: 90.05276065 | AP28: 94.00567251 | AQ28: 95.0123805 | AR28: 89.76197384 | AS28: 87.44149855 | AT28: 83.06728928 | AU28: 90.96181727 | AV28: 94.83326553 | AW28: 92.32719216 | AX28: 90.6343839 | AY28: 88.44706241 | AZ28: 89.46440824 | BA28: 89.85815768 | BB28: 90.45750688 | BC28: 91.4890105 | BD28: 90.83473406 | BE28: 82.44737475 | BF28: 79.96108997 | BG28: 77.52845268 | BH28: 80.8454846 | BI28: 85.22776487 | BJ28: 86.86119134 | BK28: 90.42903424 | BL28: 87.63305406 | BM28: 93.21780273 | BN28: 91.39183911 | BO28: 86.52439892 | BP28: 93.01400769 | BQ28: 92.23691537 | BR28: 92.8586214 | BS28: 87.63971972 | BT28: 85.80986961 | BU28: 92.04041481 | BV28: 90.20032548 | BW28: 90.98095102 | BX28: 86.95505353 | BY28: 83.74233551 | BZ28: 88.12773903 | CA28: 91.76541447 | CB28: 89.56802916 | CC28: 93.93069213 | CD28: 92.33630971 | CE28: 91.56103331 | CF28: 86.0093753 | CG28: 83.36515757 | CH28: 84.33454986 | CI28: 87.02488976 | CJ28: 86.77744761 | CK28: 87.36037076 | CL28: 84.6317704 | CM28: 78.70319751 | CN28: 89.79775397 | CO28: 87.06171656 | CP28: 91.30176275 | CQ28: 91.21765367 | CR28: 88.94454657 | CS28: 86.61313008 | CT28: 85.82831889 | CU28: 86.3200452 | CV28: 86.65185567 | CW28: 88.62451098 | CX28: 86.63160634 | CY28: 83.95436617 | CZ28: 83.83559942 | DA28: 88.70563671 | DB28: 87.3730177 | DC28: 92.09508124 | DD28: 89.57510581 | DE28: 84.55872451 | DF28: 81.8509162 | DG28: 81.71732065 | DH28: 88.4226402 | DI28: 91.82154429 | DJ28: 93.96047761 | DK28: 87.82339002 | DL28: 84.18581946 | DM28: 84.45646756 | DN28: 89.43639015 | DO28: 87.49977309 | DP28: 91.77977317 | DQ28: 94.24077165 | DR28: 89.57054528 | DS28: 89.51921196 | DT28: 82.48288681 | DU28: 91.50640819 | DV28: 96.63016414 | DW28: 93.62521341 | DX28: 92.32048847 | DY28: 89.50408712 | DZ28: 90.25220445 | EA28: 94.16089746 | EB28: 91.2882633 | EC28: 95.4593933 | ED28: 93.52798157 | EE28: 90.40026598 | EF28: 89.55233237 | EG28: 83.55377405 | EH28: 91.40628151 | EI28: 95.14515107 | EJ28: 91.38135998 | EK28: 87.87632669 | EL28: 83.59877716 | EM28: 83.51927025 | EN28: 91.80593068 | EO28: 89.75853083 | EP28: 94.5021081 | EQ28: 96.0897492 | ER28: 85.93280531 | ES28: 89.34742673 | ET28: 87.63342434 | EU28: 87.5880919 | EV28: 94.3764694 | EW28: 94.666201 | EX28: 95.78552634 | EY28: 92.51030756 | EZ28: 91.20631282 | FA28: 94.71610654 | FB28: 92.01535708 | FC28: 96.0148665 | FD28: 96.90411885 | FE28: 94.99613699 | FF28: 87.76285663 | FG28: 85.44489693 | FH28: 92.90254362 | FI28: 96.8454076 | FJ28: 94.41421167 | FK28: 93.2727989 | FL28: 87.91336605 | FM28: 90.96531773 | FN28: 90.74334334 | FO28: 92.32251607 | FP28: 91.93756453 | FQ28: 93.44578754 | FR28: 93.41365046 | FS28: 90.14009098 | FT28: 85.29984866 | FU28: 86.42962315 | FV28: 90.53249755 | FW28: 89.05940421 | FX28: 89.48574781 | FY28: 86.43569595 | FZ28: 82.98752807 | GA28: 91.83521854 | GB28: 89.2392088 | GC28: 93.63733435 | GD28: 93.45222626 | GE28: 88.01963914 | GF28: 85.86302381 | GG28: 81.57339264 | GH28: 88.65210408 | GI28: 92.87373244 | GJ28: 93.00895819 | GK28: 93.0426158 | GL28: 85.07097418 | GM28: 80.4893272 | GN28: 88.92506095 | GO28: 88.69824686 | GP28: 89.46497476 | GQ28: 90.61165082 | GR28: 90.7072726 | GS28: 86.1770926 | GT28: 82.34391794 | GU28: 91.40920369 | GV28: 95.23775368 | GW28: 92.97752723 | GX28: 89.10622989 | GY28: 82.75395346 | GZ28: 84.69584714 | HA28: 88.57498625 | HB28: 88.67300872 | HC28: 91.54139128 | HD28: 92.90751148 | HE28: - | HF28: - | HG28: - | HH28: - | HI28: - | HJ28: - | HK28: - | HL28: - | HM28: - | HN28: - | HO28: 92.18971951
B30: Horas de funcionamiento del equipo térmico mensual peninsular (número de horas) | C30: 2001-01-01 | D30: 2001-02-01 | E30: 2001-03-01 | F30: 2001-04-01 | G30: 2001-05-01 | H30: 2001-06-01 | I30: 2001-07-01 | J30: 2001-08-01 | K30: 2001-09-01 | L30: 2001-10-01 | M30: 2001-11-01 | N30: 2001-12-01 | O30: 2001 | P30: 2002-01-01 | Q30: 2002-02-01 | R30: 2002-03-01 | S30: 2002-04-01 | T30: 2002-05-01 | U30: 2002-06-01 | V30: 2002-07-01 | W30: 2002-08-01 | X30: 2002-09-01 | Y30: 2002-10-01 | Z30: 2002-11-01 | AA30: 2002-12-01 | AB30: 2002 | AC30: 2003-01-01 | AD30: 2003-02-01 | AE30: 2003-03-01 | AF30: 2003-04-01 | AG30: 2003-05-01 | AH30: 2003-06-01 | AI30: 2003-07-01 | AJ30: 2003-08-01 | AK30: 2003-09-01 | AL30: 2003-10-01 | AM30: 2003-11-01 | AN30: 2003-12-01 | AO30: 2003 | AP30: 2004-01-01 | AQ30: 2004-02-01 | AR30: 2004-03-01 | AS30: 2004-04-01 | AT30: 2004-05-01 | AU30: 2004-06-01 | AV30: 2004-07-01 | AW30: 2004-08-01 | AX30: 2004-09-01 | AY30: 2004-10-01 | AZ30: 2004-11-01 | BA30: 2004-12-01 | BB30: 2004 | BC30: 2005-01-01 | BD30: 2005-02-01 | BE30: 2005-03-01 | BF30: 2005-04-01 | BG30: 2005-05-01 | BH30: 2005-06-01 | BI30: 2005-07-01 | BJ30: 2005-08-01 | BK30: 2005-09-01 | BL30: 2005-10-01 | BM30: 2005-11-01 | BN30: 2005-12-01 | BO30: 2005 | BP30: 2006-01-01 | BQ30: 2006-02-01 | BR30: 2006-03-01 | BS30: 2006-04-01 | BT30: 2006-05-01 | BU30: 2006-06-01 | BV30: 2006-07-01 | BW30: 2006-08-01 | BX30: 2006-09-01 | BY30: 2006-10-01 | BZ30: 2006-11-01 | CA30: 2006-12-01 | CB30: 2006 | CC30: 2007-01-01 | CD30: 2007-02-01 | CE30: 2007-03-01 | CF30: 2007-04-01 | CG30: 2007-05-01 | CH30: 2007-06-01 | CI30: 2007-07-01 | CJ30: 2007-08-01 | CK30: 2007-09-01 | CL30: 2007-10-01 | CM30: 2007-11-01 | CN30: 2007-12-01 | CO30: 2007 | CP30: 2008-01-01 | CQ30: 2008-02-01 | CR30: 2008-03-01 | CS30: 2008-04-01 | CT30: 2008-05-01 | CU30: 2008-06-01 | CV30: 2008-07-01 | CW30: 2008-08-01 | CX30: 2008-09-01 | CY30: 2008-10-01 | CZ30: 2008-11-01 | DA30: 2008-12-01 | DB30: 2008 | DC30: 2009-01-01 | DD30: 2009-02-01 | DE30: 2009-03-01 | DF30: 2009-04-01 | DG30: 2009-05-01 | DH30: 2009-06-01 | DI30: 2009-07-01 | DJ30: 2009-08-01 | DK30: 2009-09-01 | DL30: 2009-10-01 | DM30: 2009-11-01 | DN30: 2009-12-01 | DO30: 2009 | DP30: 2010-01-31 | DQ30: 2010-02-28 | DR30: 2010-03-31 | DS30: 2010-04-30 | DT30: 2010-05-31 | DU30: 2010-06-30 | DV30: 2010-07-31 | DW30: 2010-08-31 | DX30: 2010-09-30 | DY30: 2010-10-31 | DZ30: 2010-11-30 | EA30: 2010-12-31 | EB30: 2010 | EC30: 2011-01-31 | ED30: 2011-02-28 | EE30: 2011-03-31 | EF30: 2011-04-30 | EG30: 2011-05-31 | EH30: 2011-06-30 | EI30: 2011-07-31 | EJ30: 2011-08-31 | EK30: 2011-09-30 | EL30: 2011-10-31 | EM30: 2011-11-30 | EN30: 2011-12-31 | EO30: 2011 | EP30: 2012-01-31 | EQ30: 2012-02-29 | ER30: 2012-03-31 | ES30: 2012-04-30 | ET30: 2012-05-31 | EU30: 2012-06-30 | EV30: 2012-07-31 | EW30: 2012-08-31 | EX30: 2012-09-30 | EY30: 2012-10-31 | EZ30: 2012-11-30 | FA30: 2012-12-31 | FB30: 2012 | FC30: 2013-01-31 | FD30: 2013-02-28 | FE30: 2013-03-31 | FF30: 2013-04-30 | FG30: 2013-05-31 | FH30: 2013-06-30 | FI30: 2013-07-31 | FJ30: 2013-08-31 | FK30: 2013-09-30 | FL30: 2013-10-31 | FM30: 2013-11-30 | FN30: 2013-12-31 | FO30: 2013 | FP30: 2014-01-31 | FQ30: 2014-02-28 | FR30: 2014-03-31 | FS30: 2014-04-30 | FT30: 2014-05-31 | FU30: 2014-06-30 | FV30: 2014-07-31 | FW30: 2014-08-31 | FX30: 2014-09-30 | FY30: 2014-10-31 | FZ30: 2014-11-30 | GA30: 2014-12-31 | GB30: 2014 | GC30: 2015-01-31 | GD30: 2015-02-28 | GE30: 2015-03-31 | GF30: 2015-04-30 | GG30: 2015-05-31 | GH30: 2015-06-30 | GI30: 2015-07-31 | GJ30: 2015-08-31 | GK30: 2015-09-30 | GL30: 2015-10-31 | GM30: 2015-11-30 | GN30: 2015-12-31 | GO30: 2015 | GP30: 2016-01-31 | GQ30: 2016-02-29 | GR30: 2016-03-31 | GS30: 2016-04-30 | GT30: 2016-05-31 | GU30: 2016-06-30 | GV30: 2016-07-31 | GW30: 2016-08-31 | GX30: 2016-09-30 | GY30: 2016-10-31 | GZ30: 2016-11-30 | HA30: 2016-12-31 | HB30: 2016 | HC30: 2017-01-31 | HD30: 2017-02-28 | HE30: 2017-03-31 | HF30: 2017-04-30 | HG30: 2017-05-31 | HH30: 2017-06-30 | HI30: 2017-07-31 | HJ30: 2017-08-31 | HK30: 2017-09-30 | HL30: 2017-10-31 | HM30: 2017-11-30 | HN30: 2017-12-31 | HO30: 2017
B31: Nuclear | C31: 740.3952945 | D31: 652.7154046 | E31: 634.4399302 | F31: 616.7411876 | G31: 742.6574508 | H31: 699.2202649 | I31: 742.1034819 | J31: 729.3019846 | K31: 644.5437413 | L31: 659.2410483 | M31: 700.1971381 | N31: 737.4723346 | O31: 8298.442075 | P31: 744 | Q31: 656.2803161 | R31: 592.6143889 | S31: 582.1521101 | T31: 645.9515603 | U31: 686.8447252 | V31: 742.8399813 | W31: 738.4947557 | X31: 632.236142 | Y31: 731.2003561 | Z31: 719.3553502 | AA31: 742.3244174 | AB31: 8214.294103 | AC31: 733.012958 | AD31: 665.6909733 | AE31: 632.9166482 | AF31: 620.902976 | AG31: 641.7508569 | AH31: 613.393778 | AI31: 740.7781916 | AJ31: 737.427511 | AK31: 584.1060921 | AL31: 628.1078601 | AM31: 709.7577492 | AN31: 730.1543856 | AO31: 8037.309754 | AP31: 729.7163683 | AQ31: 696 | AR31: 667.1628439 | AS31: 684.454302 | AT31: 658.6984368 | AU31: 692.6733833 | AV31: 744 | AW31: 733.6710539 | AX31: 634.9847631 | AY31: 610.6868731 | AZ31: 679.894512 | BA31: 689.9582472 | BB31: 8222.190384 | BC31: 743.2160629 | BD31: 657.5877919 | BE31: 617.5669384 | BF31: 531.4005776 | BG31: 509.9429441 | BH31: 520.1047743 | BI31: 537.4416002 | BJ31: 624.827949 | BK31: 711.6950422 | BL31: 645.1230203 | BM31: 709.035181 | BN31: 740.1764605 | BO31: 7548.119078 | BP31: 731.5434419 | BQ31: 662.0882908 | BR31: 684.8618677 | BS31: 482.763772 | BT31: 609.1601042 | BU31: 669.6979269 | BV31: 675.9994072 | BW31: 717.6414498 | BX31: 616.0957685 | BY31: 636.6782222 | BZ31: 701.9915392 | CA31: 739.8200784 | CB31: 7922.302885 | CC31: 740.3769043 | CD31: 655.8783086 | CE31: 681.1241406 | CF31: 608.8092355 | CG31: 492.8737147 | CH31: 436.5374565 | CI31: 539.4694792 | CJ31: 555.2285644 | CK31: 683.829867 | CL31: 673.4940273 | CM31: 536.539062 | CN31: 700.555604 | CO31: 7304.716364 | CP31: 728.5879838 | CQ31: 696 | CR31: 728.7339791 | CS31: 554.1805252 | CT31: 644.4269339 | CU31: 630.9081185 | CV31: 645.972988 | CW31: 696.3062994 | CX31: 614.7783003 | CY31: 598.117009 | CZ31: 564.5890769 | DA31: 679.8870269 | DB31: 7782.488241 | DC31: 744 | DD31: 597.0931302 | DE31: 537.2020996 | DF31: 554.5956022 | DG31: 506.1967681 | DH31: 488.5321866 | DI31: 575.1350934 | DJ31: 744 | DK31: 612.7911068 | DL31: 565.0507271 | DM31: 552.7233964 | DN31: 547.0175305 | DO31: 7024.337641 | DP31: 627.5641506 | DQ31: 634.7586747 | DR31: 671.8716652 | DS31: 669.0562384 | DT31: 599.6650214 | DU31: 639.9252909 | DV31: 741.4566788 | DW31: 742.9826715 | DX31: 697.8731054 | DY31: 742.1526844 | DZ31: 690.2240968 | EA31: 649.3884506 | EB31: 8106.021 | EC31: 643.9785666 | ED31: 578.6197422 | EE31: 598.5844 | EF31: 605.9290723 | EG31: 498.4829411 | EH31: 646.5630327 | EI31: 679.8971447 | EJ31: 744 | EK31: 700.0491405 | EL31: 612.189893 | EM31: 617.5803861 | EN31: 646.5662588 | EO31: 7571.646282 | EP31: 699.3428686 | EQ31: 692.8251072 | ER31: 738.7312316 | ES31: 706.512095 | ET31: 602.2878781 | EU31: 487.8113826 | EV31: 703.4165872 | EW31: 744 | EX31: 720 | EY31: 729.0884084 | EZ31: 544.8259774 | FA31: 586.6417826 | FB31: 7955.483319 | FC31: 620.8756672 | FD31: 592.8682008 | FE31: 697.3883643 | FF31: 598.0045242 | FG31: 541.7254859 | FH31: 591.7693626 | FI31: 694.7629236 | FJ31: 688.6676615 | FK31: 646.503794 | FL31: 591.5380253 | FM31: 557.1259901 | FN31: 540.2236147 | FO31: 7361.453614 | FP31: 607.1006196 | FQ31: 626.4168236 | FR31: 697.3883643 | FS31: 676.7110813 | FT31: 580.0498998 | FU31: 470.1281848 | FV31: 581.4927871 | FW31: 581.7959744 | FX31: 654.802049 | FY31: 693.0370547 | FZ31: 582.420364 | GA31: 640.8602563 | GB31: 7392.203459 | GC31: 694.2916628 | GD31: 626.4895729 | GE31: 697.3883643 | GF31: 630.4045887 | GG31: 478.6669854 | GH31: 514.6802133 | GI31: 667.2572267 | GJ31: 699.2681173 | GK31: 663.2231762 | GL31: 560.9272639 | GM31: 536.0873599 | GN31: 661.1328979 | GO31: 7429.817429 | GP31: 609.5241199 | GQ31: 559.2574974 | GR31: 697.3883643 | GS31: 669.3294214 | GT31: 517.2957407 | GU31: 655.2337512 | GV31: 699.2681173 | GW31: 699.2681173 | GX31: 676.7110813 | GY31: 690.1311601 | GZ31: 500.6829495 | HA31: 589.7243265 | HB31: 7563.814647 | HC31: 699.2681173 | HD31: 631.5970092 | HE31: - | HF31: - | HG31: - | HH31: - | HI31: - | HJ31: - | HK31: - | HL31: - | HM31: - | HN31: - | HO31: 1330.865127
B32: Carbón | C32: 484.2048482 | D32: 416.7274912 | E32: 416.4107761 | F32: 419.8629129 | G32: 508.344767 | H32: 595.1895575 | I32: 647.9505767 | J32: 646.1709935 | K32: 655.2226048 | L32: 661.0365715 | M32: 660.3599361 | N32: 692.480923 | O32: 6805.119873 | P32: 693.0529102 | Q32: 642.0146737 | R32: 688.895721 | S32: 640.6496081 | T32: 655.9008797 | U32: 626.0318205 | V32: 646.868001 | W32: 664.850527 | X32: 654.2794316 | Y32: 636.4368584 | Z32: 635.2319757 | AA32: 524.2591289 | AB32: 7708.750286 | AC32: 566.2486087 | AD32: 563.1698081 | AE32: 573.8245599 | AF32: 514.9273209 | AG32: 558.7132659 | AH32: 625.1832879 | AI32: 680.2171116 | AJ32: 681.1958935 | AK32: 661.036613 | AL32: 681.8172817 | AM32: 623.9407675 | AN32: 585.1823478 | AO32: 7316.161396 | AP32: 610.089782 | AQ32: 604.3225748 | AR32: 640.6116925 | AS32: 526.776857 | AT32: 543.5244371 | AU32: 619.8292223 | AV32: 679.4320118 | AW32: 665.129856 | AX32: 646.5035305 | AY32: 649.3586936 | AZ32: 614.210449 | BA32: 676.6640333 | BB32: 7476.396844 | BC32: 697.4800932 | BD32: 620.3195152 | BE32: 639.675817 | BF32: 558.3361916 | BG32: 595.813036 | BH32: 599.5219827 | BI32: 676.9629953 | BJ32: 644.3837842 | BK32: 650.105115 | BL32: 679.8236272 | BM32: 676.4652299 | BN32: 675.1930814 | BO32: 7744.787433 | BP32: 690.9115267 | BQ32: 595.5588019 | BR32: 574.9446335 | BS32: 409.2425345 | BT32: 542.9471069 | BU32: 619.1370678 | BV32: 677.343276 | BW32: 612.1023599 | BX32: 585.5850736 | BY32: 556.8427579 | BZ32: 520.2082193 | CA32: 528.4090047 | CB32: 6913.30205 | CC32: 656.6636004 | CD32: 562.9836255 | CE32: 544.0455952 | CF32: 612.8516715 | CG32: 648.7599328 | CH32: 611.1226351 | CI32: 640.6043039 | CJ32: 638.6955263 | CK32: 604.932184 | CL32: 589.7777517 | CM32: 580.9180474 | CN32: 637.1727215 | CO32: 7368.619644 | CP32: 567.7998554 | CQ32: 511.3430402 | CR32: 454.1044794 | CS32: 413.5502837 | CT32: 282.3805755 | CU32: 265.0205446 | CV32: 447.0642662 | CW32: 378.098926 | CX32: 392.6742171 | CY32: 478.8911444 | CZ32: 465.9269482 | DA32: 518.5611105 | DB32: 5175.385241 | DC32: 534.5375355 | DD32: 376.5438727 | DE32: 366.4765125 | DF32: 233.6459296 | DG32: 288.7113675 | DH32: 311.3351083 | DI32: 421.0055451 | DJ32: 240.6120777 | DK32: 359.5181423 | DL32: 411.5336659 | DM32: 285.0179194 | DN32: 250.282963 | DO32: 4079.220639 | DP32: 223.6474651 | DQ32: 198.7791137 | DR32: 141.8934582 | DS32: 95.11485299 | DT32: 117.0119754 | DU32: 184.5595492 | DV32: 305.3817435 | DW32: 351.5383628 | DX32: 377.8516804 | DY32: 282.3627513 | DZ32: 215.3104281 | EA32: 273.0260273 | EB32: 2769.220495 | EC32: 327.1258273 | ED32: 356.9065646 | EE32: 489.5063787 | EF32: 378.1970804 | EG32: 394.0434633 | EH32: 359.8840579 | EI32: 573.5284476 | EJ32: 544.8868211 | EK32: 578.2880886 | EL32: 553.5360363 | EM32: 539.7410124 | EN32: 555.1621379 | EO32: 4777.660997 | EP32: 551.7508977 | EQ32: 572.7534393 | ER32: 493.4694908 | ES32: 290.8449618 | ET32: 429.9264972 | EU32: 554.4047459 | EV32: 526.7968504 | EW32: 529.3309809 | EX32: 434.5383997 | EY32: 464.5254653 | EZ32: 433.0499241 | FA32: 420.1466363 | FB32: 5787.018688 | FC32: 414.9467187 | FD32: 354.613874 | FE32: 238.511656 | FF32: 177.4657764 | FG32: 281.3723961 | FH32: 364.6400465 | FI32: 653.6242977 | FJ32: 575.3885161 | FK32: 595.4382656 | FL32: 556.4291302 | FM32: 380.1933778 | FN32: 572.4927227 | FO32: 4372.940869 | FP32: 280.3638459 | FQ32: 133.8339021 | FR32: 188.6689606 | FS32: 193.0674802 | FT32: 384.5041049 | FU32: 563.9655073 | FV32: 613.4034278 | FW32: 575.69623 | FX32: 611.452672 | FY32: 489.0165819 | FZ32: 375.3388606 | GA32: 475.0699999 | GB32: 4895.205132 | GC32: 561.1174597 | GD32: 367.940173 | GE32: 329.1678722 | GF32: 348.8779569 | GG32: 335.9769517 | GH32: 590.5805549 | GI32: 654.031217 | GJ32: 599.5906733 | GK32: 531.7453883 | GL32: 505.0362686 | GM32: 530.8829196 | GN32: 535.6013019 | GO32: 5890.548737 | GP32: 329.1732706 | GQ32: 263.2788242 | GR32: 252.3218186 | GS32: 153.1452747 | GT32: 170.0120671 | GU32: 274.6155789 | GV32: 465.4636473 | GW32: 444.7935186 | GX32: 546.0134503 | GY32: 525.9774693 | GZ32: 559.0333257 | HA32: 617.6569857 | HB32: 4649.301354 | HC32: 611.0694714 | HD32: 457.4198159 | HE32: - | HF32: - | HG32: - | HH32: - | HI32: - | HJ32: - | HK32: - | HL32: - | HM32: - | HN32: - | HO32: 1068.489287
B33: Fuel + Gas | C33: 189.531911 | D33: 151.7793656 | E33: 121.2989382 | F33: 58.61538421 | G33: 105.0436764 | H33: 279.0971412 | I33: 348.4766833 | J33: 308.5297066 | K33: 274.9007209 | L33: 241.8555234 | M33: 268.4295899 | N33: 361.2259979 | O33: 2708.784639 | P33: 421.7424833 | Q33: 284.3871074 | R33: 252.8450172 | S33: 233.5932202 | T33: 193.6266989 | U33: 289.3920135 | V33: 342.3159015 | W33: 229.6390693 | X33: 226.1973042 | Y33: 222.9015236 | Z33: 140.5932514 | AA33: 118.0257616 | AB33: 2955.121057 | AC33: 176.9667939 | AD33: 171.5494157 | AE33: 43.93377118 | AF33: 21.88160219 | AG33: 56.32323775 | AH33: 300.781968 | AI33: 312.3236555 | AJ33: 277.87091 | AK33: 226.2691262 | AL33: 190.4506091 | AM33: 98.89235464 | AN33: 128.9291735 | AO33: 2026.761078 | AP33: 135.2774031 | AQ33: 94.10627729 | AR33: 161.6676006 | AS33: 42.59657188 | AT33: 75.16579911 | AU33: 195.408316 | AV33: 284.4502645 | AW33: 184.8888423 | AX33: 255.0484207 | AY33: 158.0142129 | AZ33: 130.6695338 | BA33: 206.847141 | BB33: 1925.903971 | BC33: 254.5890347 | BD33: 293.990396 | BE33: 288.5220537 | BF33: 95.94046079 | BG33: 152.6668012 | BH33: 294.1774135 | BI33: 351.5208919 | BJ33: 130.1373094 | BK33: 142.4604139 | BL33: 133.8537595 | BM33: 137.616485 | BN33: 224.68577 | BO33: 2525.480158 | BP33: 204.2737946 | BQ33: 159.5794045 | BR33: 81.92010104 | BS33: 90.63595618 | BT33: 35.44357229 | BU33: 182.8169223 | BV33: 385.6180957 | BW33: 151.9970219 | BX33: 278.2101816 | BY33: 187.7917509 | BZ33: 92.83705604 | CA33: 47.22523674 | CB33: 1898.349094 | CC33: 39.44988634 | CD33: 48.66682313 | CE33: 39.92060959 | CF33: 25.83991377 | CG33: 41.35750395 | CH33: 42.94119345 | CI33: 104.232208 | CJ33: 83.57076581 | CK33: 90.60302428 | CL33: 55.6616805 | CM33: 120.4174007 | CN33: 105.8273238 | CO33: 972.3971548 | CP33: 108.7445241 | CQ33: 83.83520332 | CR33: 52.83891789 | CS33: 93.80794569 | CT33: 58.02524905 | CU33: 107.7982387 | CV33: 78.92614576 | CW33: 134.7901 | CX33: 89.91899741 | CY33: 80.57117601 | CZ33: 103.3578334 | DA33: 86.63930057 | DB33: 1081.307668 | DC33: 70.25001974 | DD33: 56.46530255 | DE33: 62.70641317 | DF33: 49.31585004 | DG33: 49.9557176 | DH33: 51.51324285 | DI33: 102.7022529 | DJ33: 59.401378 | DK33: 53.35490409 | DL33: 51.13109809 | DM33: 70.82078327 | DN33: 102.6844452 | DO33: 1049.421769 | DP33: 158.5993997 | DQ33: 129.3905688 | DR33: 43.26696639 | DS33: 72.40068333 | DT33: 94.9368531 | DU33: 99.5140783 | DV33: 109.850279 | DW33: 85.45129826 | DX33: 93.51989239 | DY33: 72.83877676 | DZ33: 98.54658032 | EA33: 99.92872029 | EB33: 1191.71945 | EC33: 0 | ED33: 0 | EE33: 0 | EF33: 0 | EG33: 0 | EH33: 0 | EI33: 0 | EJ33: 0 | EK33: 0 | EL33: 0 | EM33: 0 | EN33: 0 | EO33: 0 | EP33: 0 | EQ33: 0 | ER33: 0 | ES33: 0 | ET33: 0 | EU33: 0 | EV33: 0 | EW33: 0 | EX33: 0 | EY33: 0 | EZ33: 0 | FA33: 0 | FB33: 0 | FC33: 0 | FD33: 0 | FE33: 0 | FF33: 0 | FG33: 0 | FH33: 0 | FI33: 0 | FJ33: 0 | FK33: 0 | FL33: 0 | FM33: 0 | FN33: 0 | FO33: 0 | FP33: 0 | FQ33: 0 | FR33: 0 | FS33: 0 | FT33: 0 | FU33: 0 | FV33: 0 | FW33: 0 | FX33: 0 | FY33: 0 | FZ33: 0 | GA33: 0 | GB33: 0 | GC33: 0 | GD33: 0 | GE33: 0 | GF33: 0 | GG33: - | GH33: - | GI33: - | GJ33: - | GK33: - | GL33: - | GM33: - | GN33: - | GO33: - | GP33: - | GQ33: - | GR33: - | GS33: - | GT33: - | GU33: - | GV33: - | GW33: - | GX33: - | GY33: - | GZ33: - | HA33: - | HB33: - | HC33: - | HD33: - | HE33: - | HF33: - | HG33: - | HH33: - | HI33: - | HJ33: - | HK33: - | HL33: - | HM33: - | HN33: - | HO33: -
B34: Ciclo combinado | C34: - | D34: - | E34: - | F34: - | G34: - | H34: - | I34: - | J34: - | K34: - | L34: - | M34: - | N34: - | O34: - | P34: - | Q34: - | R34: - | S34: 0 | T34: 109.4525192 | U34: 282.3539261 | V34: 383.3507318 | W34: 420.1695857 | X34: 551.1991012 | Y34: 550.2689977 | Z34: 366.2204982 | AA34: 338.9449163 | AB34: 2899.2075 | AC34: 374.3955734 | AD34: 442.8783088 | AE34: 385.4360741 | AF34: 202.8127457 | AG34: 367.7680471 | AH34: 654.9596869 | AI34: 611.5667191 | AJ34: 556.9350781 | AK34: 600.6245258 | AL34: 581.4501093 | AM34: 451.2283005 | AN34: 355.5017378 | AO34: 5074.855396 | AP34: 454.1674019 | AQ34: 525.4103705 | AR34: 574.2361567 | AS34: 457.0815783 | AT34: 488.7450925 | AU34: 547.0159251 | AV34: 561.4362156 | AW34: 447.560756 | AX34: 533.7188101 | AY34: 508.7108686 | AZ34: 438.2296169 | BA34: 468.4259372 | BB34: 4687.63614 | BC34: 481.1136687 | BD34: 451.1722117 | BE34: 439.2387497 | BF34: 429.4094896 | BG34: 490.6322142 | BH34: 618.5920952 | BI34: 673.3405878 | BJ34: 593.7730511 | BK34: 510.4917049 | BL34: 458.7428848 | BM34: 467.9408441 | BN34: 445.803631 | BO34: 5147.052046 | BP34: 551.3974555 | BQ34: 507.1999866 | BR34: 465.3893588 | BS34: 438.9962137 | BT34: 488.5097069 | BU34: 523.2345466 | BV34: 594.983883 | BW34: 475.09523 | BX34: 553.655641 | BY34: 471.7740223 | BZ34: 427.1906258 | CA34: 448.1035275 | CB34: 5546.304325 | CC34: 556.330758 | CD34: 395.3778139 | CE34: 359.7310541 | CF34: 346.8723077 | CG34: 383.2946706 | CH34: 504.0462534 | CI34: 534.5245381 | CJ34: 420.2662754 | CK34: 432.5002474 | CL34: 454.6357022 | CM34: 517.8022922 | CN34: 473.2221253 | CO34: 4644.766369 | CP34: 506.2520297 | CQ34: 505.2140582 | CR34: 446.6869852 | CS34: 450.9153929 | CT34: 481.6038716 | CU34: 494.36831 | CV34: 557.666677 | CW34: 521.0646955 | CX34: 496.3458987 | CY34: 469.2635818 | CZ34: 452.1013967 | DA34: 386.4127754 | DB34: 5736.780197 | DC34: 400.0989492 | DD34: 320.6720126 | DE34: 333.6398136 | DF34: 347.9108574 | DG34: 349.3379129 | DH34: 466.3454635 | DI34: 525.081979 | DJ34: 509.6651312 | DK34: 491.9294743 | DL34: 429.0680749 | DM34: 372.0702783 | DN34: 390.9207059 | DO34: 4743.557024 | DP34: 348.5036605 | DQ34: 324.0357119 | DR34: 314.0054362 | DS34: 295.4514587 | DT34: 292.7870064 | DU34: 338.1733182 | DV34: 409.8386694 | DW34: 359.2558769 | DX34: 390.698195 | DY34: 339.1998858 | DZ34: 351.8461616 | EA34: 316.9825228 | EB34: 3985.935251 | EC34: 328.4954992 | ED34: 279.8035975 | EE34: 264.4672096 | EF34: 190.7604305 | EG34: 254.5690018 | EH34: 297.6754388 | EI34: 300.392196 | EJ34: 305.2451929 | EK34: 285.3568279 | EL34: 262.8733015 | EM34: 242.6743506 | EN34: 244.2639178 | EO34: 3256.652552 | EP34: 260.9328019 | EQ34: 243.1547897 | ER34: 211.7018415 | ES34: 162.2398762 | ET34: 156.1295416 | EU34: 183.6921834 | EV34: 214.6386568 | EW34: 220.6747609 | EX34: 196.0859657 | EY34: 225.6652079 | EZ34: 214.6661252 | FA34: 201.6525401 | FB34: 2491.742937 | FC34: 175.1378447 | FD34: 136.9330993 | FE34: 122.7865107 | FF34: 104.0334035 | FG34: 117.2932894 | FH34: 106.205085 | FI34: 133.3102569 | FJ34: 142.5392976 | FK34: 147.5291504 | FL34: 194.3312408 | FM34: 161.9438449 | FN34: 191.6466141 | FO34: 1733.689637 | FP34: 138.1999811 | FQ34: 124.4359635 | FR34: 123.5414834 | FS34: 112.557393 | FT34: 110.1336556 | FU34: 116.4933367 | FV34: 124.6452745 | FW34: 148.3449014 | FX34: 177.0970354 | FY34: 176.0613319 | FZ34: 166.3550707 | GA34: 178.0106086 | GB34: 1695.876036 | GC34: 178.1462411 | GD34: 153.2679837 | GE34: 153.3598583 | GF34: 153.4373476 | GG34: 147.577467 | GH34: 142.4375239 | GI34: 230.7086791 | GJ34: 186.234654 | GK34: 184.3042492 | GL34: 184.3042492 | GM34: 184.9303768 | GN34: 188.9301611 | GO34: 2067.017091 | GP34: 161.963846 | GQ34: 133.0356417 | GR34: 133.5866053 | GS34: 122.8650566 | GT34: 159.9063545 | GU34: 159.0308946 | GV34: 190.0870837 | GW34: 164.9602994 | GX34: 162.8475219 | GY34: 232.2589356 | GZ34: 227.6902822 | HA34: 217.5854549 | HB34: 2065.817976 | HC34: 214.9286191 | HD34: 132.1775774 | HE34: - | HF34: - | HG34: - | HH34: - | HI34: - | HJ34: - | HK34: - | HL34: - | HM34: - | HN34: - | HO34: 347.1061965
B35: Horas de funcionamiento | C35: 474.70192 | D35: 409.8329903 | E35: 395.6653903 | F35: 373.9802688 | G35: 461.3909556 | H35: 535.1747938 | I35: 589.8002458 | J35: 573.8685087 | K35: 543.2249492 | L35: 540.5165246 | M35: 559.8323104 | N35: 610.8315199 | O35: 6069.810401 | P35: 630.3199474 | Q35: 543.8475839 | R35: 535.9233154 | S35: 492.3396898 | T35: 503.1245993 | U35: 532.6261592 | V35: 573.4314893 | W35: 553.4989938 | X35: 530.7778757 | Y35: 549.5122129 | Z35: 508.0628027 | AA35: 463.3654334 | AB35: 6203.398174 | AC35: 495.3160261 | AD35: 480.7109472 | AE35: 444.6432951 | AF35: 394.0408296 | AG35: 442.2846524 | AH35: 548.6884135 | AI35: 602.8236801 | AJ35: 587.1871065 | AK35: 534.351716 | AL35: 542.7730401 | AM35: 503.3070356 | AN35: 487.3884379 | AO35: 5993.31047 | AP35: 510.8553967 | AQ35: 501.2617085 | AR35: 530.7393986 | AS35: 448.1994404 | AT35: 460.5110917 | AU35: 532.9104505 | AV35: 587.7432157 | AW35: 533.9548876 | AX35: 538.3931353 | AY35: 508.239698 | AZ35: 490.0082032 | BA35: 535.4841729 | BB35: 5863.023964 | BC35: 565.1612729 | BD35: 520.3218208 | BE35: 515.2982892 | BF35: 431.5569632 | BG35: 465.7600516 | BH35: 531.081507 | BI35: 585.2992625 | BJ35: 531.1262335 | BK35: 530.2834357 | BL35: 506.8872219 | BM35: 522.2543694 | BN35: 536.1372873 | BO35: 5957.574027 | BP35: 569.7344816 | BQ35: 505.288181 | BR35: 476.4173433 | BS35: 381.186147 | BT35: 451.9973265 | BU35: 522.4940406 | BV35: 599.2305333 | BW35: 506.2266073 | BX35: 530.1812394 | BY35: 480.5080572 | BZ35: 450.767471 | CA35: 460.5523616 | CB35: 5781.251857 | CC35: 535.7886895 | CD35: 434.3717701 | CE35: 417.6360695 | CF35: 414.8370966 | CG35: 420.0925566 | CH35: 449.8923752 | CI35: 498.4349348 | CJ35: 451.1612965 | CK35: 475.3750993 | CL35: 474.6768129 | CM35: 486.0838142 | CN35: 514.9084651 | CO35: 5398.653662 | CP35: 521.4656096 | CQ35: 498.7589519 | CR35: 458.9230616 | CS35: 425.0191922 | CT35: 419.3782637 | CU35: 423.8497467 | CV35: 499.6790059 | CW35: 478.6508233 | CX35: 452.0808349 | CY35: 456.5057719 | CZ35: 441.4080806 | DA35: 440.4323112 | DB35: 5501.915023 | DC35: 460.3451299 | DD35: 356.2780765 | DE35: 350.5346565 | DF35: 326.3276008 | DG35: 332.6818488 | DH35: 393.1740969 | DI35: 468.3201138 | DJ35: 443.5027645 | DK35: 441.2372759 | DL35: 415.7975444 | DM35: 355.7038133 | DN35: 364.0887978 | DO35: 4728.800333 | DP35: 355.1979271 | DQ35: 335.8209997 | DR35: 318.1526807 | DS35: 297.6907805 | DT35: 291.1476021 | DU35: 339.735703 | DV35: 425.5947281 | DW35: 408.010591 | DX35: 424.442718 | DY35: 379.7433152 | DZ35: 363.2017698 | EA35: 351.2418818 | EB35: 4244.658433 | EC35: 367.0269169 | ED35: 336.8459774 | EE35: 364.1291654 | EF35: 297.6586829 | EG35: 318.948818 | EH35: 363.688729 | EI35: 423.7310872 | EJ35: 430.1606886 | EK35: 419.9597355 | EL35: 386.5015185 | EM35: 372.7738977 | EN35: 386.2077816 | EO35: 4313.939509 | EP35: 403.7107247 | EQ35: 397.8030422 | ER35: 368.1532859 | ES35: 284.2399986 | ET35: 297.8093414 | EU35: 324.1268261 | EV35: 371.6031643 | EW35: 382.5720414 | EX35: 341.1549494 | EY35: 366.7911487 | EZ35: 321.2861777 | FA35: 319.2206189 | FB35: 4211.77455 | FC35: 308.7363399 | FD35: 267.3995189 | FE35: 249.2190737 | FF35: 206.4069272 | FG35: 229.486719 | FH35: 252.0789013 | FI35: 355.7169553 | FJ35: 340.9121759 | FK35: 341.3231055 | FL35: 349.0568471 | FM35: 281.715806 | FN35: 342.5228858 | FO35: 3331.989723 | FP35: 252.5394111 | FQ35: 212.3928139 | FR35: 237.5311899 | FS35: 228.7325655 | FT35: 256.7043056 | FU35: 284.4064889 | FV35: 320.3703643 | FW35: 324.9417628 | FX35: 362.7504218 | FY35: 339.3456256 | FZ35: 287.159295 | GA35: 328.0227301 | GB35: 3437.944665 | GC35: 358.1130636 | GD35: 285.5447016 | GE35: 288.6097251 | GF35: 281.7356177 | GG35: 251.7772236 | GH35: 317.1363608 | GI35: 410.6912742 | GJ35: 377.2634714 | GK35: 341.3052688 | GL35: 328.749032 | GM35: 331.0306186 | GN35: 356.5281299 | GO35: 3942.760528 | GP35: 281.5204785 | GQ35: 239.5862681 | GR35: 262.0142868 | GS35: 228.0342363 | GT35: 226.5488269 | GU35: 274.5843914 | GV35: 344.2088396 | GW35: 324.6168609 | GX35: 342.2527123 | GY35: 381.3009737 | GZ35: 351.9741684 | HA35: 375.3050728 | HB35: 3641.562915 | HC35: 391.9596953 | HD35: 295.8482812 | HE35: - | HF35: - | HG35: - | HH35: - | HI35: - | HJ35: - | HK35: - | HL35: - | HM35: - | HN35: - | HO35: 687.8079765
B37: Indisponibilidad equipo térmico anual peninsular (%) Tipo permanente | C37: 2001 | D37: 2002 | E37: 2003 | F37: 2004 | G37: 2005 | H37: 2006 | I37: 2007 | J37: 2008 | K37: 2009 | L37: 2010 | M37: 2011 | N37: 2012 | O37: 2013 | P37: 2014 | Q37: 2015 | R37: 2016 | S37: 2017 | T37: 2018 | U37: 2019 | V37: 2020 | W37: 2021 | X37: 2022 | Y37: 2023 | Z37: 2024
B38: Nuclear | C38: =O3 -> 0 | D38: =AB3 -> 0 | E38: =AO3 -> 0 | F38: =BB3 -> 0 | G38: =BO3 -> 0 | H38: =CB3 -> 0 | I38: =CO3 -> 0 | J38: =DB3 -> 0 | K38: =DO3 -> 0 | L38: =EB3 -> 0 | M38: =EO3 -> 0 | N38: =FB3 -> 0.2464077795 | O38: =FO3 -> 6.01234982 | P38: =GB3 -> 6.01234982 | Q38: =GO3 -> 6.01234982 | R38: =HB3 -> 6.01234982 | S38: =HO3 -> 6.01234982 | T38: - | U38: - | V38: - | W38: - | X38: - | Y38: - | Z38: -
B39: Carbón | C39: =O4 -> 0 | D39: =AB4 -> 0.97044967 | E39: =AO4 -> 1.203874929 | F39: =BB4 -> 1.204700887 | G39: =BO4 -> 0.412341659 | H39: =CB4 -> 0 | I39: =CO4 -> 0.6136882701 | J39: =DB4 -> 0.6171346695 | K39: =DO4 -> 0.617147489 | L39: =EB4 -> 0.6166578872 | M39: =EO4 -> 0.03501136465 | N39: =FB4 -> 0.6830451381 | O39: =FO4 -> 1.517921031 | P39: =GB4 -> 2.481933908 | Q39: =GO4 -> 1.969808999 | R39: =HB4 -> 0.1803325252 | S39: =HO4 -> 0 | T39: - | U39: - | V39: - | W39: - | X39: - | Y39: - | Z39: -
B40: Fuel + Gas | C40: 4.548581394 | D40: 7.205978693 | E40: 7.862766326 | F40: 7.975528132 | G40: 9.626202476 | H40: 10.79134432 | I40: 16.31883859 | J40: 8.619173388 | K40: 8.487664666 | L40: 4.245432536 | M40: 35.9684447 | N40: 1.236381506 | O40: 0 | P40: 0 | Q40: 0 | R40: - | S40: =HO5 -> - | T40: - | U40: - | V40: - | W40: - | X40: - | Y40: - | Z40: -
B41: Ciclo combinado | C41: - | D41: 0 | E41: 0 | F41: 0 | G41: 0 | H41: 0 | I41: 0 | J41: 0 | K41: 0 | L41: 0 | M41: 0 | N41: 0 | O41: 0 | P41: 0 | Q41: 0 | R41: 0 | S41: =HO6 -> 0 | T41: - | U41: - | V41: - | W41: - | X41: - | Y41: - | Z41: -
B42: Indisponibilidad permanente | C42: 1.302471106 | D42: 2.306107784 | E42: 2.304193101 | F42: 2.112214649 | G42: 1.891286034 | H42: 1.762665502 | I42: 2.500400736 | J42: 0.982867893 | K42: 0.917583929 | L42: 0.3636880139 | M42: 1.199151834 | N42: 0.2341238416 | O42: 1.412463664 | P42: 1.645197315 | Q42: 1.531908928 | R42: 1.120139609 | S42: =HO7 -> 1.08257625 | T42: - | U42: - | V42: - | W42: - | X42: - | Y42: - | Z42: -
B44: Indisponibilidad equipo térmico anual peninsular (%) Tipo prevista | C44: 2001 | D44: 2002 | E44: 2003 | F44: 2004 | G44: 2005 | H44: 2006 | I44: 2007 | J44: 2008 | K44: 2009 | L44: 2010 | M44: 2011 | N44: 2012 | O44: 2013 | P44: 2014 | Q44: 2015 | R44: 2016 | S44: 2017 | T44: 2018 | U44: 2019 | V44: 2020 | W44: 2021 | X44: 2022 | Y44: 2023 | Z44: 2024
B45: Nuclear | C45: =O10 -> 4.478233122 | D45: =AB10 -> 5.575848833 | E45: =AO10 -> 5.915942128 | F45: =BB10 -> 4.02636343 | G45: =BO10 -> 5.686665718 | H45: =CB10 -> 4.79421378 | I45: =CO10 -> 13.8466837 | J45: =DB10 -> 3.598045503 | K45: =DO10 -> 15.53303984 | L45: =EB10 -> 3.924974636 | M45: =EO10 -> 12.55644144 | N45: =FB10 -> 8.306250839 | O45: =FO10 -> 6.606036701 | P45: =GB10 -> 7.790568733 | Q45: =GO10 -> 5.643655675 | R45: =HB10 -> 6.063834764 | S45: =HO10 -> 0 | T45: - | U45: - | V45: - | W45: - | X45: - | Y45: - | Z45: -
B46: Carbón | C46: 2.72266922 | D46: =AB11 -> 2.630751481 | E46: =AO11 -> 3.017707714 | F46: =BB11 -> 3.223119424 | G46: =BO11 -> 3.22716097 | H46: =CB11 -> 4.070866893 | I46: =CO11 -> 2.599397944 | J46: =DB11 -> 13.96351131 | K46: =DO11 -> 5.877302537 | L46: =EB11 -> 2.103752824 | M46: =EO11 -> 2.00366932 | N46: =FB11 -> 2.718723862 | O46: =FO11 -> 4.30010029 | P46: =GB11 -> 1.604126047 | Q46: =GO11 -> 2.420611284 | R46: =HB11 -> 5.850148377 | S46: =HO11 -> 5.846451346 | T46: - | U46: - | V46: - | W46: - | X46: - | Y46: - | Z46: -
B47: Fuel + Gas | C47: 2.012794732 | D47: 2.261476358 | E47: 2.401588787 | F47: 1.258559104 | G47: 2.494393455 | H47: 2.384628054 | I47: 3.329844953 | J47: 5.401125296 | K47: 4.270294442 | L47: 0 | M47: 2.305655601 | N47: 0 | O47: 0 | P47: 0 | Q47: 0 | R47: - | S47: =HO12 -> - | T47: - | U47: - | V47: - | W47: - | X47: - | Y47: - | Z47: -
B48: Ciclo combinado | C48: - | D48: 1.800281687 | E48: 3.091877642 | F48: 1.451048106 | G48: 2.937004362 | H48: 1.763278402 | I48: 1.438914527 | J48: 2.497459359 | K48: 2.260339941 | L48: 4.914191769 | M48: 6.541454922 | N48: 5.041466149 | O48: 3.442126587 | P48: 5.998724321 | Q48: 6.686219476 | R48: 4.759930339 | S48: =HO13 -> 3.882721918 | T48: - | U48: - | V48: - | W48: - | X48: - | Y48: - | Z48: -
B49: Indisponibilidad prevista | C49: 3.033276219 | D49: 3.30137095 | E49: 3.647826091 | F49: 2.651775485 | G49: 3.54249659 | H49: 3.094187228 | I49: 4.210783642 | J49: 5.812515637 | K49: 5.580004147 | L49: 3.817578458 | M49: 6.289931585 | N49: 4.931297347 | O49: 4.159927069 | P49: 5.178772519 | Q49: 5.43950307 | R49: 5.244051904 | S49: =HO14 -> 3.628862464 | T49: - | U49: - | V49: - | W49: - | X49: - | Y49: - | Z49: -
B51: Indisponibilidad equipo térmico anual peninsular (%) Tipo no prevista | C51: 2001 | D51: 2002 | E51: 2003 | F51: 2004 | G51: 2005 | H51: 2006 | I51: 2007 | J51: 2008 | K51: 2009 | L51: 2010 | M51: 2011 | N51: 2012 | O51: 2013 | P51: 2014 | Q51: 2015 | R51: 2016 | S51: 2017 | T51: 2018 | U51: 2019 | V51: 2020 | W51: 2021 | X51: 2022 | Y51: 2023 | Z51: 2024
B52: Nuclear | C52: =O17 -> 0.7170349601 | D52: =AB17 -> 0.6514068371 | E52: =AO17 -> 1.946239905 | F52: =BB17 -> 2.318918203 | G52: =BO17 -> 9.115550526 | H52: =CB17 -> 4.500585737 | I52: =CO17 -> 2.447883398 | J52: =DB17 -> 7.897032496 | K52: =DO17 -> 4.324421289 | L52: =EB17 -> 3.917089717 | M52: =EO17 -> 1.133335482 | N52: =FB17 -> 0.8601416107 | O52: =FO17 -> 3.365604974 | P52: =GB17 -> 1.688210102 | Q52: =GO17 -> 3.770066199 | R52: =HB17 -> 1.951648583 | S52: =HO17 -> 0.03453237084 | T52: - | U52: - | V52: - | W52: - | X52: - | Y52: - | Z52: -
B53: Carbón | C53: 5.051444113 | D53: =AB18 -> 5.477809574 | E53: =AO18 -> 3.334068352 | F53: =BB18 -> 5.081432786 | G53: =BO18 -> 5.327266208 | H53: =CB18 -> 4.447192507 | I53: =CO18 -> 8.979189123 | J53: =DB18 -> 6.464300097 | K53: =DO18 -> 7.072217563 | L53: =EB18 -> 6.094400071 | M53: =EO18 -> 5.067114572 | N53: =FB18 -> 4.656397801 | O53: =FO18 -> 2.467021238 | P53: =GB18 -> 6.256248048 | Q53: =GO18 -> 5.691243474 | R53: =HB18 -> 7.351891851 | S53: =HO18 -> 6.863733233 | T53: - | U53: - | V53: - | W53: - | X53: - | Y53: - | Z53: -
B54: Fuel + Gas | C54: 7.643283973 | D54: 17.17984479 | E54: 7.46449652 | F54: 8.433102185 | G54: 11.99472431 | H54: 11.06298822 | I54: 5.932397735 | J54: 4.894451275 | K54: 7.571859827 | L54: 10.24735699 | M54: 1.256574306 | N54: 0 | O54: 0 | P54: 68.92408676 | Q54: 99.27986007 | R54: - | S54: =HO19 -> - | T54: - | U54: - | V54: - | W54: - | X54: - | Y54: - | Z54: -
B55: Ciclo combinado | C55: - | D55: 3.78638517 | E55: 3.833996001 | F55: 3.31456911 | G55: 7.665872488 | H55: 4.54885798 | I55: 6.221906782 | J55: 4.966854011 | K55: 5.757559311 | L55: 3.481404864 | M55: 2.29961002 | N55: 2.694135901 | O55: 1.611231655 | P55: 2.324172899 | Q55: 3.196899529 | R55: 4.949354847 | S55: =HO20 -> 2.589905794 | T55: - | U55: - | V55: - | W55: - | X55: - | Y55: - | Z55: -
B56: Indisponibilidad no prevista | C56: 4.524868894 | D56: 7.158446121 | E56: 3.995220155 | F56: 4.778502986 | G56: 8.041818456 | H56: 5.575118109 | I56: 6.227099061 | J56: 5.831598767 | K56: 6.002638834 | L56: 4.530470227 | M56: 2.752385749 | N56: 2.819221735 | O56: 2.105093202 | P56: 3.936821364 | Q56: 4.330341139 | R56: 4.962799763 | S56: =HO21 -> 3.098841778 | T56: - | U56: - | V56: - | W56: - | X56: - | Y56: - | Z56: -
B58: Disponibilidad equipo térmico anual peninsular (%) | C58: 2001 | D58: 2002 | E58: 2003 | F58: 2004 | G58: 2005 | H58: 2006 | I58: 2007 | J58: 2008 | K58: 2009 | L58: 2010 | M58: 2011 | N58: 2012 | O58: 2013 | P58: 2014 | Q58: 2015 | R58: 2016 | S58: 2017 | T58: 2018 | U58: 2019 | V58: 2020 | W58: 2021 | X58: 2022 | Y58: 2023 | Z58: 2024
B59: Nuclear | C59: =O24 -> 94.80473192 | D59: =AB24 -> 93.77274433 | E59: =AO24 -> 92.13781797 | F59: =BB24 -> 93.65471837 | G59: =BO24 -> 85.19778376 | H59: =CB24 -> 90.70520048 | I59: =CO24 -> 83.70543291 | J59: =DB24 -> 88.504922 | K59: =DO24 -> 80.14253887 | L59: =EB24 -> 92.15793565 | M59: =EO24 -> 86.31022308 | N59: =FB24 -> 90.58719977 | O59: =FO24 -> 84.01600851 | P59: =GB24 -> 84.50887134 | Q59: =GO24 -> 84.57392831 | R59: =HB24 -> 85.97216683 | S59: =HO24 -> 93.95311781 | T59: - | U59: - | V59: - | W59: - | X59: - | Y59: - | Z59: -
B60: Carbón | C60: 92.22588667 | D60: 90.92098928 | E60: 92.444349 | F60: 90.4907469 | G60: 91.03323116 | H60: 91.4819406 | I60: 87.80772466 | J60: 78.95505392 | K60: 86.43333241 | L60: 91.18518922 | M60: 92.89420474 | N60: 91.9418332 | O60: 91.71495744 | P60: 89.657692 | Q60: 89.91833624 | R60: 86.61762725 | S60: =HO25 -> 87.28981542 | T60: - | U60: - | V60: - | W60: - | X60: - | Y60: - | Z60: -
B61: Fuel + Gas | C61: 85.7953399 | D61: 73.35270016 | E61: 82.27114837 | F61: 82.33281058 | G61: 75.88467976 | H61: 75.76103941 | I61: 74.41891872 | J61: 81.08525004 | K61: 79.67018107 | L61: 85.50721047 | M61: 60.46932539 | N61: 98.76361849 | O61: 100 | P61: 31.07591324 | Q61: 0.72013993 | R61: - | S61: =HO26 -> - | T61: - | U61: - | V61: - | W61: - | X61: - | Y61: - | Z61: -
B62: Ciclo combinado | C62: - | D62: 94.41333314 | E62: 93.07412636 | F62: 95.23438278 | G62: 89.39712315 | H62: 93.68786362 | I62: 92.33917869 | J62: 92.53568663 | K62: 91.98210075 | L62: 91.60440337 | M62: 91.15893506 | N62: 92.26439795 | O62: 94.94664176 | P62: 91.67710278 | Q62: 90.11688099 | R62: 90.29071481 | S62: =HO27 -> 93.52737229 | T62: - | U62: - | V62: - | W62: - | X62: - | Y62: - | Z62: -
B63: Disponibilidad | C63: 91.13938378 | D63: 87.23407515 | E63: 90.05276065 | F63: 90.45750688 | G63: 86.52439892 | H63: 89.56802916 | I63: 87.06171656 | J63: 87.3730177 | K63: 87.49977309 | L63: 91.2882633 | M63: 89.75853083 | N63: 92.01535708 | O63: 92.32251607 | P63: 89.2392088 | Q63: 88.69824686 | R63: 88.67300872 | S63: =HO28 -> 92.18971951 | T63: - | U63: - | V63: - | W63: - | X63: - | Y63: - | Z63: -
B65: Horas de funcionamiento del equipo térmico anual peninsular (número de horas) | C65: 2001 | D65: 2002 | E65: 2003 | F65: 2004 | G65: 2005 | H65: 2006 | I65: 2007 | J65: 2008 | K65: 2009 | L65: 2010 | M65: 2011 | N65: 2012 | O65: 2013 | P65: 2014 | Q65: 2015 | R65: 2016 | S65: 2017 | T65: 2018 | U65: 2019 | V65: 2020 | W65: 2021 | X65: 2022 | Y65: 2023 | Z65: 2024
B66: Nuclear | C66: =O31 -> 8298.442075 | D66: =AB31 -> 8214.294103 | E66: =AO31 -> 8037.309754 | F66: =BB31 -> 8222.190384 | G66: =BO31 -> 7548.119078 | H66: =CB31 -> 7922.302885 | I66: =CO31 -> 7304.716364 | J66: =DB31 -> 7782.488241 | K66: =DO31 -> 7024.337641 | L66: =EB31 -> 8106.021 | M66: =EO31 -> 7571.646282 | N66: =FB31 -> 7955.483319 | O66: =FO31 -> 7361.453614 | P66: =GB31 -> 7392.203459 | Q66: =GO31 -> 7429.817429 | R66: =HB31 -> 7563.814647 | S66: =HO31 -> 1330.865127 | T66: - | U66: - | V66: - | W66: - | X66: - | Y66: - | Z66: -
B67: Carbón | C67: 6805.119873 | D67: 7708.750286 | E67: 7316.161396 | F67: 7476.396844 | G67: 7744.787433 | H67: 6913.30205 | I67: 7368.619644 | J67: 5175.385241 | K67: 4079.220639 | L67: 2769.220495 | M67: 4777.660997 | N67: 5787.018688 | O67: 4372.940869 | P67: 4895.205132 | Q67: 5890.548737 | R67: =HB32 -> 4649.301354 | S67: =HO32 -> 1068.489287 | T67: - | U67: - | V67: - | W67: - | X67: - | Y67: - | Z67: -
B68: Fuel + Gas | C68: 2708.784639 | D68: 2955.121057 | E68: 2026.761078 | F68: 1925.903971 | G68: 2525.480158 | H68: 1898.349094 | I68: 972.3971548 | J68: 1081.307668 | K68: 1049.421769 | L68: 1191.71945 | M68: 0 | N68: 0 | O68: 0 | P68: 0 | Q68: - | R68: - | S68: =HO33 -> - | T68: - | U68: - | V68: - | W68: - | X68: - | Y68: - | Z68: -
B69: Ciclo combinado | C69: - | D69: 2899.2075 | E69: 5074.855396 | F69: 4687.63614 | G69: 5147.052046 | H69: 5546.304325 | I69: 4644.766369 | J69: 5736.780197 | K69: 4743.557024 | L69: 3985.935251 | M69: 3256.652552 | N69: 2491.742937 | O69: 1733.689637 | P69: 1695.876036 | Q69: 2067.017091 | R69: 2065.817976 | S69: =HO34 -> 347.1061965 | T69: - | U69: - | V69: - | W69: - | X69: - | Y69: - | Z69: -
B70: Horas de funcionamiento | C70: 6069.810401 | D70: 6203.398174 | E70: 5993.31047 | F70: 5863.023964 | G70: 5957.574027 | H70: 5781.251857 | I70: 5398.653662 | J70: 5501.915023 | K70: 4728.800333 | L70: 4244.658433 | M70: 4313.939509 | N70: 4211.77455 | O70: 3331.989723 | P70: 3437.944665 | Q70: 3942.760528 | R70: 3641.562915 | S70: =HO35 -> 687.8079765 | T70: - | U70: - | V70: - | W70: - | X70: - | Y70: - | Z70: -

Sheet Año (hidden)
X1: 1 | Z1: 1
A2: Permanente | B2: 1990 | C2: 1990-1997 | D2: 2001-2008 | N2: Indisponibilidad permanente | P2: Mensual
A3: Prevista | B3: 1991 | C3: 1998-2005 | D3: 2009-2016 | N3: Indisponibilidad prevista | P3: Anual
A4: No prevista | B4: 1992 | C4: 2006-2013 | D4: 2017-2024 | N4: Indisponibilidad no prevista
B5: 1993 | C5: 2014-2021 | N5: Disponibilidad
B6: 1994 | N6: Horas de funcionamiento
B7: 1995
B8: 1996
B9: 1997
B10: 1998
B11: 1999
B12: 2000
B13: 2001
B14: 2002
B15: 2003
B16: 2004
B17: 2005
B18: 2006
B19: 2007
B20: 2008
B21: 2009
B22: 2010
B23: 2011
B24: 2012
B25: 2013
B26: 2014
B27: 2015
B28: 2016
B29: 2017
